{"text_format":"1","workbook":"xlsx","n_sheets":11,"sheets":["Prezenční listina","Startovní listina","Výsledková listina","Družstva","Běh Vírem","mezičasy 2016","mezičasy 2017","Diplom MSM A5","Diplom MSM A5 (2)","Družstva (prac.)","Výsledková listina (2)"],"not_rendered":{"charts":0,"images":19,"macros":1,"external_links":0,"defined_names":13,"comments":0,"pivot_tables":0},"unopened":[],"bounds":{"document_bytes":16777216,"sheet_cells":100000,"rows_first":2000,"rows_last":500,"rows_between":2000,"halvings":0,"cell_chars":16384,"cell_head_chars":4096},"cells_cut":0,"cells_raw":0,"read":"whole","date_system":"1900"}

{"sheet":"Prezenční listina","index":0,"n_rows":152,"n_cols":19,"rows_kept":152,"cut":false,"hidden":true,"merged":[[5,10,5,12],[0,0,0,7]]}
[{"$f":"\"Prezenční listina - Malý svratecký maraton \"&O2","v":"Prezenční listina - Malý svratecký maraton 2017"}]
[null,"Příjmení","Jméno","Narození","Oddíl / Bydliště","Startovní číslo","Datum přihlášení na Stopcy.com","Kategorie",null,null,null,null,null,null,2017,null,null,null,"Pohlaví"]
[1,"Bartoňková","Nina",1990,"Fan Brno",35,"2017-08-03",{"$f":"IF(S3<>\"Ž\",IF($O$2-D3>39,IF($O$2-D3>49,IF($O$2-D3>59,IF($O$2-D3>69,IF($O$2-D3>90,\"\",\"E\"),\"D\"),\"C\"),\"B\"),\"A\"),IF(S3=\"Ž\",IF($O$2-D3>34,IF($O$2-D3>44,IF($O$2-D3>90,\"\",\"H\"),\"G\"),\"F\")))","v":"F"},null,null,null,null,null,null,null,null,null,null,{"$f":"IF(LEN(B3)=0,\" \",IF(MID(B3,LEN(B3),1)=\"á\",\"Ž\",\"M\"))","v":"Ž"}]
[{"$f":"IF(B4<>0,A3+1,\"\")","v":2},"Bojanovská","Alena",1975,"Žďár nad Sázavou",45,"2017-08-11","G",null,null,null,null,null,null,null,null,null,null,"Ž"]
[3,"Faja","Ondřej",1976,"Brno",69,"2017-07-23","B",null,null,null,null,null,null,null,null,null,null,"M"]
[4,"Glier","Miroslav",1949,"Ústí nad Labem",80,"2017-08-06","D",null,null,"Rok nastavit v buňce O2",null,null,null,null,null,null,null,"M"]
[5,"Glier","Michal",1982,"SDH Doubravník",79,"2017-08-06","A",null,null,null,null,null,null,null,null,null,null,"M"]
[6,"Holý","Josef",1941,"AC Moravská Slavia Brno",10,"2017-08-15","E",null,null,null,null,null,null,null,null,null,null,"M"]
[7,"Hübner","Tomáš",1979,"SDH Bolešín",4,"2017-08-14","A",null,null,null,null,null,null,null,null,null,null,"M"]
[8,"Chramosta","Jaroslav",1966,"JABOJA Team Dobrná",8,"2017-08-15","C",null,null,null,null,null,null,null,null,null,null,"M"]
[9,"Kalich","Radim",1985,"Odranec",73,"2017-08-05","A",null,null,null,null,null,null,null,null,null,null,"M"]
[10,"Komárková","Zdeňka",1974,"SDH Bolešín",5,"2017-08-21","G",null,null,null,null,null,null,null,null,null,null,"Ž"]
[11,"Krátký","Josef",1965,"Hvězda Pardubice",null,"2017-08-07","C",null,null,null,null,null,null,null,null,null,null,"M"]
[12,"Kratochvíl","Jaroslav",1977,"SDH Hluboké",75,"2017-08-20","B",null,null,null,null,null,null,null,null,null,null,"M"]
[13,"Křípalová","Renata",1983,"Třebíč",30,"2017-08-21","F",null,null,null,null,null,null,null,null,null,null,"Ž"]
[14,"Křižovičová","Hana",1971,"Nové Město na Moravě",41,"2017-08-22","H",null,null,null,null,null,null,null,null,null,null,"Ž"]
[15,"Lorenzová","Dana",1968,"Nové Město na Moravě",null,"2017-08-16","H",null,null,null,null,null,null,null,null,null,null,"Ž"]
[16,"Mareš","Bohumil",1951,"LEAR Brno",42,"2017-08-09","D",null,null,null,null,null,null,null,null,null,null,"M"]
[17,"Martincová","Ivana",1963,"AC Moravská Slavia Brno",13,"2017-08-09","H",null,null,null,null,null,null,null,null,null,null,"Ž"]
[18,"Mlčáková","Hana",1981,"Strážnice",72,"2017-07-18","G",null,null,null,null,null,null,null,null,null,null,"Ž"]
[19,"Münster","Libor",1966,"Blansko",63,"2017-08-17","C",null,null,null,null,null,null,null,null,null,null,"M"]
[20,"Novotný","Petr",1965,"AK Kuřim",47,"2017-07-23","C",null,null,null,null,null,null,null,null,null,null,"M"]
[21,"Orálek","Daniel",1970,"behejbrno.com",82,"2017-08-04","B",null,null,null,null,null,null,null,null,null,null,"M"]
[22,"Ožana","Václav",1964,"Zakisova-skolabehu",null,"2017-07-25","C",null,null,null,null,null,null,null,null,null,null,"M"]
[23,"Pešáková","Mirka",1985,"AC Racers Tetčice",46,"2017-08-17","F",null,null,null,null,null,null,null,null,null,null,"Ž"]
[24,"Petrů","Roman",1976,"Drnovice",null,"2016-12-28","B",null,null,null,null,null,null,null,null,null,null,"M"]
[25,"Podmelová","Vilma",1962,"AC Moravská Slavia Brno",67,"2017-08-10","H",null,null,null,null,null,null,null,null,null,null,"Ž"]
[26,"Ptáček","Michal",1986,"člen nadšenců parku Lužánky",17,"2017-08-20","A",null,null,null,null,null,null,null,null,null,null,"M"]
[27,"Pučálka","Radek",1973,"Železárny Štěpánov s.r.o",28,"2017-07-16","B",null,null,null,null,null,null,null,null,null,null,"M"]
[28,"Řezníček","Roman",1977,"Žďár nad Sázavou",44,"2017-08-11","B",null,null,null,null,null,null,null,null,null,null,"M"]
[29,"Sedláček","Svatopluk",1957,"AC Moravská Slavia Brno",84,"2017-08-18","D",null,null,null,null,null,null,null,null,null,null,"M"]
[30,"Stöger","Karel",1976,"fKlidu Brno",21,"2017-08-18","B",null,null,null,null,null,null,null,null,null,null,"M"]
[31,"Šedová","Věra",1964,"Praha",26,"2017-08-20","H",null,null,null,null,null,null,null,null,null,null,"Ž"]
[32,"Škvařilová","Eva",1973,"RSFK Říčany",31,"2017-08-21","G",null,null,null,null,null,null,null,null,null,null,"Ž"]
[33,"Šorf","Ivo",1975,"ABND Racing Team Bystřice n. P.",23,"2017-08-10","B",null,null,null,null,null,null,null,null,null,null,{"$f":"IF(LEN(B35)=0,\" \",IF(MID(B35,LEN(B35),1)=\"á\",\"Ž\",\"M\"))","v":"M"}]
[{"$f":"IF(B36<>0,A35+1,\"\")","v":34},"Tesařová","Marie",1954,"Křižanov",9,"2017-08-11","H",null,null,null,null,null,null,null,null,null,null,"Ž"]
[35,"Vlachová Hutová","Eliška",1988,"Brno",56,"2017-05-14","F",null,null,null,null,null,null,null,null,null,null,"Ž"]
[36,"Zouhar","Libor",1958,"Brno-Líšeň",14,"2017-08-18","C",null,null,null,null,null,null,null,null,null,null,"M"]
[37,"Žličař","Karel",1977,"Železárny Štěpánov s.r.o",27,"2017-07-16","B",null,null,null,null,null,null,null,null,null,null,"M"]
[38,"Hanslová","Lenka",1973,"Žďár nad Sázavou",40,"2017-08-25",{"$f":"IF(S40<>\"Ž\",IF($O$2-D40>39,IF($O$2-D40>49,IF($O$2-D40>59,IF($O$2-D40>69,IF($O$2-D40>90,\"\",\"E\"),\"D\"),\"C\"),\"B\"),\"A\"),IF(S40=\"Ž\",IF($O$2-D40>34,IF($O$2-D40>44,IF($O$2-D40>90,\"\",\"H\"),\"G\"),\"F\")))","v":"G"},null,null,null,null,null,null,null,null,null,null,"Ž"]
[39,"Podsedník","Marek",1985,"Brno",2,null,"A",null,null,null,null,null,null,null,null,null,null,"M"]
[40,"Ježová","Martina",1975,"Brno",3,null,"G",null,null,null,null,null,null,null,null,null,null,"Ž"]
[41,"Navrátilová","Vlasta",1983,"Vír",6,null,"F",null,null,null,null,null,null,null,null,null,null,"Ž"]
[42,"Koutský","Tomáš",1987,"Ledová stěna Vír",76,"2017-08-21","A",null,null,null,null,null,null,null,null,null,null,"M"]
[43,"Dostálová","Vendula",1981,"Digitor.cz",11,null,"G",null,null,null,null,null,null,null,null,null,null,"Ž"]
[44,"Pivec","Jan",1981,"Digitor.cz",12,null,"A",null,null,null,null,null,null,null,null,null,null,"M"]
[45,"Czerný","Pavel",1981,"BKB",19,null,"A",null,null,null,null,null,null,null,null,null,null,"M"]
[46,"Ďurdiaková","Tereza",1991,"AK OLYMP Brno",22,null,"F",null,null,null,null,null,null,null,null,null,null,"Ž"]
[47,"Vrba","Tomáš",1986,"Bystré",24,null,"A",null,null,null,null,null,null,null,null,null,null,"M"]
[48,"Benko","Jan",1974,"GOMANGO Litomyšl",18,null,"B",null,null,null,null,null,null,null,null,null,null,"M"]
[49,"Klíma","Miroslav",1975,"Brno",33,null,"B",null,null,null,null,null,null,null,null,null,null,"M"]
[50,"Fanfrdla","Dalimil",1973,"Matyteam Brno",34,null,"B",null,null,null,null,null,null,null,null,null,null,"M"]
[51,"Fanfrdla","Ctirad",1974,"Silůvky",36,null,"B",null,null,null,null,null,null,null,null,null,null,"M"]
[52,"Bělehrádek","Pavel",1958,"TJ Čolek",37,null,"C",null,null,null,null,null,null,null,null,null,null,"M"]
[53,"Chromý","Bořivoj",1953,"Tišnov",38,null,"D",null,null,null,null,null,null,null,null,null,null,"M"]
[54,"Plekanec","Juraj",1974,"Brno",48,null,"B",null,null,null,null,null,null,null,null,null,null,"M"]
[55,"Ondráček","Tomáš",1977,"Brno",49,null,"B",null,null,null,null,null,null,null,null,null,null,"M"]
[56,"Dvořák","Vojtěch",1974,"Brno",51,null,"B",null,null,null,null,null,null,null,null,null,null,"M"]
[57,"Drózd","Januš",1962,"Velké Přílepy",54,null,"C",null,null,null,null,null,null,null,null,null,null,"M"]
[58,"Benešová","Marie",1982,"Dolní Rožínka",58,null,"G",null,null,null,null,null,null,null,null,null,null,"Ž"]
[59,"Rokosová","Ivana",1982,"Polička",60,null,"G",null,null,null,null,null,null,null,null,null,null,"Ž"]
[60,"Nekuža","Jiří",1951,"RUNNERS Zbýšov",61,null,"D",null,null,null,null,null,null,null,null,null,null,"M"]
[61,"Tomek","Pavel",1980,"Brno",62,null,"A",null,null,null,null,null,null,null,null,null,null,"M"]
[62,"Kohut","Jan",1985,"MAX-TRAINING.CZ",64,null,"A",null,null,null,null,null,null,null,null,null,null,"M"]
[63,"Kalich","Daniel",1982,"Brno",70,null,"A",null,null,null,null,null,null,null,null,null,null,"M"]
[64,"Krajča","Rudy",1965,"rarecacti.com",77,null,"C",null,null,null,null,null,null,null,null,null,null,"M"]
[65,"Zourek","Karel",1959,"Bedřichovice",83,null,{"$f":"IF(S67<>\"Ž\",IF($O$2-D67>39,IF($O$2-D67>49,IF($O$2-D67>59,IF($O$2-D67>69,IF($O$2-D67>90,\"\",\"E\"),\"D\"),\"C\"),\"B\"),\"A\"),IF(S67=\"Ž\",IF($O$2-D67>34,IF($O$2-D67>44,IF($O$2-D67>90,\"\",\"H\"),\"G\"),\"F\")))","v":"C"},null,null,null,null,null,null,null,null,null,null,{"$f":"IF(LEN(B67)=0,\" \",IF(MID(B67,LEN(B67),1)=\"á\",\"Ž\",\"M\"))","v":"M"}]
[66,"Příhoda","Jan",1983,"Ždánice",85,null,"A",null,null,null,null,null,null,null,null,null,null,"M"]
[67,"Benc","Karel",1975,"Pivonice",86,null,"B",null,null,null,null,null,null,null,null,null,null,"M"]
["",null,null,null,null,null,null,"",null,null,null,null,null,null,null,null,null,null," "]
["",null,null,null,null,null,null,"",null,null,null,null,null,null,null,null,null,null," "]
["",null,null,null,null,null,null,"",null,null,null,null,null,null,null,null,null,null," "]
["",null,null,null,null,null,null,"",null,null,null,null,null,null,null,null,null,null," "]
["",null,null,null,null,null,null,"",null,null,null,null,null,null,null,null,null,null," "]
["",null,null,null,null,null,null,"",null,null,null,null,null,null,null,null,null,null," "]
["",null,null,null,null,null,null,"",null,null,null,null,null,null,null,null,null,null," "]
["",null,null,null,null,null,null,"",null,null,null,null,null,null,null,null,null,null," "]
["",null,null,null,null,null,null,"",null,null,null,null,null,null,null,null,null,null," "]
["",null,null,null,null,null,null,"",null,null,null,null,null,null,null,null,null,null," "]
["",null,null,null,null,null,null,"",null,null,null,null,null,null,null,null,null,null," "]
["",null,null,null,null,null,null,"",null,null,null,null,null,null,null,null,null,null," "]
["",null,null,null,null,null,null,"",null,null,null,null,null,null,null,null,null,null," "]
["",null,null,null,null,null,null,"",null,null,null,null,null,null,null,null,null,null," "]
["",null,null,null,null,null,null,"",null,null,null,null,null,null,null,null,null,null," "]
["",null,null,null,null,null,null,"",null,null,null,null,null,null,null,null,null,null," "]
["",null,null,null,null,null,null,"",null,null,null,null,null,null,null,null,null,null," "]
["",null,null,null,null,null,null,"",null,null,null,null,null,null,null,null,null,null," "]
["",null,null,null,null,null,null,"",null,null,null,null,null,null,null,null,null,null," "]
["",null,null,null,null,null,null,"",null,null,null,null,null,null,null,null,null,null," "]
["",null,null,null,null,null,null,"",null,null,null,null,null,null,null,null,null,null," "]
["",null,null,null,null,null,null,"",null,null,null,null,null,null,null,null,null,null," "]
["",null,null,null,null,null,null,"",null,null,null,null,null,null,null,null,null,null," "]
["",null,null,null,null,null,null,"",null,null,null,null,null,null,null,null,null,null," "]
["",null,null,null,null,null,null,"",null,null,null,null,null,null,null,null,null,null," "]
["",null,null,null,null,null,null,"",null,null,null,null,null,null,null,null,null,null," "]
["",null,null,null,null,null,null,"",null,null,null,null,null,null,null,null,null,null," "]
["",null,null,null,null,null,null,"",null,null,null,null,null,null,null,null,null,null," "]
["",null,null,null,null,null,null,"",null,null,null,null,null,null,null,null,null,null," "]
["",null,null,null,null,null,null,{"$f":"IF(S99<>\"Ž\",IF($O$2-D99>39,IF($O$2-D99>49,IF($O$2-D99>59,IF($O$2-D99>69,IF($O$2-D99>90,\"\",\"E\"),\"D\"),\"C\"),\"B\"),\"A\"),IF(S99=\"Ž\",IF($O$2-D99>34,IF($O$2-D99>44,IF($O$2-D99>90,\"\",\"H\"),\"G\"),\"F\")))","v":""},null,null,null,null,null,null,null,null,null,null,{"$f":"IF(LEN(B99)=0,\" \",IF(MID(B99,LEN(B99),1)=\"á\",\"Ž\",\"M\"))","v":" "}]
[{"$f":"IF(B100<>0,A99+1,\"\")","v":""},null,null,null,null,null,null,"",null,null,null,null,null,null,null,null,null,null," "]
["",null,null,null,null,null,null,"",null,null,null,null,null,null,null,null,null,null," "]
["",null,null,null,null,null,null,"",null,null,null,null,null,null,null,null,null,null," "]
["",null,null,null,null,null,null,"",null,null,null,null,null,null,null,null,null,null," "]
["",null,null,null,null,null,null,"",null,null,null,null,null,null,null,null,null,null," "]
["",null,null,null,null,null,null,"",null,null,null,null,null,null,null,null,null,null," "]
["",null,null,null,null,null,null,"",null,null,null,null,null,null,null,null,null,null," "]
["",null,null,null,null,null,null,"",null,null,null,null,null,null,null,null,null,null," "]
["",null,null,null,null,null,null,"",null,null,null,null,null,null,null,null,null,null," "]
["",null,null,null,null,null,null,"",null,null,null,null,null,null,null,null,null,null," "]
["",null,null,null,null,null,null,"",null,null,null,null,null,null,null,null,null,null," "]
["",null,null,null,null,null,null,"",null,null,null,null,null,null,null,null,null,null," "]
["",null,null,null,null,null,null,"",null,null,null,null,null,null,null,null,null,null," "]
["",null,null,null,null,null,null,"",null,null,null,null,null,null,null,null,null,null," "]
["",null,null,null,null,null,null,"",null,null,null,null,null,null,null,null,null,null," "]
["",null,null,null,null,null,null,"",null,null,null,null,null,null,null,null,null,null," "]
["",null,null,null,null,null,null,"",null,null,null,null,null,null,null,null,null,null," "]
["",null,null,null,null,null,null,"",null,null,null,null,null,null,null,null,null,null," "]
["",null,null,null,null,null,null,"",null,null,null,null,null,null,null,null,null,null," "]
["",null,null,null,null,null,null,"",null,null,null,null,null,null,null,null,null,null," "]
["",null,null,null,null,null,null,"",null,null,null,null,null,null,null,null,null,null," "]
["",null,null,null,null,null,null,"",null,null,null,null,null,null,null,null,null,null," "]
["",null,null,null,null,null,null,"",null,null,null,null,null,null,null,null,null,null," "]
["",null,null,null,null,null,null,"",null,null,null,null,null,null,null,null,null,null," "]
["",null,null,null,null,null,null,"",null,null,null,null,null,null,null,null,null,null," "]
["",null,null,null,null,null,null,"",null,null,null,null,null,null,null,null,null,null," "]
["",null,null,null,null,null,null,"",null,null,null,null,null,null,null,null,null,null," "]
["",null,null,null,null,null,null,"",null,null,null,null,null,null,null,null,null,null," "]
["",null,null,null,null,null,null,"",null,null,null,null,null,null,null,null,null,null," "]
["",null,null,null,null,null,null,"",null,null,null,null,null,null,null,null,null,null," "]
["",null,null,null,null,null,null,"",null,null,null,null,null,null,null,null,null,null," "]
["",null,null,null,null,null,null,{"$f":"IF(S131<>\"Ž\",IF($O$2-D131>39,IF($O$2-D131>49,IF($O$2-D131>59,IF($O$2-D131>69,IF($O$2-D131>90,\"\",\"E\"),\"D\"),\"C\"),\"B\"),\"A\"),IF(S131=\"Ž\",IF($O$2-D131>34,IF($O$2-D131>44,IF($O$2-D131>90,\"\",\"H\"),\"G\"),\"F\")))","v":""},null,null,null,null,null,null,null,null,null,null,{"$f":"IF(LEN(B131)=0,\" \",IF(MID(B131,LEN(B131),1)=\"á\",\"Ž\",\"M\"))","v":" "}]
["",null,null,null,null,null,null,"",null,null,null,null,null,null,null,null,null,null," "]
["",null,null,null,null,null,null,"",null,null,null,null,null,null,null,null,null,null," "]
["",null,null,null,null,null,null,"",null,null,null,null,null,null,null,null,null,null," "]
["",null,null,null,null,null,null,"",null,null,null,null,null,null,null,null,null,null," "]
["",null,null,null,null,null,null,"",null,null,null,null,null,null,null,null,null,null," "]
["",null,null,null,null,null,null,"",null,null,null,null,null,null,null,null,null,null," "]
["",null,null,null,null,null,null,"",null,null,null,null,null,null,null,null,null,null," "]
["",null,null,null,null,null,null,"",null,null,null,null,null,null,null,null,null,null," "]
["",null,null,null,null,null,null,"",null,null,null,null,null,null,null,null,null,null," "]
["",null,null,null,null,null,null,"",null,null,null,null,null,null,null,null,null,null," "]
["",null,null,null,null,null,null,"",null,null,null,null,null,null,null,null,null,null," "]
["",null,null,null,null,null,null,"",null,null,null,null,null,null,null,null,null,null," "]
["",null,null,null,null,null,null,"",null,null,null,null,null,null,null,null,null,null," "]
["",null,null,null,null,null,null,"",null,null,null,null,null,null,null,null,null,null," "]
["",null,null,null,null,null,null,"",null,null,null,null,null,null,null,null,null,null," "]
["",null,null,null,null,null,null,"",null,null,null,null,null,null,null,null,null,null," "]
["",null,null,null,null,null,null,"",null,null,null,null,null,null,null,null,null,null," "]
["",null,null,null,null,null,null,"",null,null,null,null,null,null,null,null,null,null," "]
["",null,null,null,null,null,null,"",null,null,null,null,null,null,null,null,null,null," "]
["",null,null,null,null,null,null,"",null,null,null,null,null,null,null,null,null,null," "]
["",null,null,null,null,null,null,"",null,null,null,null,null,null,null,null,null,null," "]

{"sheet":"Startovní listina","index":1,"n_rows":141,"n_cols":12,"rows_kept":141,"cut":false,"hidden":false,"merged":[[4,11,11,11],[0,0,0,6],[2,0,2,6],[1,0,1,6],[1,8,2,9]]}
[{"$f":"\"Startovní listina - Malý svratecký maraton \"&'Prezenční listina'!O2","v":"Startovní listina - Malý svratecký maraton 2017"}]
["2017-08-26",null,null,null,null,null,null,null,"Počet přihlášených v jednotlivých kategoriích"]
[{"$f":"'Prezenční listina'!O2-1953&\". ročník\"","v":"64. ročník"},null,null,null,null,null,null,null,null,null,null,"Celkem startujících"]
[null,"Startovní číslo","Příjmení","Jméno","Narození","Oddíl / Bydliště","Kategorie"]
[1,{"$f":"IF('Prezenční listina'!F41=0,\"\",'Prezenční listina'!F41)","v":2},{"$f":"IF('Prezenční listina'!F41=0,\"\",'Prezenční listina'!B41)","v":"Podsedník"},{"$f":"IF('Prezenční listina'!F41=0,\"\",'Prezenční listina'!C41)","v":"Marek"},{"$f":"IF('Prezenční listina'!F41=0,\"\",'Prezenční listina'!D41)","v":1985},{"$f":"IF('Prezenční listina'!F41=0,\"\",'Prezenční listina'!E41)","v":"Brno"},{"$f":"IF('Prezenční listina'!F41=0,\"\",'Prezenční listina'!H41)","v":"A"},null,"A:",{"$f":"COUNTIF($G$5:$G$141,\"A\")","v":13},null,{"$f":"COUNT(B5:B141)","v":63}]
[{"$f":"IF(C6=\"\",\"\",A5+1)","v":2},{"$f":"IF('Prezenční listina'!F42=0,\"\",'Prezenční listina'!F42)","v":3},{"$f":"IF('Prezenční listina'!F42=0,\"\",'Prezenční listina'!B42)","v":"Ježová"},{"$f":"IF('Prezenční listina'!F42=0,\"\",'Prezenční listina'!C42)","v":"Martina"},{"$f":"IF('Prezenční listina'!F42=0,\"\",'Prezenční listina'!D42)","v":1975},{"$f":"IF('Prezenční listina'!F42=0,\"\",'Prezenční listina'!E42)","v":"Brno"},{"$f":"IF('Prezenční listina'!F42=0,\"\",'Prezenční listina'!H42)","v":"G"},null,"B:",{"$f":"COUNTIF($G$5:$G$141,\"B\")","v":16}]
[3,{"$f":"IF('Prezenční listina'!F9=0,\"\",'Prezenční listina'!F9)","v":4},{"$f":"IF('Prezenční listina'!F9=0,\"\",'Prezenční listina'!B9)","v":"Hübner"},{"$f":"IF('Prezenční listina'!F9=0,\"\",'Prezenční listina'!C9)","v":"Tomáš"},{"$f":"IF('Prezenční listina'!F9=0,\"\",'Prezenční listina'!D9)","v":1979},{"$f":"IF('Prezenční listina'!F9=0,\"\",'Prezenční listina'!E9)","v":"SDH Bolešín"},{"$f":"IF('Prezenční listina'!F9=0,\"\",'Prezenční listina'!H9)","v":"A"},null,"C:",{"$f":"COUNTIF($G$5:$G$141,\"C\")","v":8}]
[4,{"$f":"IF('Prezenční listina'!F12=0,\"\",'Prezenční listina'!F12)","v":5},{"$f":"IF('Prezenční listina'!F12=0,\"\",'Prezenční listina'!B12)","v":"Komárková"},{"$f":"IF('Prezenční listina'!F12=0,\"\",'Prezenční listina'!C12)","v":"Zdeňka"},{"$f":"IF('Prezenční listina'!F12=0,\"\",'Prezenční listina'!D12)","v":1974},{"$f":"IF('Prezenční listina'!F12=0,\"\",'Prezenční listina'!E12)","v":"SDH Bolešín"},{"$f":"IF('Prezenční listina'!F12=0,\"\",'Prezenční listina'!H12)","v":"G"},null,"D:",{"$f":"COUNTIF($G$5:$G$141,\"D\")","v":5}]
[5,{"$f":"IF('Prezenční listina'!F43=0,\"\",'Prezenční listina'!F43)","v":6},{"$f":"IF('Prezenční listina'!F43=0,\"\",'Prezenční listina'!B43)","v":"Navrátilová"},{"$f":"IF('Prezenční listina'!F43=0,\"\",'Prezenční listina'!C43)","v":"Vlasta"},{"$f":"IF('Prezenční listina'!F43=0,\"\",'Prezenční listina'!D43)","v":1983},{"$f":"IF('Prezenční listina'!F43=0,\"\",'Prezenční listina'!E43)","v":"Vír"},{"$f":"IF('Prezenční listina'!F43=0,\"\",'Prezenční listina'!H43)","v":"F"},null,"E:",{"$f":"COUNTIF($G$5:$G$141,\"E\")","v":1}]
[6,{"$f":"IF('Prezenční listina'!F10=0,\"\",'Prezenční listina'!F10)","v":8},{"$f":"IF('Prezenční listina'!F10=0,\"\",'Prezenční listina'!B10)","v":"Chramosta"},{"$f":"IF('Prezenční listina'!F10=0,\"\",'Prezenční listina'!C10)","v":"Jaroslav"},{"$f":"IF('Prezenční listina'!F10=0,\"\",'Prezenční listina'!D10)","v":1966},{"$f":"IF('Prezenční listina'!F10=0,\"\",'Prezenční listina'!E10)","v":"JABOJA Team Dobrná"},{"$f":"IF('Prezenční listina'!F10=0,\"\",'Prezenční listina'!H10)","v":"C"},null,"F:",{"$f":"COUNTIF($G$5:$G$141,\"F\")","v":6}]
[7,{"$f":"IF('Prezenční listina'!F36=0,\"\",'Prezenční listina'!F36)","v":9},{"$f":"IF('Prezenční listina'!F36=0,\"\",'Prezenční listina'!B36)","v":"Tesařová"},{"$f":"IF('Prezenční listina'!F36=0,\"\",'Prezenční listina'!C36)","v":"Marie"},{"$f":"IF('Prezenční listina'!F36=0,\"\",'Prezenční listina'!D36)","v":1954},{"$f":"IF('Prezenční listina'!F36=0,\"\",'Prezenční listina'!E36)","v":"Křižanov"},{"$f":"IF('Prezenční listina'!F36=0,\"\",'Prezenční listina'!H36)","v":"H"},null,"G:",{"$f":"COUNTIF($G$5:$G$141,\"G\")","v":9}]
[8,{"$f":"IF('Prezenční listina'!F8=0,\"\",'Prezenční listina'!F8)","v":10},{"$f":"IF('Prezenční listina'!F8=0,\"\",'Prezenční listina'!B8)","v":"Holý"},{"$f":"IF('Prezenční listina'!F8=0,\"\",'Prezenční listina'!C8)","v":"Josef"},{"$f":"IF('Prezenční listina'!F8=0,\"\",'Prezenční listina'!D8)","v":1941},{"$f":"IF('Prezenční listina'!F8=0,\"\",'Prezenční listina'!E8)","v":"AC Moravská Slavia Brno"},{"$f":"IF('Prezenční listina'!F8=0,\"\",'Prezenční listina'!H8)","v":"E"},null,"H:",{"$f":"COUNTIF($G$5:$G$141,\"H\")","v":5}]
[9,{"$f":"IF('Prezenční listina'!F45=0,\"\",'Prezenční listina'!F45)","v":11},{"$f":"IF('Prezenční listina'!F45=0,\"\",'Prezenční listina'!B45)","v":"Dostálová"},{"$f":"IF('Prezenční listina'!F45=0,\"\",'Prezenční listina'!C45)","v":"Vendula"},{"$f":"IF('Prezenční listina'!F45=0,\"\",'Prezenční listina'!D45)","v":1981},{"$f":"IF('Prezenční listina'!F45=0,\"\",'Prezenční listina'!E45)","v":"Digitor.cz"},{"$f":"IF('Prezenční listina'!F45=0,\"\",'Prezenční listina'!H45)","v":"G"}]
[10,{"$f":"IF('Prezenční listina'!F46=0,\"\",'Prezenční listina'!F46)","v":12},{"$f":"IF('Prezenční listina'!F46=0,\"\",'Prezenční listina'!B46)","v":"Pivec"},{"$f":"IF('Prezenční listina'!F46=0,\"\",'Prezenční listina'!C46)","v":"Jan"},{"$f":"IF('Prezenční listina'!F46=0,\"\",'Prezenční listina'!D46)","v":1981},{"$f":"IF('Prezenční listina'!F46=0,\"\",'Prezenční listina'!E46)","v":"Digitor.cz"},{"$f":"IF('Prezenční listina'!F46=0,\"\",'Prezenční listina'!H46)","v":"A"}]
[11,{"$f":"IF('Prezenční listina'!F19=0,\"\",'Prezenční listina'!F19)","v":13},{"$f":"IF('Prezenční listina'!F19=0,\"\",'Prezenční listina'!B19)","v":"Martincová"},{"$f":"IF('Prezenční listina'!F19=0,\"\",'Prezenční listina'!C19)","v":"Ivana"},{"$f":"IF('Prezenční listina'!F19=0,\"\",'Prezenční listina'!D19)","v":1963},{"$f":"IF('Prezenční listina'!F19=0,\"\",'Prezenční listina'!E19)","v":"AC Moravská Slavia Brno"},{"$f":"IF('Prezenční listina'!F19=0,\"\",'Prezenční listina'!H19)","v":"H"}]
[12,{"$f":"IF('Prezenční listina'!F38=0,\"\",'Prezenční listina'!F38)","v":14},{"$f":"IF('Prezenční listina'!F38=0,\"\",'Prezenční listina'!B38)","v":"Zouhar"},{"$f":"IF('Prezenční listina'!F38=0,\"\",'Prezenční listina'!C38)","v":"Libor"},{"$f":"IF('Prezenční listina'!F38=0,\"\",'Prezenční listina'!D38)","v":1958},{"$f":"IF('Prezenční listina'!F38=0,\"\",'Prezenční listina'!E38)","v":"Brno-Líšeň"},{"$f":"IF('Prezenční listina'!F38=0,\"\",'Prezenční listina'!H38)","v":"C"}]
[13,{"$f":"IF('Prezenční listina'!F28=0,\"\",'Prezenční listina'!F28)","v":17},{"$f":"IF('Prezenční listina'!F28=0,\"\",'Prezenční listina'!B28)","v":"Ptáček"},{"$f":"IF('Prezenční listina'!F28=0,\"\",'Prezenční listina'!C28)","v":"Michal"},{"$f":"IF('Prezenční listina'!F28=0,\"\",'Prezenční listina'!D28)","v":1986},{"$f":"IF('Prezenční listina'!F28=0,\"\",'Prezenční listina'!E28)","v":"člen nadšenců parku Lužánky"},{"$f":"IF('Prezenční listina'!F28=0,\"\",'Prezenční listina'!H28)","v":"A"}]
[14,{"$f":"IF('Prezenční listina'!F50=0,\"\",'Prezenční listina'!F50)","v":18},{"$f":"IF('Prezenční listina'!F50=0,\"\",'Prezenční listina'!B50)","v":"Benko"},{"$f":"IF('Prezenční listina'!F50=0,\"\",'Prezenční listina'!C50)","v":"Jan"},{"$f":"IF('Prezenční listina'!F50=0,\"\",'Prezenční listina'!D50)","v":1974},{"$f":"IF('Prezenční listina'!F50=0,\"\",'Prezenční listina'!E50)","v":"GOMANGO Litomyšl"},{"$f":"IF('Prezenční listina'!F50=0,\"\",'Prezenční listina'!H50)","v":"B"}]
[15,{"$f":"IF('Prezenční listina'!F47=0,\"\",'Prezenční listina'!F47)","v":19},{"$f":"IF('Prezenční listina'!F47=0,\"\",'Prezenční listina'!B47)","v":"Czerný"},{"$f":"IF('Prezenční listina'!F47=0,\"\",'Prezenční listina'!C47)","v":"Pavel"},{"$f":"IF('Prezenční listina'!F47=0,\"\",'Prezenční listina'!D47)","v":1981},{"$f":"IF('Prezenční listina'!F47=0,\"\",'Prezenční listina'!E47)","v":"BKB"},{"$f":"IF('Prezenční listina'!F47=0,\"\",'Prezenční listina'!H47)","v":"A"}]
[16,{"$f":"IF('Prezenční listina'!F32=0,\"\",'Prezenční listina'!F32)","v":21},{"$f":"IF('Prezenční listina'!F32=0,\"\",'Prezenční listina'!B32)","v":"Stöger"},{"$f":"IF('Prezenční listina'!F32=0,\"\",'Prezenční listina'!C32)","v":"Karel"},{"$f":"IF('Prezenční listina'!F32=0,\"\",'Prezenční listina'!D32)","v":1976},{"$f":"IF('Prezenční listina'!F32=0,\"\",'Prezenční listina'!E32)","v":"fKlidu Brno"},{"$f":"IF('Prezenční listina'!F32=0,\"\",'Prezenční listina'!H32)","v":"B"}]
[17,{"$f":"IF('Prezenční listina'!F48=0,\"\",'Prezenční listina'!F48)","v":22},{"$f":"IF('Prezenční listina'!F48=0,\"\",'Prezenční listina'!B48)","v":"Ďurdiaková"},{"$f":"IF('Prezenční listina'!F48=0,\"\",'Prezenční listina'!C48)","v":"Tereza"},{"$f":"IF('Prezenční listina'!F48=0,\"\",'Prezenční listina'!D48)","v":1991},{"$f":"IF('Prezenční listina'!F48=0,\"\",'Prezenční listina'!E48)","v":"AK OLYMP Brno"},{"$f":"IF('Prezenční listina'!F48=0,\"\",'Prezenční listina'!H48)","v":"F"}]
[18,{"$f":"IF('Prezenční listina'!F35=0,\"\",'Prezenční listina'!F35)","v":23},{"$f":"IF('Prezenční listina'!F35=0,\"\",'Prezenční listina'!B35)","v":"Šorf"},{"$f":"IF('Prezenční listina'!F35=0,\"\",'Prezenční listina'!C35)","v":"Ivo"},{"$f":"IF('Prezenční listina'!F35=0,\"\",'Prezenční listina'!D35)","v":1975},{"$f":"IF('Prezenční listina'!F35=0,\"\",'Prezenční listina'!E35)","v":"ABND Racing Team Bystřice n. P."},{"$f":"IF('Prezenční listina'!F35=0,\"\",'Prezenční listina'!H35)","v":"B"}]
[19,{"$f":"IF('Prezenční listina'!F49=0,\"\",'Prezenční listina'!F49)","v":24},{"$f":"IF('Prezenční listina'!F49=0,\"\",'Prezenční listina'!B49)","v":"Vrba"},{"$f":"IF('Prezenční listina'!F49=0,\"\",'Prezenční listina'!C49)","v":"Tomáš"},{"$f":"IF('Prezenční listina'!F49=0,\"\",'Prezenční listina'!D49)","v":1986},{"$f":"IF('Prezenční listina'!F49=0,\"\",'Prezenční listina'!E49)","v":"Bystré"},{"$f":"IF('Prezenční listina'!F49=0,\"\",'Prezenční listina'!H49)","v":"A"}]
[20,{"$f":"IF('Prezenční listina'!F33=0,\"\",'Prezenční listina'!F33)","v":26},{"$f":"IF('Prezenční listina'!F33=0,\"\",'Prezenční listina'!B33)","v":"Šedová"},{"$f":"IF('Prezenční listina'!F33=0,\"\",'Prezenční listina'!C33)","v":"Věra"},{"$f":"IF('Prezenční listina'!F33=0,\"\",'Prezenční listina'!D33)","v":1964},{"$f":"IF('Prezenční listina'!F33=0,\"\",'Prezenční listina'!E33)","v":"Praha"},{"$f":"IF('Prezenční listina'!F33=0,\"\",'Prezenční listina'!H33)","v":"H"}]
[21,{"$f":"IF('Prezenční listina'!F39=0,\"\",'Prezenční listina'!F39)","v":27},{"$f":"IF('Prezenční listina'!F39=0,\"\",'Prezenční listina'!B39)","v":"Žličař"},{"$f":"IF('Prezenční listina'!F39=0,\"\",'Prezenční listina'!C39)","v":"Karel"},{"$f":"IF('Prezenční listina'!F39=0,\"\",'Prezenční listina'!D39)","v":1977},{"$f":"IF('Prezenční listina'!F39=0,\"\",'Prezenční listina'!E39)","v":"Železárny Štěpánov s.r.o"},{"$f":"IF('Prezenční listina'!F39=0,\"\",'Prezenční listina'!H39)","v":"B"}]
[22,{"$f":"IF('Prezenční listina'!F29=0,\"\",'Prezenční listina'!F29)","v":28},{"$f":"IF('Prezenční listina'!F29=0,\"\",'Prezenční listina'!B29)","v":"Pučálka"},{"$f":"IF('Prezenční listina'!F29=0,\"\",'Prezenční listina'!C29)","v":"Radek"},{"$f":"IF('Prezenční listina'!F29=0,\"\",'Prezenční listina'!D29)","v":1973},{"$f":"IF('Prezenční listina'!F29=0,\"\",'Prezenční listina'!E29)","v":"Železárny Štěpánov s.r.o"},{"$f":"IF('Prezenční listina'!F29=0,\"\",'Prezenční listina'!H29)","v":"B"}]
[23,{"$f":"IF('Prezenční listina'!F15=0,\"\",'Prezenční listina'!F15)","v":30},{"$f":"IF('Prezenční listina'!F15=0,\"\",'Prezenční listina'!B15)","v":"Křípalová"},{"$f":"IF('Prezenční listina'!F15=0,\"\",'Prezenční listina'!C15)","v":"Renata"},{"$f":"IF('Prezenční listina'!F15=0,\"\",'Prezenční listina'!D15)","v":1983},{"$f":"IF('Prezenční listina'!F15=0,\"\",'Prezenční listina'!E15)","v":"Třebíč"},{"$f":"IF('Prezenční listina'!F15=0,\"\",'Prezenční listina'!H15)","v":"F"}]
[24,{"$f":"IF('Prezenční listina'!F34=0,\"\",'Prezenční listina'!F34)","v":31},{"$f":"IF('Prezenční listina'!F34=0,\"\",'Prezenční listina'!B34)","v":"Škvařilová"},{"$f":"IF('Prezenční listina'!F34=0,\"\",'Prezenční listina'!C34)","v":"Eva"},{"$f":"IF('Prezenční listina'!F34=0,\"\",'Prezenční listina'!D34)","v":1973},{"$f":"IF('Prezenční listina'!F34=0,\"\",'Prezenční listina'!E34)","v":"RSFK Říčany"},{"$f":"IF('Prezenční listina'!F34=0,\"\",'Prezenční listina'!H34)","v":"G"}]
[25,{"$f":"IF('Prezenční listina'!F51=0,\"\",'Prezenční listina'!F51)","v":33},{"$f":"IF('Prezenční listina'!F51=0,\"\",'Prezenční listina'!B51)","v":"Klíma"},{"$f":"IF('Prezenční listina'!F51=0,\"\",'Prezenční listina'!C51)","v":"Miroslav"},{"$f":"IF('Prezenční listina'!F51=0,\"\",'Prezenční listina'!D51)","v":1975},{"$f":"IF('Prezenční listina'!F51=0,\"\",'Prezenční listina'!E51)","v":"Brno"},{"$f":"IF('Prezenční listina'!F51=0,\"\",'Prezenční listina'!H51)","v":"B"}]
[26,{"$f":"IF('Prezenční listina'!F52=0,\"\",'Prezenční listina'!F52)","v":34},{"$f":"IF('Prezenční listina'!F52=0,\"\",'Prezenční listina'!B52)","v":"Fanfrdla"},{"$f":"IF('Prezenční listina'!F52=0,\"\",'Prezenční listina'!C52)","v":"Dalimil"},{"$f":"IF('Prezenční listina'!F52=0,\"\",'Prezenční listina'!D52)","v":1973},{"$f":"IF('Prezenční listina'!F52=0,\"\",'Prezenční listina'!E52)","v":"Matyteam Brno"},{"$f":"IF('Prezenční listina'!F52=0,\"\",'Prezenční listina'!H52)","v":"B"}]
[27,{"$f":"IF('Prezenční listina'!F3=0,\"\",'Prezenční listina'!F3)","v":35},{"$f":"IF('Prezenční listina'!F3=0,\"\",'Prezenční listina'!B3)","v":"Bartoňková"},{"$f":"IF('Prezenční listina'!F3=0,\"\",'Prezenční listina'!C3)","v":"Nina"},{"$f":"IF('Prezenční listina'!F3=0,\"\",'Prezenční listina'!D3)","v":1990},{"$f":"IF('Prezenční listina'!F3=0,\"\",'Prezenční listina'!E3)","v":"Fan Brno"},{"$f":"IF('Prezenční listina'!F3=0,\"\",'Prezenční listina'!H3)","v":"F"}]
[28,{"$f":"IF('Prezenční listina'!F53=0,\"\",'Prezenční listina'!F53)","v":36},{"$f":"IF('Prezenční listina'!F53=0,\"\",'Prezenční listina'!B53)","v":"Fanfrdla"},{"$f":"IF('Prezenční listina'!F53=0,\"\",'Prezenční listina'!C53)","v":"Ctirad"},{"$f":"IF('Prezenční listina'!F53=0,\"\",'Prezenční listina'!D53)","v":1974},{"$f":"IF('Prezenční listina'!F53=0,\"\",'Prezenční listina'!E53)","v":"Silůvky"},{"$f":"IF('Prezenční listina'!F53=0,\"\",'Prezenční listina'!H53)","v":"B"}]
[29,{"$f":"IF('Prezenční listina'!F54=0,\"\",'Prezenční listina'!F54)","v":37},{"$f":"IF('Prezenční listina'!F54=0,\"\",'Prezenční listina'!B54)","v":"Bělehrádek"},{"$f":"IF('Prezenční listina'!F54=0,\"\",'Prezenční listina'!C54)","v":"Pavel"},{"$f":"IF('Prezenční listina'!F54=0,\"\",'Prezenční listina'!D54)","v":1958},{"$f":"IF('Prezenční listina'!F54=0,\"\",'Prezenční listina'!E54)","v":"TJ Čolek"},{"$f":"IF('Prezenční listina'!F54=0,\"\",'Prezenční listina'!H54)","v":"C"}]
[30,{"$f":"IF('Prezenční listina'!F55=0,\"\",'Prezenční listina'!F55)","v":38},{"$f":"IF('Prezenční listina'!F55=0,\"\",'Prezenční listina'!B55)","v":"Chromý"},{"$f":"IF('Prezenční listina'!F55=0,\"\",'Prezenční listina'!C55)","v":"Bořivoj"},{"$f":"IF('Prezenční listina'!F55=0,\"\",'Prezenční listina'!D55)","v":1953},{"$f":"IF('Prezenční listina'!F55=0,\"\",'Prezenční listina'!E55)","v":"Tišnov"},{"$f":"IF('Prezenční listina'!F55=0,\"\",'Prezenční listina'!H55)","v":"D"}]
[31,{"$f":"IF('Prezenční listina'!F40=0,\"\",'Prezenční listina'!F40)","v":40},{"$f":"IF('Prezenční listina'!F40=0,\"\",'Prezenční listina'!B40)","v":"Hanslová"},{"$f":"IF('Prezenční listina'!F40=0,\"\",'Prezenční listina'!C40)","v":"Lenka"},{"$f":"IF('Prezenční listina'!F40=0,\"\",'Prezenční listina'!D40)","v":1973},{"$f":"IF('Prezenční listina'!F40=0,\"\",'Prezenční listina'!E40)","v":"Žďár nad Sázavou"},{"$f":"IF('Prezenční listina'!F40=0,\"\",'Prezenční listina'!H40)","v":"G"}]
[32,{"$f":"IF('Prezenční listina'!F16=0,\"\",'Prezenční listina'!F16)","v":41},{"$f":"IF('Prezenční listina'!F16=0,\"\",'Prezenční listina'!B16)","v":"Křižovičová"},{"$f":"IF('Prezenční listina'!F16=0,\"\",'Prezenční listina'!C16)","v":"Hana"},{"$f":"IF('Prezenční listina'!F16=0,\"\",'Prezenční listina'!D16)","v":1971},{"$f":"IF('Prezenční listina'!F16=0,\"\",'Prezenční listina'!E16)","v":"Nové Město na Moravě"},{"$f":"IF('Prezenční listina'!F16=0,\"\",'Prezenční listina'!H16)","v":"H"}]
[33,{"$f":"IF('Prezenční listina'!F18=0,\"\",'Prezenční listina'!F18)","v":42},{"$f":"IF('Prezenční listina'!F18=0,\"\",'Prezenční listina'!B18)","v":"Mareš"},{"$f":"IF('Prezenční listina'!F18=0,\"\",'Prezenční listina'!C18)","v":"Bohumil"},{"$f":"IF('Prezenční listina'!F18=0,\"\",'Prezenční listina'!D18)","v":1951},{"$f":"IF('Prezenční listina'!F18=0,\"\",'Prezenční listina'!E18)","v":"LEAR Brno"},{"$f":"IF('Prezenční listina'!F18=0,\"\",'Prezenční listina'!H18)","v":"D"}]
[34,{"$f":"IF('Prezenční listina'!F30=0,\"\",'Prezenční listina'!F30)","v":44},{"$f":"IF('Prezenční listina'!F30=0,\"\",'Prezenční listina'!B30)","v":"Řezníček"},{"$f":"IF('Prezenční listina'!F30=0,\"\",'Prezenční listina'!C30)","v":"Roman"},{"$f":"IF('Prezenční listina'!F30=0,\"\",'Prezenční listina'!D30)","v":1977},{"$f":"IF('Prezenční listina'!F30=0,\"\",'Prezenční listina'!E30)","v":"Žďár nad Sázavou"},{"$f":"IF('Prezenční listina'!F30=0,\"\",'Prezenční listina'!H30)","v":"B"}]
[35,{"$f":"IF('Prezenční listina'!F4=0,\"\",'Prezenční listina'!F4)","v":45},{"$f":"IF('Prezenční listina'!F4=0,\"\",'Prezenční listina'!B4)","v":"Bojanovská"},{"$f":"IF('Prezenční listina'!F4=0,\"\",'Prezenční listina'!C4)","v":"Alena"},{"$f":"IF('Prezenční listina'!F4=0,\"\",'Prezenční listina'!D4)","v":1975},{"$f":"IF('Prezenční listina'!F4=0,\"\",'Prezenční listina'!E4)","v":"Žďár nad Sázavou"},{"$f":"IF('Prezenční listina'!F4=0,\"\",'Prezenční listina'!H4)","v":"G"}]
[36,{"$f":"IF('Prezenční listina'!F25=0,\"\",'Prezenční listina'!F25)","v":46},{"$f":"IF('Prezenční listina'!F25=0,\"\",'Prezenční listina'!B25)","v":"Pešáková"},{"$f":"IF('Prezenční listina'!F25=0,\"\",'Prezenční listina'!C25)","v":"Mirka"},{"$f":"IF('Prezenční listina'!F25=0,\"\",'Prezenční listina'!D25)","v":1985},{"$f":"IF('Prezenční listina'!F25=0,\"\",'Prezenční listina'!E25)","v":"AC Racers Tetčice"},{"$f":"IF('Prezenční listina'!F25=0,\"\",'Prezenční listina'!H25)","v":"F"}]
[37,{"$f":"IF('Prezenční listina'!F22=0,\"\",'Prezenční listina'!F22)","v":47},{"$f":"IF('Prezenční listina'!F22=0,\"\",'Prezenční listina'!B22)","v":"Novotný"},{"$f":"IF('Prezenční listina'!F22=0,\"\",'Prezenční listina'!C22)","v":"Petr"},{"$f":"IF('Prezenční listina'!F22=0,\"\",'Prezenční listina'!D22)","v":1965},{"$f":"IF('Prezenční listina'!F22=0,\"\",'Prezenční listina'!E22)","v":"AK Kuřim"},{"$f":"IF('Prezenční listina'!F22=0,\"\",'Prezenční listina'!H22)","v":"C"}]
[38,{"$f":"IF('Prezenční listina'!F56=0,\"\",'Prezenční listina'!F56)","v":48},{"$f":"IF('Prezenční listina'!F56=0,\"\",'Prezenční listina'!B56)","v":"Plekanec"},{"$f":"IF('Prezenční listina'!F56=0,\"\",'Prezenční listina'!C56)","v":"Juraj"},{"$f":"IF('Prezenční listina'!F56=0,\"\",'Prezenční listina'!D56)","v":1974},{"$f":"IF('Prezenční listina'!F56=0,\"\",'Prezenční listina'!E56)","v":"Brno"},{"$f":"IF('Prezenční listina'!F56=0,\"\",'Prezenční listina'!H56)","v":"B"}]
[39,{"$f":"IF('Prezenční listina'!F57=0,\"\",'Prezenční listina'!F57)","v":49},{"$f":"IF('Prezenční listina'!F57=0,\"\",'Prezenční listina'!B57)","v":"Ondráček"},{"$f":"IF('Prezenční listina'!F57=0,\"\",'Prezenční listina'!C57)","v":"Tomáš"},{"$f":"IF('Prezenční listina'!F57=0,\"\",'Prezenční listina'!D57)","v":1977},{"$f":"IF('Prezenční listina'!F57=0,\"\",'Prezenční listina'!E57)","v":"Brno"},{"$f":"IF('Prezenční listina'!F57=0,\"\",'Prezenční listina'!H57)","v":"B"}]
[40,{"$f":"IF('Prezenční listina'!F58=0,\"\",'Prezenční listina'!F58)","v":51},{"$f":"IF('Prezenční listina'!F58=0,\"\",'Prezenční listina'!B58)","v":"Dvořák"},{"$f":"IF('Prezenční listina'!F58=0,\"\",'Prezenční listina'!C58)","v":"Vojtěch"},{"$f":"IF('Prezenční listina'!F58=0,\"\",'Prezenční listina'!D58)","v":1974},{"$f":"IF('Prezenční listina'!F58=0,\"\",'Prezenční listina'!E58)","v":"Brno"},{"$f":"IF('Prezenční listina'!F58=0,\"\",'Prezenční listina'!H58)","v":"B"}]
[41,{"$f":"IF('Prezenční listina'!F59=0,\"\",'Prezenční listina'!F59)","v":54},{"$f":"IF('Prezenční listina'!F59=0,\"\",'Prezenční listina'!B59)","v":"Drózd"},{"$f":"IF('Prezenční listina'!F59=0,\"\",'Prezenční listina'!C59)","v":"Januš"},{"$f":"IF('Prezenční listina'!F59=0,\"\",'Prezenční listina'!D59)","v":1962},{"$f":"IF('Prezenční listina'!F59=0,\"\",'Prezenční listina'!E59)","v":"Velké Přílepy"},{"$f":"IF('Prezenční listina'!F59=0,\"\",'Prezenční listina'!H59)","v":"C"}]
[42,{"$f":"IF('Prezenční listina'!F37=0,\"\",'Prezenční listina'!F37)","v":56},{"$f":"IF('Prezenční listina'!F37=0,\"\",'Prezenční listina'!B37)","v":"Vlachová Hutová"},{"$f":"IF('Prezenční listina'!F37=0,\"\",'Prezenční listina'!C37)","v":"Eliška"},{"$f":"IF('Prezenční listina'!F37=0,\"\",'Prezenční listina'!D37)","v":1988},{"$f":"IF('Prezenční listina'!F37=0,\"\",'Prezenční listina'!E37)","v":"Brno"},{"$f":"IF('Prezenční listina'!F37=0,\"\",'Prezenční listina'!H37)","v":"F"}]
[43,{"$f":"IF('Prezenční listina'!F60=0,\"\",'Prezenční listina'!F60)","v":58},{"$f":"IF('Prezenční listina'!F60=0,\"\",'Prezenční listina'!B60)","v":"Benešová"},{"$f":"IF('Prezenční listina'!F60=0,\"\",'Prezenční listina'!C60)","v":"Marie"},{"$f":"IF('Prezenční listina'!F60=0,\"\",'Prezenční listina'!D60)","v":1982},{"$f":"IF('Prezenční listina'!F60=0,\"\",'Prezenční listina'!E60)","v":"Dolní Rožínka"},{"$f":"IF('Prezenční listina'!F60=0,\"\",'Prezenční listina'!H60)","v":"G"}]
[44,{"$f":"IF('Prezenční listina'!F61=0,\"\",'Prezenční listina'!F61)","v":60},{"$f":"IF('Prezenční listina'!F61=0,\"\",'Prezenční listina'!B61)","v":"Rokosová"},{"$f":"IF('Prezenční listina'!F61=0,\"\",'Prezenční listina'!C61)","v":"Ivana"},{"$f":"IF('Prezenční listina'!F61=0,\"\",'Prezenční listina'!D61)","v":1982},{"$f":"IF('Prezenční listina'!F61=0,\"\",'Prezenční listina'!E61)","v":"Polička"},{"$f":"IF('Prezenční listina'!F61=0,\"\",'Prezenční listina'!H61)","v":"G"}]
[45,{"$f":"IF('Prezenční listina'!F62=0,\"\",'Prezenční listina'!F62)","v":61},{"$f":"IF('Prezenční listina'!F62=0,\"\",'Prezenční listina'!B62)","v":"Nekuža"},{"$f":"IF('Prezenční listina'!F62=0,\"\",'Prezenční listina'!C62)","v":"Jiří"},{"$f":"IF('Prezenční listina'!F62=0,\"\",'Prezenční listina'!D62)","v":1951},{"$f":"IF('Prezenční listina'!F62=0,\"\",'Prezenční listina'!E62)","v":"RUNNERS Zbýšov"},{"$f":"IF('Prezenční listina'!F62=0,\"\",'Prezenční listina'!H62)","v":"D"}]
[46,{"$f":"IF('Prezenční listina'!F63=0,\"\",'Prezenční listina'!F63)","v":62},{"$f":"IF('Prezenční listina'!F63=0,\"\",'Prezenční listina'!B63)","v":"Tomek"},{"$f":"IF('Prezenční listina'!F63=0,\"\",'Prezenční listina'!C63)","v":"Pavel"},{"$f":"IF('Prezenční listina'!F63=0,\"\",'Prezenční listina'!D63)","v":1980},{"$f":"IF('Prezenční listina'!F63=0,\"\",'Prezenční listina'!E63)","v":"Brno"},{"$f":"IF('Prezenční listina'!F63=0,\"\",'Prezenční listina'!H63)","v":"A"}]
[47,{"$f":"IF('Prezenční listina'!F21=0,\"\",'Prezenční listina'!F21)","v":63},{"$f":"IF('Prezenční listina'!F21=0,\"\",'Prezenční listina'!B21)","v":"Münster"},{"$f":"IF('Prezenční listina'!F21=0,\"\",'Prezenční listina'!C21)","v":"Libor"},{"$f":"IF('Prezenční listina'!F21=0,\"\",'Prezenční listina'!D21)","v":1966},{"$f":"IF('Prezenční listina'!F21=0,\"\",'Prezenční listina'!E21)","v":"Blansko"},{"$f":"IF('Prezenční listina'!F21=0,\"\",'Prezenční listina'!H21)","v":"C"}]
[48,{"$f":"IF('Prezenční listina'!F64=0,\"\",'Prezenční listina'!F64)","v":64},{"$f":"IF('Prezenční listina'!F64=0,\"\",'Prezenční listina'!B64)","v":"Kohut"},{"$f":"IF('Prezenční listina'!F64=0,\"\",'Prezenční listina'!C64)","v":"Jan"},{"$f":"IF('Prezenční listina'!F64=0,\"\",'Prezenční listina'!D64)","v":1985},{"$f":"IF('Prezenční listina'!F64=0,\"\",'Prezenční listina'!E64)","v":"MAX-TRAINING.CZ"},{"$f":"IF('Prezenční listina'!F64=0,\"\",'Prezenční listina'!H64)","v":"A"}]
[49,{"$f":"IF('Prezenční listina'!F27=0,\"\",'Prezenční listina'!F27)","v":67},{"$f":"IF('Prezenční listina'!F27=0,\"\",'Prezenční listina'!B27)","v":"Podmelová"},{"$f":"IF('Prezenční listina'!F27=0,\"\",'Prezenční listina'!C27)","v":"Vilma"},{"$f":"IF('Prezenční listina'!F27=0,\"\",'Prezenční listina'!D27)","v":1962},{"$f":"IF('Prezenční listina'!F27=0,\"\",'Prezenční listina'!E27)","v":"AC Moravská Slavia Brno"},{"$f":"IF('Prezenční listina'!F27=0,\"\",'Prezenční listina'!H27)","v":"H"}]
[50,{"$f":"IF('Prezenční listina'!F5=0,\"\",'Prezenční listina'!F5)","v":69},{"$f":"IF('Prezenční listina'!F5=0,\"\",'Prezenční listina'!B5)","v":"Faja"},{"$f":"IF('Prezenční listina'!F5=0,\"\",'Prezenční listina'!C5)","v":"Ondřej"},{"$f":"IF('Prezenční listina'!F5=0,\"\",'Prezenční listina'!D5)","v":1976},{"$f":"IF('Prezenční listina'!F5=0,\"\",'Prezenční listina'!E5)","v":"Brno"},{"$f":"IF('Prezenční listina'!F5=0,\"\",'Prezenční listina'!H5)","v":"B"}]
[51,{"$f":"IF('Prezenční listina'!F65=0,\"\",'Prezenční listina'!F65)","v":70},{"$f":"IF('Prezenční listina'!F65=0,\"\",'Prezenční listina'!B65)","v":"Kalich"},{"$f":"IF('Prezenční listina'!F65=0,\"\",'Prezenční listina'!C65)","v":"Daniel"},{"$f":"IF('Prezenční listina'!F65=0,\"\",'Prezenční listina'!D65)","v":1982},{"$f":"IF('Prezenční listina'!F65=0,\"\",'Prezenční listina'!E65)","v":"Brno"},{"$f":"IF('Prezenční listina'!F65=0,\"\",'Prezenční listina'!H65)","v":"A"}]
[52,{"$f":"IF('Prezenční listina'!F20=0,\"\",'Prezenční listina'!F20)","v":72},{"$f":"IF('Prezenční listina'!F20=0,\"\",'Prezenční listina'!B20)","v":"Mlčáková"},{"$f":"IF('Prezenční listina'!F20=0,\"\",'Prezenční listina'!C20)","v":"Hana"},{"$f":"IF('Prezenční listina'!F20=0,\"\",'Prezenční listina'!D20)","v":1981},{"$f":"IF('Prezenční listina'!F20=0,\"\",'Prezenční listina'!E20)","v":"Strážnice"},{"$f":"IF('Prezenční listina'!F20=0,\"\",'Prezenční listina'!H20)","v":"G"}]
[53,{"$f":"IF('Prezenční listina'!F11=0,\"\",'Prezenční listina'!F11)","v":73},{"$f":"IF('Prezenční listina'!F11=0,\"\",'Prezenční listina'!B11)","v":"Kalich"},{"$f":"IF('Prezenční listina'!F11=0,\"\",'Prezenční listina'!C11)","v":"Radim"},{"$f":"IF('Prezenční listina'!F11=0,\"\",'Prezenční listina'!D11)","v":1985},{"$f":"IF('Prezenční listina'!F11=0,\"\",'Prezenční listina'!E11)","v":"Odranec"},{"$f":"IF('Prezenční listina'!F11=0,\"\",'Prezenční listina'!H11)","v":"A"}]
[54,{"$f":"IF('Prezenční listina'!F14=0,\"\",'Prezenční listina'!F14)","v":75},{"$f":"IF('Prezenční listina'!F14=0,\"\",'Prezenční listina'!B14)","v":"Kratochvíl"},{"$f":"IF('Prezenční listina'!F14=0,\"\",'Prezenční listina'!C14)","v":"Jaroslav"},{"$f":"IF('Prezenční listina'!F14=0,\"\",'Prezenční listina'!D14)","v":1977},{"$f":"IF('Prezenční listina'!F14=0,\"\",'Prezenční listina'!E14)","v":"SDH Hluboké"},{"$f":"IF('Prezenční listina'!F14=0,\"\",'Prezenční listina'!H14)","v":"B"}]
[55,{"$f":"IF('Prezenční listina'!F44=0,\"\",'Prezenční listina'!F44)","v":76},{"$f":"IF('Prezenční listina'!F44=0,\"\",'Prezenční listina'!B44)","v":"Koutský"},{"$f":"IF('Prezenční listina'!F44=0,\"\",'Prezenční listina'!C44)","v":"Tomáš"},{"$f":"IF('Prezenční listina'!F44=0,\"\",'Prezenční listina'!D44)","v":1987},{"$f":"IF('Prezenční listina'!F44=0,\"\",'Prezenční listina'!E44)","v":"Ledová stěna Vír"},{"$f":"IF('Prezenční listina'!F44=0,\"\",'Prezenční listina'!H44)","v":"A"}]
[56,{"$f":"IF('Prezenční listina'!F66=0,\"\",'Prezenční listina'!F66)","v":77},{"$f":"IF('Prezenční listina'!F66=0,\"\",'Prezenční listina'!B66)","v":"Krajča"},{"$f":"IF('Prezenční listina'!F66=0,\"\",'Prezenční listina'!C66)","v":"Rudy"},{"$f":"IF('Prezenční listina'!F66=0,\"\",'Prezenční listina'!D66)","v":1965},{"$f":"IF('Prezenční listina'!F66=0,\"\",'Prezenční listina'!E66)","v":"rarecacti.com"},{"$f":"IF('Prezenční listina'!F66=0,\"\",'Prezenční listina'!H66)","v":"C"}]
[57,{"$f":"IF('Prezenční listina'!F7=0,\"\",'Prezenční listina'!F7)","v":79},{"$f":"IF('Prezenční listina'!F7=0,\"\",'Prezenční listina'!B7)","v":"Glier"},{"$f":"IF('Prezenční listina'!F7=0,\"\",'Prezenční listina'!C7)","v":"Michal"},{"$f":"IF('Prezenční listina'!F7=0,\"\",'Prezenční listina'!D7)","v":1982},{"$f":"IF('Prezenční listina'!F7=0,\"\",'Prezenční listina'!E7)","v":"SDH Doubravník"},{"$f":"IF('Prezenční listina'!F7=0,\"\",'Prezenční listina'!H7)","v":"A"}]
[58,{"$f":"IF('Prezenční listina'!F6=0,\"\",'Prezenční listina'!F6)","v":80},{"$f":"IF('Prezenční listina'!F6=0,\"\",'Prezenční listina'!B6)","v":"Glier"},{"$f":"IF('Prezenční listina'!F6=0,\"\",'Prezenční listina'!C6)","v":"Miroslav"},{"$f":"IF('Prezenční listina'!F6=0,\"\",'Prezenční listina'!D6)","v":1949},{"$f":"IF('Prezenční listina'!F6=0,\"\",'Prezenční listina'!E6)","v":"Ústí nad Labem"},{"$f":"IF('Prezenční listina'!F6=0,\"\",'Prezenční listina'!H6)","v":"D"}]
[59,{"$f":"IF('Prezenční listina'!F23=0,\"\",'Prezenční listina'!F23)","v":82},{"$f":"IF('Prezenční listina'!F23=0,\"\",'Prezenční listina'!B23)","v":"Orálek"},{"$f":"IF('Prezenční listina'!F23=0,\"\",'Prezenční listina'!C23)","v":"Daniel"},{"$f":"IF('Prezenční listina'!F23=0,\"\",'Prezenční listina'!D23)","v":1970},{"$f":"IF('Prezenční listina'!F23=0,\"\",'Prezenční listina'!E23)","v":"behejbrno.com"},{"$f":"IF('Prezenční listina'!F23=0,\"\",'Prezenční listina'!H23)","v":"B"}]
[60,{"$f":"IF('Prezenční listina'!F67=0,\"\",'Prezenční listina'!F67)","v":83},{"$f":"IF('Prezenční listina'!F67=0,\"\",'Prezenční listina'!B67)","v":"Zourek"},{"$f":"IF('Prezenční listina'!F67=0,\"\",'Prezenční listina'!C67)","v":"Karel"},{"$f":"IF('Prezenční listina'!F67=0,\"\",'Prezenční listina'!D67)","v":1959},{"$f":"IF('Prezenční listina'!F67=0,\"\",'Prezenční listina'!E67)","v":"Bedřichovice"},{"$f":"IF('Prezenční listina'!F67=0,\"\",'Prezenční listina'!H67)","v":"C"}]
[61,{"$f":"IF('Prezenční listina'!F31=0,\"\",'Prezenční listina'!F31)","v":84},{"$f":"IF('Prezenční listina'!F31=0,\"\",'Prezenční listina'!B31)","v":"Sedláček"},{"$f":"IF('Prezenční listina'!F31=0,\"\",'Prezenční listina'!C31)","v":"Svatopluk"},{"$f":"IF('Prezenční listina'!F31=0,\"\",'Prezenční listina'!D31)","v":1957},{"$f":"IF('Prezenční listina'!F31=0,\"\",'Prezenční listina'!E31)","v":"AC Moravská Slavia Brno"},{"$f":"IF('Prezenční listina'!F31=0,\"\",'Prezenční listina'!H31)","v":"D"}]
[62,{"$f":"IF('Prezenční listina'!F68=0,\"\",'Prezenční listina'!F68)","v":85},{"$f":"IF('Prezenční listina'!F68=0,\"\",'Prezenční listina'!B68)","v":"Příhoda"},{"$f":"IF('Prezenční listina'!F68=0,\"\",'Prezenční listina'!C68)","v":"Jan"},{"$f":"IF('Prezenční listina'!F68=0,\"\",'Prezenční listina'!D68)","v":1983},{"$f":"IF('Prezenční listina'!F68=0,\"\",'Prezenční listina'!E68)","v":"Ždánice"},{"$f":"IF('Prezenční listina'!F68=0,\"\",'Prezenční listina'!H68)","v":"A"}]
[63,{"$f":"IF('Prezenční listina'!F69=0,\"\",'Prezenční listina'!F69)","v":86},{"$f":"IF('Prezenční listina'!F69=0,\"\",'Prezenční listina'!B69)","v":"Benc"},{"$f":"IF('Prezenční listina'!F69=0,\"\",'Prezenční listina'!C69)","v":"Karel"},{"$f":"IF('Prezenční listina'!F69=0,\"\",'Prezenční listina'!D69)","v":1975},{"$f":"IF('Prezenční listina'!F69=0,\"\",'Prezenční listina'!E69)","v":"Pivonice"},{"$f":"IF('Prezenční listina'!F69=0,\"\",'Prezenční listina'!H69)","v":"B"}]
["",{"$f":"IF('Prezenční listina'!F13=0,\"\",'Prezenční listina'!F13)","v":""},{"$f":"IF('Prezenční listina'!F13=0,\"\",'Prezenční listina'!B13)","v":""},{"$f":"IF('Prezenční listina'!F13=0,\"\",'Prezenční listina'!C13)","v":""},{"$f":"IF('Prezenční listina'!F13=0,\"\",'Prezenční listina'!D13)","v":""},{"$f":"IF('Prezenční listina'!F13=0,\"\",'Prezenční listina'!E13)","v":""},{"$f":"IF('Prezenční listina'!F13=0,\"\",'Prezenční listina'!H13)","v":""}]
["",{"$f":"IF('Prezenční listina'!F17=0,\"\",'Prezenční listina'!F17)","v":""},{"$f":"IF('Prezenční listina'!F17=0,\"\",'Prezenční listina'!B17)","v":""},{"$f":"IF('Prezenční listina'!F17=0,\"\",'Prezenční listina'!C17)","v":""},{"$f":"IF('Prezenční listina'!F17=0,\"\",'Prezenční listina'!D17)","v":""},{"$f":"IF('Prezenční listina'!F17=0,\"\",'Prezenční listina'!E17)","v":""},{"$f":"IF('Prezenční listina'!F17=0,\"\",'Prezenční listina'!H17)","v":""}]
[{"$f":"IF(C70=\"\",\"\",A69+1)","v":""},{"$f":"IF('Prezenční listina'!F24=0,\"\",'Prezenční listina'!F24)","v":""},{"$f":"IF('Prezenční listina'!F24=0,\"\",'Prezenční listina'!B24)","v":""},{"$f":"IF('Prezenční listina'!F24=0,\"\",'Prezenční listina'!C24)","v":""},{"$f":"IF('Prezenční listina'!F24=0,\"\",'Prezenční listina'!D24)","v":""},{"$f":"IF('Prezenční listina'!F24=0,\"\",'Prezenční listina'!E24)","v":""},{"$f":"IF('Prezenční listina'!F24=0,\"\",'Prezenční listina'!H24)","v":""}]
["",{"$f":"IF('Prezenční listina'!F26=0,\"\",'Prezenční listina'!F26)","v":""},{"$f":"IF('Prezenční listina'!F26=0,\"\",'Prezenční listina'!B26)","v":""},{"$f":"IF('Prezenční listina'!F26=0,\"\",'Prezenční listina'!C26)","v":""},{"$f":"IF('Prezenční listina'!F26=0,\"\",'Prezenční listina'!D26)","v":""},{"$f":"IF('Prezenční listina'!F26=0,\"\",'Prezenční listina'!E26)","v":""},{"$f":"IF('Prezenční listina'!F26=0,\"\",'Prezenční listina'!H26)","v":""}]
["",{"$f":"IF('Prezenční listina'!F70=0,\"\",'Prezenční listina'!F70)","v":""},{"$f":"IF('Prezenční listina'!F70=0,\"\",'Prezenční listina'!B70)","v":""},{"$f":"IF('Prezenční listina'!F70=0,\"\",'Prezenční listina'!C70)","v":""},{"$f":"IF('Prezenční listina'!F70=0,\"\",'Prezenční listina'!D70)","v":""},{"$f":"IF('Prezenční listina'!F70=0,\"\",'Prezenční listina'!E70)","v":""},{"$f":"IF('Prezenční listina'!F70=0,\"\",'Prezenční listina'!H70)","v":""}]
["",{"$f":"IF('Prezenční listina'!F71=0,\"\",'Prezenční listina'!F71)","v":""},{"$f":"IF('Prezenční listina'!F71=0,\"\",'Prezenční listina'!B71)","v":""},{"$f":"IF('Prezenční listina'!F71=0,\"\",'Prezenční listina'!C71)","v":""},{"$f":"IF('Prezenční listina'!F71=0,\"\",'Prezenční listina'!D71)","v":""},{"$f":"IF('Prezenční listina'!F71=0,\"\",'Prezenční listina'!E71)","v":""},{"$f":"IF('Prezenční listina'!F71=0,\"\",'Prezenční listina'!H71)","v":""}]
["",{"$f":"IF('Prezenční listina'!F72=0,\"\",'Prezenční listina'!F72)","v":""},{"$f":"IF('Prezenční listina'!F72=0,\"\",'Prezenční listina'!B72)","v":""},{"$f":"IF('Prezenční listina'!F72=0,\"\",'Prezenční listina'!C72)","v":""},{"$f":"IF('Prezenční listina'!F72=0,\"\",'Prezenční listina'!D72)","v":""},{"$f":"IF('Prezenční listina'!F72=0,\"\",'Prezenční listina'!E72)","v":""},{"$f":"IF('Prezenční listina'!F72=0,\"\",'Prezenční listina'!H72)","v":""}]
["",{"$f":"IF('Prezenční listina'!F73=0,\"\",'Prezenční listina'!F73)","v":""},{"$f":"IF('Prezenční listina'!F73=0,\"\",'Prezenční listina'!B73)","v":""},{"$f":"IF('Prezenční listina'!F73=0,\"\",'Prezenční listina'!C73)","v":""},{"$f":"IF('Prezenční listina'!F73=0,\"\",'Prezenční listina'!D73)","v":""},{"$f":"IF('Prezenční listina'!F73=0,\"\",'Prezenční listina'!E73)","v":""},{"$f":"IF('Prezenční listina'!F73=0,\"\",'Prezenční listina'!H73)","v":""}]
["",{"$f":"IF('Prezenční listina'!F74=0,\"\",'Prezenční listina'!F74)","v":""},{"$f":"IF('Prezenční listina'!F74=0,\"\",'Prezenční listina'!B74)","v":""},{"$f":"IF('Prezenční listina'!F74=0,\"\",'Prezenční listina'!C74)","v":""},{"$f":"IF('Prezenční listina'!F74=0,\"\",'Prezenční listina'!D74)","v":""},{"$f":"IF('Prezenční listina'!F74=0,\"\",'Prezenční listina'!E74)","v":""},{"$f":"IF('Prezenční listina'!F74=0,\"\",'Prezenční listina'!H74)","v":""}]
["",{"$f":"IF('Prezenční listina'!F75=0,\"\",'Prezenční listina'!F75)","v":""},{"$f":"IF('Prezenční listina'!F75=0,\"\",'Prezenční listina'!B75)","v":""},{"$f":"IF('Prezenční listina'!F75=0,\"\",'Prezenční listina'!C75)","v":""},{"$f":"IF('Prezenční listina'!F75=0,\"\",'Prezenční listina'!D75)","v":""},{"$f":"IF('Prezenční listina'!F75=0,\"\",'Prezenční listina'!E75)","v":""},{"$f":"IF('Prezenční listina'!F75=0,\"\",'Prezenční listina'!H75)","v":""}]
["",{"$f":"IF('Prezenční listina'!F76=0,\"\",'Prezenční listina'!F76)","v":""},{"$f":"IF('Prezenční listina'!F76=0,\"\",'Prezenční listina'!B76)","v":""},{"$f":"IF('Prezenční listina'!F76=0,\"\",'Prezenční listina'!C76)","v":""},{"$f":"IF('Prezenční listina'!F76=0,\"\",'Prezenční listina'!D76)","v":""},{"$f":"IF('Prezenční listina'!F76=0,\"\",'Prezenční listina'!E76)","v":""},{"$f":"IF('Prezenční listina'!F76=0,\"\",'Prezenční listina'!H76)","v":""}]
["",{"$f":"IF('Prezenční listina'!F77=0,\"\",'Prezenční listina'!F77)","v":""},{"$f":"IF('Prezenční listina'!F77=0,\"\",'Prezenční listina'!B77)","v":""},{"$f":"IF('Prezenční listina'!F77=0,\"\",'Prezenční listina'!C77)","v":""},{"$f":"IF('Prezenční listina'!F77=0,\"\",'Prezenční listina'!D77)","v":""},{"$f":"IF('Prezenční listina'!F77=0,\"\",'Prezenční listina'!E77)","v":""},{"$f":"IF('Prezenční listina'!F77=0,\"\",'Prezenční listina'!H77)","v":""}]
["",{"$f":"IF('Prezenční listina'!F78=0,\"\",'Prezenční listina'!F78)","v":""},{"$f":"IF('Prezenční listina'!F78=0,\"\",'Prezenční listina'!B78)","v":""},{"$f":"IF('Prezenční listina'!F78=0,\"\",'Prezenční listina'!C78)","v":""},{"$f":"IF('Prezenční listina'!F78=0,\"\",'Prezenční listina'!D78)","v":""},{"$f":"IF('Prezenční listina'!F78=0,\"\",'Prezenční listina'!E78)","v":""},{"$f":"IF('Prezenční listina'!F78=0,\"\",'Prezenční listina'!H78)","v":""}]
["",{"$f":"IF('Prezenční listina'!F79=0,\"\",'Prezenční listina'!F79)","v":""},{"$f":"IF('Prezenční listina'!F79=0,\"\",'Prezenční listina'!B79)","v":""},{"$f":"IF('Prezenční listina'!F79=0,\"\",'Prezenční listina'!C79)","v":""},{"$f":"IF('Prezenční listina'!F79=0,\"\",'Prezenční listina'!D79)","v":""},{"$f":"IF('Prezenční listina'!F79=0,\"\",'Prezenční listina'!E79)","v":""},{"$f":"IF('Prezenční listina'!F79=0,\"\",'Prezenční listina'!H79)","v":""}]
["",{"$f":"IF('Prezenční listina'!F80=0,\"\",'Prezenční listina'!F80)","v":""},{"$f":"IF('Prezenční listina'!F80=0,\"\",'Prezenční listina'!B80)","v":""},{"$f":"IF('Prezenční listina'!F80=0,\"\",'Prezenční listina'!C80)","v":""},{"$f":"IF('Prezenční listina'!F80=0,\"\",'Prezenční listina'!D80)","v":""},{"$f":"IF('Prezenční listina'!F80=0,\"\",'Prezenční listina'!E80)","v":""},{"$f":"IF('Prezenční listina'!F80=0,\"\",'Prezenční listina'!H80)","v":""}]
["",{"$f":"IF('Prezenční listina'!F81=0,\"\",'Prezenční listina'!F81)","v":""},{"$f":"IF('Prezenční listina'!F81=0,\"\",'Prezenční listina'!B81)","v":""},{"$f":"IF('Prezenční listina'!F81=0,\"\",'Prezenční listina'!C81)","v":""},{"$f":"IF('Prezenční listina'!F81=0,\"\",'Prezenční listina'!D81)","v":""},{"$f":"IF('Prezenční listina'!F81=0,\"\",'Prezenční listina'!E81)","v":""},{"$f":"IF('Prezenční listina'!F81=0,\"\",'Prezenční listina'!H81)","v":""}]
["",{"$f":"IF('Prezenční listina'!F82=0,\"\",'Prezenční listina'!F82)","v":""},{"$f":"IF('Prezenční listina'!F82=0,\"\",'Prezenční listina'!B82)","v":""},{"$f":"IF('Prezenční listina'!F82=0,\"\",'Prezenční listina'!C82)","v":""},{"$f":"IF('Prezenční listina'!F82=0,\"\",'Prezenční listina'!D82)","v":""},{"$f":"IF('Prezenční listina'!F82=0,\"\",'Prezenční listina'!E82)","v":""},{"$f":"IF('Prezenční listina'!F82=0,\"\",'Prezenční listina'!H82)","v":""}]
["",{"$f":"IF('Prezenční listina'!F83=0,\"\",'Prezenční listina'!F83)","v":""},{"$f":"IF('Prezenční listina'!F83=0,\"\",'Prezenční listina'!B83)","v":""},{"$f":"IF('Prezenční listina'!F83=0,\"\",'Prezenční listina'!C83)","v":""},{"$f":"IF('Prezenční listina'!F83=0,\"\",'Prezenční listina'!D83)","v":""},{"$f":"IF('Prezenční listina'!F83=0,\"\",'Prezenční listina'!E83)","v":""},{"$f":"IF('Prezenční listina'!F83=0,\"\",'Prezenční listina'!H83)","v":""}]
["",{"$f":"IF('Prezenční listina'!F84=0,\"\",'Prezenční listina'!F84)","v":""},{"$f":"IF('Prezenční listina'!F84=0,\"\",'Prezenční listina'!B84)","v":""},{"$f":"IF('Prezenční listina'!F84=0,\"\",'Prezenční listina'!C84)","v":""},{"$f":"IF('Prezenční listina'!F84=0,\"\",'Prezenční listina'!D84)","v":""},{"$f":"IF('Prezenční listina'!F84=0,\"\",'Prezenční listina'!E84)","v":""},{"$f":"IF('Prezenční listina'!F84=0,\"\",'Prezenční listina'!H84)","v":""}]
["",{"$f":"IF('Prezenční listina'!F85=0,\"\",'Prezenční listina'!F85)","v":""},{"$f":"IF('Prezenční listina'!F85=0,\"\",'Prezenční listina'!B85)","v":""},{"$f":"IF('Prezenční listina'!F85=0,\"\",'Prezenční listina'!C85)","v":""},{"$f":"IF('Prezenční listina'!F85=0,\"\",'Prezenční listina'!D85)","v":""},{"$f":"IF('Prezenční listina'!F85=0,\"\",'Prezenční listina'!E85)","v":""},{"$f":"IF('Prezenční listina'!F85=0,\"\",'Prezenční listina'!H85)","v":""}]
["",{"$f":"IF('Prezenční listina'!F86=0,\"\",'Prezenční listina'!F86)","v":""},{"$f":"IF('Prezenční listina'!F86=0,\"\",'Prezenční listina'!B86)","v":""},{"$f":"IF('Prezenční listina'!F86=0,\"\",'Prezenční listina'!C86)","v":""},{"$f":"IF('Prezenční listina'!F86=0,\"\",'Prezenční listina'!D86)","v":""},{"$f":"IF('Prezenční listina'!F86=0,\"\",'Prezenční listina'!E86)","v":""},{"$f":"IF('Prezenční listina'!F86=0,\"\",'Prezenční listina'!H86)","v":""}]
["",{"$f":"IF('Prezenční listina'!F87=0,\"\",'Prezenční listina'!F87)","v":""},{"$f":"IF('Prezenční listina'!F87=0,\"\",'Prezenční listina'!B87)","v":""},{"$f":"IF('Prezenční listina'!F87=0,\"\",'Prezenční listina'!C87)","v":""},{"$f":"IF('Prezenční listina'!F87=0,\"\",'Prezenční listina'!D87)","v":""},{"$f":"IF('Prezenční listina'!F87=0,\"\",'Prezenční listina'!E87)","v":""},{"$f":"IF('Prezenční listina'!F87=0,\"\",'Prezenční listina'!H87)","v":""}]
["",{"$f":"IF('Prezenční listina'!F88=0,\"\",'Prezenční listina'!F88)","v":""},{"$f":"IF('Prezenční listina'!F88=0,\"\",'Prezenční listina'!B88)","v":""},{"$f":"IF('Prezenční listina'!F88=0,\"\",'Prezenční listina'!C88)","v":""},{"$f":"IF('Prezenční listina'!F88=0,\"\",'Prezenční listina'!D88)","v":""},{"$f":"IF('Prezenční listina'!F88=0,\"\",'Prezenční listina'!E88)","v":""},{"$f":"IF('Prezenční listina'!F88=0,\"\",'Prezenční listina'!H88)","v":""}]
["",{"$f":"IF('Prezenční listina'!F89=0,\"\",'Prezenční listina'!F89)","v":""},{"$f":"IF('Prezenční listina'!F89=0,\"\",'Prezenční listina'!B89)","v":""},{"$f":"IF('Prezenční listina'!F89=0,\"\",'Prezenční listina'!C89)","v":""},{"$f":"IF('Prezenční listina'!F89=0,\"\",'Prezenční listina'!D89)","v":""},{"$f":"IF('Prezenční listina'!F89=0,\"\",'Prezenční listina'!E89)","v":""},{"$f":"IF('Prezenční listina'!F89=0,\"\",'Prezenční listina'!H89)","v":""}]
["",{"$f":"IF('Prezenční listina'!F90=0,\"\",'Prezenční listina'!F90)","v":""},{"$f":"IF('Prezenční listina'!F90=0,\"\",'Prezenční listina'!B90)","v":""},{"$f":"IF('Prezenční listina'!F90=0,\"\",'Prezenční listina'!C90)","v":""},{"$f":"IF('Prezenční listina'!F90=0,\"\",'Prezenční listina'!D90)","v":""},{"$f":"IF('Prezenční listina'!F90=0,\"\",'Prezenční listina'!E90)","v":""},{"$f":"IF('Prezenční listina'!F90=0,\"\",'Prezenční listina'!H90)","v":""}]
["",{"$f":"IF('Prezenční listina'!F91=0,\"\",'Prezenční listina'!F91)","v":""},{"$f":"IF('Prezenční listina'!F91=0,\"\",'Prezenční listina'!B91)","v":""},{"$f":"IF('Prezenční listina'!F91=0,\"\",'Prezenční listina'!C91)","v":""},{"$f":"IF('Prezenční listina'!F91=0,\"\",'Prezenční listina'!D91)","v":""},{"$f":"IF('Prezenční listina'!F91=0,\"\",'Prezenční listina'!E91)","v":""},{"$f":"IF('Prezenční listina'!F91=0,\"\",'Prezenční listina'!H91)","v":""}]
["",{"$f":"IF('Prezenční listina'!F92=0,\"\",'Prezenční listina'!F92)","v":""},{"$f":"IF('Prezenční listina'!F92=0,\"\",'Prezenční listina'!B92)","v":""},{"$f":"IF('Prezenční listina'!F92=0,\"\",'Prezenční listina'!C92)","v":""},{"$f":"IF('Prezenční listina'!F92=0,\"\",'Prezenční listina'!D92)","v":""},{"$f":"IF('Prezenční listina'!F92=0,\"\",'Prezenční listina'!E92)","v":""},{"$f":"IF('Prezenční listina'!F92=0,\"\",'Prezenční listina'!H92)","v":""}]
["",{"$f":"IF('Prezenční listina'!F93=0,\"\",'Prezenční listina'!F93)","v":""},{"$f":"IF('Prezenční listina'!F93=0,\"\",'Prezenční listina'!B93)","v":""},{"$f":"IF('Prezenční listina'!F93=0,\"\",'Prezenční listina'!C93)","v":""},{"$f":"IF('Prezenční listina'!F93=0,\"\",'Prezenční listina'!D93)","v":""},{"$f":"IF('Prezenční listina'!F93=0,\"\",'Prezenční listina'!E93)","v":""},{"$f":"IF('Prezenční listina'!F93=0,\"\",'Prezenční listina'!H93)","v":""}]
["",{"$f":"IF('Prezenční listina'!F94=0,\"\",'Prezenční listina'!F94)","v":""},{"$f":"IF('Prezenční listina'!F94=0,\"\",'Prezenční listina'!B94)","v":""},{"$f":"IF('Prezenční listina'!F94=0,\"\",'Prezenční listina'!C94)","v":""},{"$f":"IF('Prezenční listina'!F94=0,\"\",'Prezenční listina'!D94)","v":""},{"$f":"IF('Prezenční listina'!F94=0,\"\",'Prezenční listina'!E94)","v":""},{"$f":"IF('Prezenční listina'!F94=0,\"\",'Prezenční listina'!H94)","v":""}]
["",{"$f":"IF('Prezenční listina'!F95=0,\"\",'Prezenční listina'!F95)","v":""},{"$f":"IF('Prezenční listina'!F95=0,\"\",'Prezenční listina'!B95)","v":""},{"$f":"IF('Prezenční listina'!F95=0,\"\",'Prezenční listina'!C95)","v":""},{"$f":"IF('Prezenční listina'!F95=0,\"\",'Prezenční listina'!D95)","v":""},{"$f":"IF('Prezenční listina'!F95=0,\"\",'Prezenční listina'!E95)","v":""},{"$f":"IF('Prezenční listina'!F95=0,\"\",'Prezenční listina'!H95)","v":""}]
["",{"$f":"IF('Prezenční listina'!F96=0,\"\",'Prezenční listina'!F96)","v":""},{"$f":"IF('Prezenční listina'!F96=0,\"\",'Prezenční listina'!B96)","v":""},{"$f":"IF('Prezenční listina'!F96=0,\"\",'Prezenční listina'!C96)","v":""},{"$f":"IF('Prezenční listina'!F96=0,\"\",'Prezenční listina'!D96)","v":""},{"$f":"IF('Prezenční listina'!F96=0,\"\",'Prezenční listina'!E96)","v":""},{"$f":"IF('Prezenční listina'!F96=0,\"\",'Prezenční listina'!H96)","v":""}]
["",{"$f":"IF('Prezenční listina'!F97=0,\"\",'Prezenční listina'!F97)","v":""},{"$f":"IF('Prezenční listina'!F97=0,\"\",'Prezenční listina'!B97)","v":""},{"$f":"IF('Prezenční listina'!F97=0,\"\",'Prezenční listina'!C97)","v":""},{"$f":"IF('Prezenční listina'!F97=0,\"\",'Prezenční listina'!D97)","v":""},{"$f":"IF('Prezenční listina'!F97=0,\"\",'Prezenční listina'!E97)","v":""},{"$f":"IF('Prezenční listina'!F97=0,\"\",'Prezenční listina'!H97)","v":""}]
["",{"$f":"IF('Prezenční listina'!F98=0,\"\",'Prezenční listina'!F98)","v":""},{"$f":"IF('Prezenční listina'!F98=0,\"\",'Prezenční listina'!B98)","v":""},{"$f":"IF('Prezenční listina'!F98=0,\"\",'Prezenční listina'!C98)","v":""},{"$f":"IF('Prezenční listina'!F98=0,\"\",'Prezenční listina'!D98)","v":""},{"$f":"IF('Prezenční listina'!F98=0,\"\",'Prezenční listina'!E98)","v":""},{"$f":"IF('Prezenční listina'!F98=0,\"\",'Prezenční listina'!H98)","v":""}]
["",{"$f":"IF('Prezenční listina'!F99=0,\"\",'Prezenční listina'!F99)","v":""},{"$f":"IF('Prezenční listina'!F99=0,\"\",'Prezenční listina'!B99)","v":""},{"$f":"IF('Prezenční listina'!F99=0,\"\",'Prezenční listina'!C99)","v":""},{"$f":"IF('Prezenční listina'!F99=0,\"\",'Prezenční listina'!D99)","v":""},{"$f":"IF('Prezenční listina'!F99=0,\"\",'Prezenční listina'!E99)","v":""},{"$f":"IF('Prezenční listina'!F99=0,\"\",'Prezenční listina'!H99)","v":""}]
["",{"$f":"IF('Prezenční listina'!F100=0,\"\",'Prezenční listina'!F100)","v":""},{"$f":"IF('Prezenční listina'!F100=0,\"\",'Prezenční listina'!B100)","v":""},{"$f":"IF('Prezenční listina'!F100=0,\"\",'Prezenční listina'!C100)","v":""},{"$f":"IF('Prezenční listina'!F100=0,\"\",'Prezenční listina'!D100)","v":""},{"$f":"IF('Prezenční listina'!F100=0,\"\",'Prezenční listina'!E100)","v":""},{"$f":"IF('Prezenční listina'!F100=0,\"\",'Prezenční listina'!H100)","v":""}]
["",{"$f":"IF('Prezenční listina'!F101=0,\"\",'Prezenční listina'!F101)","v":""},{"$f":"IF('Prezenční listina'!F101=0,\"\",'Prezenční listina'!B101)","v":""},{"$f":"IF('Prezenční listina'!F101=0,\"\",'Prezenční listina'!C101)","v":""},{"$f":"IF('Prezenční listina'!F101=0,\"\",'Prezenční listina'!D101)","v":""},{"$f":"IF('Prezenční listina'!F101=0,\"\",'Prezenční listina'!E101)","v":""},{"$f":"IF('Prezenční listina'!F101=0,\"\",'Prezenční listina'!H101)","v":""}]
["",{"$f":"IF('Prezenční listina'!F102=0,\"\",'Prezenční listina'!F102)","v":""},{"$f":"IF('Prezenční listina'!F102=0,\"\",'Prezenční listina'!B102)","v":""},{"$f":"IF('Prezenční listina'!F102=0,\"\",'Prezenční listina'!C102)","v":""},{"$f":"IF('Prezenční listina'!F102=0,\"\",'Prezenční listina'!D102)","v":""},{"$f":"IF('Prezenční listina'!F102=0,\"\",'Prezenční listina'!E102)","v":""},{"$f":"IF('Prezenční listina'!F102=0,\"\",'Prezenční listina'!H102)","v":""}]
["",{"$f":"IF('Prezenční listina'!F103=0,\"\",'Prezenční listina'!F103)","v":""},{"$f":"IF('Prezenční listina'!F103=0,\"\",'Prezenční listina'!B103)","v":""},{"$f":"IF('Prezenční listina'!F103=0,\"\",'Prezenční listina'!C103)","v":""},{"$f":"IF('Prezenční listina'!F103=0,\"\",'Prezenční listina'!D103)","v":""},{"$f":"IF('Prezenční listina'!F103=0,\"\",'Prezenční listina'!E103)","v":""},{"$f":"IF('Prezenční listina'!F103=0,\"\",'Prezenční listina'!H103)","v":""}]
["",{"$f":"IF('Prezenční listina'!F104=0,\"\",'Prezenční listina'!F104)","v":""},{"$f":"IF('Prezenční listina'!F104=0,\"\",'Prezenční listina'!B104)","v":""},{"$f":"IF('Prezenční listina'!F104=0,\"\",'Prezenční listina'!C104)","v":""},{"$f":"IF('Prezenční listina'!F104=0,\"\",'Prezenční listina'!D104)","v":""},{"$f":"IF('Prezenční listina'!F104=0,\"\",'Prezenční listina'!E104)","v":""},{"$f":"IF('Prezenční listina'!F104=0,\"\",'Prezenční listina'!H104)","v":""}]
["",{"$f":"IF('Prezenční listina'!F105=0,\"\",'Prezenční listina'!F105)","v":""},{"$f":"IF('Prezenční listina'!F105=0,\"\",'Prezenční listina'!B105)","v":""},{"$f":"IF('Prezenční listina'!F105=0,\"\",'Prezenční listina'!C105)","v":""},{"$f":"IF('Prezenční listina'!F105=0,\"\",'Prezenční listina'!D105)","v":""},{"$f":"IF('Prezenční listina'!F105=0,\"\",'Prezenční listina'!E105)","v":""},{"$f":"IF('Prezenční listina'!F105=0,\"\",'Prezenční listina'!H105)","v":""}]
["",{"$f":"IF('Prezenční listina'!F106=0,\"\",'Prezenční listina'!F106)","v":""},{"$f":"IF('Prezenční listina'!F106=0,\"\",'Prezenční listina'!B106)","v":""},{"$f":"IF('Prezenční listina'!F106=0,\"\",'Prezenční listina'!C106)","v":""},{"$f":"IF('Prezenční listina'!F106=0,\"\",'Prezenční listina'!D106)","v":""},{"$f":"IF('Prezenční listina'!F106=0,\"\",'Prezenční listina'!E106)","v":""},{"$f":"IF('Prezenční listina'!F106=0,\"\",'Prezenční listina'!H106)","v":""}]
["",{"$f":"IF('Prezenční listina'!F107=0,\"\",'Prezenční listina'!F107)","v":""},{"$f":"IF('Prezenční listina'!F107=0,\"\",'Prezenční listina'!B107)","v":""},{"$f":"IF('Prezenční listina'!F107=0,\"\",'Prezenční listina'!C107)","v":""},{"$f":"IF('Prezenční listina'!F107=0,\"\",'Prezenční listina'!D107)","v":""},{"$f":"IF('Prezenční listina'!F107=0,\"\",'Prezenční listina'!E107)","v":""},{"$f":"IF('Prezenční listina'!F107=0,\"\",'Prezenční listina'!H107)","v":""}]
["",{"$f":"IF('Prezenční listina'!F108=0,\"\",'Prezenční listina'!F108)","v":""},{"$f":"IF('Prezenční listina'!F108=0,\"\",'Prezenční listina'!B108)","v":""},{"$f":"IF('Prezenční listina'!F108=0,\"\",'Prezenční listina'!C108)","v":""},{"$f":"IF('Prezenční listina'!F108=0,\"\",'Prezenční listina'!D108)","v":""},{"$f":"IF('Prezenční listina'!F108=0,\"\",'Prezenční listina'!E108)","v":""},{"$f":"IF('Prezenční listina'!F108=0,\"\",'Prezenční listina'!H108)","v":""}]
["",{"$f":"IF('Prezenční listina'!F109=0,\"\",'Prezenční listina'!F109)","v":""},{"$f":"IF('Prezenční listina'!F109=0,\"\",'Prezenční listina'!B109)","v":""},{"$f":"IF('Prezenční listina'!F109=0,\"\",'Prezenční listina'!C109)","v":""},{"$f":"IF('Prezenční listina'!F109=0,\"\",'Prezenční listina'!D109)","v":""},{"$f":"IF('Prezenční listina'!F109=0,\"\",'Prezenční listina'!E109)","v":""},{"$f":"IF('Prezenční listina'!F109=0,\"\",'Prezenční listina'!H109)","v":""}]
["",{"$f":"IF('Prezenční listina'!F110=0,\"\",'Prezenční listina'!F110)","v":""},{"$f":"IF('Prezenční listina'!F110=0,\"\",'Prezenční listina'!B110)","v":""},{"$f":"IF('Prezenční listina'!F110=0,\"\",'Prezenční listina'!C110)","v":""},{"$f":"IF('Prezenční listina'!F110=0,\"\",'Prezenční listina'!D110)","v":""},{"$f":"IF('Prezenční listina'!F110=0,\"\",'Prezenční listina'!E110)","v":""},{"$f":"IF('Prezenční listina'!F110=0,\"\",'Prezenční listina'!H110)","v":""}]
["",{"$f":"IF('Prezenční listina'!F111=0,\"\",'Prezenční listina'!F111)","v":""},{"$f":"IF('Prezenční listina'!F111=0,\"\",'Prezenční listina'!B111)","v":""},{"$f":"IF('Prezenční listina'!F111=0,\"\",'Prezenční listina'!C111)","v":""},{"$f":"IF('Prezenční listina'!F111=0,\"\",'Prezenční listina'!D111)","v":""},{"$f":"IF('Prezenční listina'!F111=0,\"\",'Prezenční listina'!E111)","v":""},{"$f":"IF('Prezenční listina'!F111=0,\"\",'Prezenční listina'!H111)","v":""}]
["",{"$f":"IF('Prezenční listina'!F112=0,\"\",'Prezenční listina'!F112)","v":""},{"$f":"IF('Prezenční listina'!F112=0,\"\",'Prezenční listina'!B112)","v":""},{"$f":"IF('Prezenční listina'!F112=0,\"\",'Prezenční listina'!C112)","v":""},{"$f":"IF('Prezenční listina'!F112=0,\"\",'Prezenční listina'!D112)","v":""},{"$f":"IF('Prezenční listina'!F112=0,\"\",'Prezenční listina'!E112)","v":""},{"$f":"IF('Prezenční listina'!F112=0,\"\",'Prezenční listina'!H112)","v":""}]
["",{"$f":"IF('Prezenční listina'!F113=0,\"\",'Prezenční listina'!F113)","v":""},{"$f":"IF('Prezenční listina'!F113=0,\"\",'Prezenční listina'!B113)","v":""},{"$f":"IF('Prezenční listina'!F113=0,\"\",'Prezenční listina'!C113)","v":""},{"$f":"IF('Prezenční listina'!F113=0,\"\",'Prezenční listina'!D113)","v":""},{"$f":"IF('Prezenční listina'!F113=0,\"\",'Prezenční listina'!E113)","v":""},{"$f":"IF('Prezenční listina'!F113=0,\"\",'Prezenční listina'!H113)","v":""}]
["",{"$f":"IF('Prezenční listina'!F114=0,\"\",'Prezenční listina'!F114)","v":""},{"$f":"IF('Prezenční listina'!F114=0,\"\",'Prezenční listina'!B114)","v":""},{"$f":"IF('Prezenční listina'!F114=0,\"\",'Prezenční listina'!C114)","v":""},{"$f":"IF('Prezenční listina'!F114=0,\"\",'Prezenční listina'!D114)","v":""},{"$f":"IF('Prezenční listina'!F114=0,\"\",'Prezenční listina'!E114)","v":""},{"$f":"IF('Prezenční listina'!F114=0,\"\",'Prezenční listina'!H114)","v":""}]
["",{"$f":"IF('Prezenční listina'!F115=0,\"\",'Prezenční listina'!F115)","v":""},{"$f":"IF('Prezenční listina'!F115=0,\"\",'Prezenční listina'!B115)","v":""},{"$f":"IF('Prezenční listina'!F115=0,\"\",'Prezenční listina'!C115)","v":""},{"$f":"IF('Prezenční listina'!F115=0,\"\",'Prezenční listina'!D115)","v":""},{"$f":"IF('Prezenční listina'!F115=0,\"\",'Prezenční listina'!E115)","v":""},{"$f":"IF('Prezenční listina'!F115=0,\"\",'Prezenční listina'!H115)","v":""}]
["",{"$f":"IF('Prezenční listina'!F116=0,\"\",'Prezenční listina'!F116)","v":""},{"$f":"IF('Prezenční listina'!F116=0,\"\",'Prezenční listina'!B116)","v":""},{"$f":"IF('Prezenční listina'!F116=0,\"\",'Prezenční listina'!C116)","v":""},{"$f":"IF('Prezenční listina'!F116=0,\"\",'Prezenční listina'!D116)","v":""},{"$f":"IF('Prezenční listina'!F116=0,\"\",'Prezenční listina'!E116)","v":""},{"$f":"IF('Prezenční listina'!F116=0,\"\",'Prezenční listina'!H116)","v":""}]
["",{"$f":"IF('Prezenční listina'!F117=0,\"\",'Prezenční listina'!F117)","v":""},{"$f":"IF('Prezenční listina'!F117=0,\"\",'Prezenční listina'!B117)","v":""},{"$f":"IF('Prezenční listina'!F117=0,\"\",'Prezenční listina'!C117)","v":""},{"$f":"IF('Prezenční listina'!F117=0,\"\",'Prezenční listina'!D117)","v":""},{"$f":"IF('Prezenční listina'!F117=0,\"\",'Prezenční listina'!E117)","v":""},{"$f":"IF('Prezenční listina'!F117=0,\"\",'Prezenční listina'!H117)","v":""}]
["",{"$f":"IF('Prezenční listina'!F118=0,\"\",'Prezenční listina'!F118)","v":""},{"$f":"IF('Prezenční listina'!F118=0,\"\",'Prezenční listina'!B118)","v":""},{"$f":"IF('Prezenční listina'!F118=0,\"\",'Prezenční listina'!C118)","v":""},{"$f":"IF('Prezenční listina'!F118=0,\"\",'Prezenční listina'!D118)","v":""},{"$f":"IF('Prezenční listina'!F118=0,\"\",'Prezenční listina'!E118)","v":""},{"$f":"IF('Prezenční listina'!F118=0,\"\",'Prezenční listina'!H118)","v":""}]
["",{"$f":"IF('Prezenční listina'!F119=0,\"\",'Prezenční listina'!F119)","v":""},{"$f":"IF('Prezenční listina'!F119=0,\"\",'Prezenční listina'!B119)","v":""},{"$f":"IF('Prezenční listina'!F119=0,\"\",'Prezenční listina'!C119)","v":""},{"$f":"IF('Prezenční listina'!F119=0,\"\",'Prezenční listina'!D119)","v":""},{"$f":"IF('Prezenční listina'!F119=0,\"\",'Prezenční listina'!E119)","v":""},{"$f":"IF('Prezenční listina'!F119=0,\"\",'Prezenční listina'!H119)","v":""}]
["",{"$f":"IF('Prezenční listina'!F120=0,\"\",'Prezenční listina'!F120)","v":""},{"$f":"IF('Prezenční listina'!F120=0,\"\",'Prezenční listina'!B120)","v":""},{"$f":"IF('Prezenční listina'!F120=0,\"\",'Prezenční listina'!C120)","v":""},{"$f":"IF('Prezenční listina'!F120=0,\"\",'Prezenční listina'!D120)","v":""},{"$f":"IF('Prezenční listina'!F120=0,\"\",'Prezenční listina'!E120)","v":""},{"$f":"IF('Prezenční listina'!F120=0,\"\",'Prezenční listina'!H120)","v":""}]
["",{"$f":"IF('Prezenční listina'!F121=0,\"\",'Prezenční listina'!F121)","v":""},{"$f":"IF('Prezenční listina'!F121=0,\"\",'Prezenční listina'!B121)","v":""},{"$f":"IF('Prezenční listina'!F121=0,\"\",'Prezenční listina'!C121)","v":""},{"$f":"IF('Prezenční listina'!F121=0,\"\",'Prezenční listina'!D121)","v":""},{"$f":"IF('Prezenční listina'!F121=0,\"\",'Prezenční listina'!E121)","v":""},{"$f":"IF('Prezenční listina'!F121=0,\"\",'Prezenční listina'!H121)","v":""}]
["",{"$f":"IF('Prezenční listina'!F122=0,\"\",'Prezenční listina'!F122)","v":""},{"$f":"IF('Prezenční listina'!F122=0,\"\",'Prezenční listina'!B122)","v":""},{"$f":"IF('Prezenční listina'!F122=0,\"\",'Prezenční listina'!C122)","v":""},{"$f":"IF('Prezenční listina'!F122=0,\"\",'Prezenční listina'!D122)","v":""},{"$f":"IF('Prezenční listina'!F122=0,\"\",'Prezenční listina'!E122)","v":""},{"$f":"IF('Prezenční listina'!F122=0,\"\",'Prezenční listina'!H122)","v":""}]
["",{"$f":"IF('Prezenční listina'!F123=0,\"\",'Prezenční listina'!F123)","v":""},{"$f":"IF('Prezenční listina'!F123=0,\"\",'Prezenční listina'!B123)","v":""},{"$f":"IF('Prezenční listina'!F123=0,\"\",'Prezenční listina'!C123)","v":""},{"$f":"IF('Prezenční listina'!F123=0,\"\",'Prezenční listina'!D123)","v":""},{"$f":"IF('Prezenční listina'!F123=0,\"\",'Prezenční listina'!E123)","v":""},{"$f":"IF('Prezenční listina'!F123=0,\"\",'Prezenční listina'!H123)","v":""}]
["",{"$f":"IF('Prezenční listina'!F124=0,\"\",'Prezenční listina'!F124)","v":""},{"$f":"IF('Prezenční listina'!F124=0,\"\",'Prezenční listina'!B124)","v":""},{"$f":"IF('Prezenční listina'!F124=0,\"\",'Prezenční listina'!C124)","v":""},{"$f":"IF('Prezenční listina'!F124=0,\"\",'Prezenční listina'!D124)","v":""},{"$f":"IF('Prezenční listina'!F124=0,\"\",'Prezenční listina'!E124)","v":""},{"$f":"IF('Prezenční listina'!F124=0,\"\",'Prezenční listina'!H124)","v":""}]
["",{"$f":"IF('Prezenční listina'!F125=0,\"\",'Prezenční listina'!F125)","v":""},{"$f":"IF('Prezenční listina'!F125=0,\"\",'Prezenční listina'!B125)","v":""},{"$f":"IF('Prezenční listina'!F125=0,\"\",'Prezenční listina'!C125)","v":""},{"$f":"IF('Prezenční listina'!F125=0,\"\",'Prezenční listina'!D125)","v":""},{"$f":"IF('Prezenční listina'!F125=0,\"\",'Prezenční listina'!E125)","v":""},{"$f":"IF('Prezenční listina'!F125=0,\"\",'Prezenční listina'!H125)","v":""}]
["",{"$f":"IF('Prezenční listina'!F126=0,\"\",'Prezenční listina'!F126)","v":""},{"$f":"IF('Prezenční listina'!F126=0,\"\",'Prezenční listina'!B126)","v":""},{"$f":"IF('Prezenční listina'!F126=0,\"\",'Prezenční listina'!C126)","v":""},{"$f":"IF('Prezenční listina'!F126=0,\"\",'Prezenční listina'!D126)","v":""},{"$f":"IF('Prezenční listina'!F126=0,\"\",'Prezenční listina'!E126)","v":""},{"$f":"IF('Prezenční listina'!F126=0,\"\",'Prezenční listina'!H126)","v":""}]
["",{"$f":"IF('Prezenční listina'!F127=0,\"\",'Prezenční listina'!F127)","v":""},{"$f":"IF('Prezenční listina'!F127=0,\"\",'Prezenční listina'!B127)","v":""},{"$f":"IF('Prezenční listina'!F127=0,\"\",'Prezenční listina'!C127)","v":""},{"$f":"IF('Prezenční listina'!F127=0,\"\",'Prezenční listina'!D127)","v":""},{"$f":"IF('Prezenční listina'!F127=0,\"\",'Prezenční listina'!E127)","v":""},{"$f":"IF('Prezenční listina'!F127=0,\"\",'Prezenční listina'!H127)","v":""}]
["",{"$f":"IF('Prezenční listina'!F128=0,\"\",'Prezenční listina'!F128)","v":""},{"$f":"IF('Prezenční listina'!F128=0,\"\",'Prezenční listina'!B128)","v":""},{"$f":"IF('Prezenční listina'!F128=0,\"\",'Prezenční listina'!C128)","v":""},{"$f":"IF('Prezenční listina'!F128=0,\"\",'Prezenční listina'!D128)","v":""},{"$f":"IF('Prezenční listina'!F128=0,\"\",'Prezenční listina'!E128)","v":""},{"$f":"IF('Prezenční listina'!F128=0,\"\",'Prezenční listina'!H128)","v":""}]
["",{"$f":"IF('Prezenční listina'!F129=0,\"\",'Prezenční listina'!F129)","v":""},{"$f":"IF('Prezenční listina'!F129=0,\"\",'Prezenční listina'!B129)","v":""},{"$f":"IF('Prezenční listina'!F129=0,\"\",'Prezenční listina'!C129)","v":""},{"$f":"IF('Prezenční listina'!F129=0,\"\",'Prezenční listina'!D129)","v":""},{"$f":"IF('Prezenční listina'!F129=0,\"\",'Prezenční listina'!E129)","v":""},{"$f":"IF('Prezenční listina'!F129=0,\"\",'Prezenční listina'!H129)","v":""}]
["",{"$f":"IF('Prezenční listina'!F130=0,\"\",'Prezenční listina'!F130)","v":""},{"$f":"IF('Prezenční listina'!F130=0,\"\",'Prezenční listina'!B130)","v":""},{"$f":"IF('Prezenční listina'!F130=0,\"\",'Prezenční listina'!C130)","v":""},{"$f":"IF('Prezenční listina'!F130=0,\"\",'Prezenční listina'!D130)","v":""},{"$f":"IF('Prezenční listina'!F130=0,\"\",'Prezenční listina'!E130)","v":""},{"$f":"IF('Prezenční listina'!F130=0,\"\",'Prezenční listina'!H130)","v":""}]
["",{"$f":"IF('Prezenční listina'!F131=0,\"\",'Prezenční listina'!F131)","v":""},{"$f":"IF('Prezenční listina'!F131=0,\"\",'Prezenční listina'!B131)","v":""},{"$f":"IF('Prezenční listina'!F131=0,\"\",'Prezenční listina'!C131)","v":""},{"$f":"IF('Prezenční listina'!F131=0,\"\",'Prezenční listina'!D131)","v":""},{"$f":"IF('Prezenční listina'!F131=0,\"\",'Prezenční listina'!E131)","v":""},{"$f":"IF('Prezenční listina'!F131=0,\"\",'Prezenční listina'!H131)","v":""}]
[{"$f":"IF(C134=\"\",\"\",A133+1)","v":""},{"$f":"IF('Prezenční listina'!F132=0,\"\",'Prezenční listina'!F132)","v":""},{"$f":"IF('Prezenční listina'!F132=0,\"\",'Prezenční listina'!B132)","v":""},{"$f":"IF('Prezenční listina'!F132=0,\"\",'Prezenční listina'!C132)","v":""},{"$f":"IF('Prezenční listina'!F132=0,\"\",'Prezenční listina'!D132)","v":""},{"$f":"IF('Prezenční listina'!F132=0,\"\",'Prezenční listina'!E132)","v":""},{"$f":"IF('Prezenční listina'!F132=0,\"\",'Prezenční listina'!H132)","v":""}]
["",{"$f":"IF('Prezenční listina'!F133=0,\"\",'Prezenční listina'!F133)","v":""},{"$f":"IF('Prezenční listina'!F133=0,\"\",'Prezenční listina'!B133)","v":""},{"$f":"IF('Prezenční listina'!F133=0,\"\",'Prezenční listina'!C133)","v":""},{"$f":"IF('Prezenční listina'!F133=0,\"\",'Prezenční listina'!D133)","v":""},{"$f":"IF('Prezenční listina'!F133=0,\"\",'Prezenční listina'!E133)","v":""},{"$f":"IF('Prezenční listina'!F133=0,\"\",'Prezenční listina'!H133)","v":""}]
["",{"$f":"IF('Prezenční listina'!F134=0,\"\",'Prezenční listina'!F134)","v":""},{"$f":"IF('Prezenční listina'!F134=0,\"\",'Prezenční listina'!B134)","v":""},{"$f":"IF('Prezenční listina'!F134=0,\"\",'Prezenční listina'!C134)","v":""},{"$f":"IF('Prezenční listina'!F134=0,\"\",'Prezenční listina'!D134)","v":""},{"$f":"IF('Prezenční listina'!F134=0,\"\",'Prezenční listina'!E134)","v":""},{"$f":"IF('Prezenční listina'!F134=0,\"\",'Prezenční listina'!H134)","v":""}]
["",{"$f":"IF('Prezenční listina'!F135=0,\"\",'Prezenční listina'!F135)","v":""},{"$f":"IF('Prezenční listina'!F135=0,\"\",'Prezenční listina'!B135)","v":""},{"$f":"IF('Prezenční listina'!F135=0,\"\",'Prezenční listina'!C135)","v":""},{"$f":"IF('Prezenční listina'!F135=0,\"\",'Prezenční listina'!D135)","v":""},{"$f":"IF('Prezenční listina'!F135=0,\"\",'Prezenční listina'!E135)","v":""},{"$f":"IF('Prezenční listina'!F135=0,\"\",'Prezenční listina'!H135)","v":""}]
["",{"$f":"IF('Prezenční listina'!F136=0,\"\",'Prezenční listina'!F136)","v":""},{"$f":"IF('Prezenční listina'!F136=0,\"\",'Prezenční listina'!B136)","v":""},{"$f":"IF('Prezenční listina'!F136=0,\"\",'Prezenční listina'!C136)","v":""},{"$f":"IF('Prezenční listina'!F136=0,\"\",'Prezenční listina'!D136)","v":""},{"$f":"IF('Prezenční listina'!F136=0,\"\",'Prezenční listina'!E136)","v":""},{"$f":"IF('Prezenční listina'!F136=0,\"\",'Prezenční listina'!H136)","v":""}]
["",{"$f":"IF('Prezenční listina'!F137=0,\"\",'Prezenční listina'!F137)","v":""},{"$f":"IF('Prezenční listina'!F137=0,\"\",'Prezenční listina'!B137)","v":""},{"$f":"IF('Prezenční listina'!F137=0,\"\",'Prezenční listina'!C137)","v":""},{"$f":"IF('Prezenční listina'!F137=0,\"\",'Prezenční listina'!D137)","v":""},{"$f":"IF('Prezenční listina'!F137=0,\"\",'Prezenční listina'!E137)","v":""},{"$f":"IF('Prezenční listina'!F137=0,\"\",'Prezenční listina'!H137)","v":""}]
["",{"$f":"IF('Prezenční listina'!F138=0,\"\",'Prezenční listina'!F138)","v":""},{"$f":"IF('Prezenční listina'!F138=0,\"\",'Prezenční listina'!B138)","v":""},{"$f":"IF('Prezenční listina'!F138=0,\"\",'Prezenční listina'!C138)","v":""},{"$f":"IF('Prezenční listina'!F138=0,\"\",'Prezenční listina'!D138)","v":""},{"$f":"IF('Prezenční listina'!F138=0,\"\",'Prezenční listina'!E138)","v":""},{"$f":"IF('Prezenční listina'!F138=0,\"\",'Prezenční listina'!H138)","v":""}]
["",{"$f":"IF('Prezenční listina'!F139=0,\"\",'Prezenční listina'!F139)","v":""},{"$f":"IF('Prezenční listina'!F139=0,\"\",'Prezenční listina'!B139)","v":""},{"$f":"IF('Prezenční listina'!F139=0,\"\",'Prezenční listina'!C139)","v":""},{"$f":"IF('Prezenční listina'!F139=0,\"\",'Prezenční listina'!D139)","v":""},{"$f":"IF('Prezenční listina'!F139=0,\"\",'Prezenční listina'!E139)","v":""},{"$f":"IF('Prezenční listina'!F139=0,\"\",'Prezenční listina'!H139)","v":""}]

{"sheet":"Výsledková listina","index":2,"n_rows":104,"n_cols":11,"rows_kept":104,"cut":false,"hidden":false,"merged":[[0,0,0,8],[2,0,2,8],[1,0,1,8],[1,10,12,14]]}
[{"$f":"\"Výsledková listina - Malý svratecký maraton \"&'Prezenční listina'!O2","v":"Výsledková listina - Malý svratecký maraton 2017"}]
[{"$f":"'Startovní listina'!A2:G2","v":"2017-08-26"},null,null,null,null,null,null,null,null,null,"\nPoté, co jsou dopsány časy VŠECH běžců, stisknout tlačítko 1.řazení \n\n\nVe sloupci B (Pořadí v kategorii) vytvořit posloupnou číselnou řadu pro každou kategorii a poté stisknout tlačítko 2.řazení\n\n\n                      !!! POZOR!!!\n\n               Použití tlačítek je nevratný krok!"]
[{"$f":"'Prezenční listina'!O2-1953&\". ročník\"","v":"64. ročník"}]
["Celkové pořadí","Pořadí v kategorii","Kategorie","Startovní číslo","Příjmení","Jméno","Narození","Oddíl / Bydliště","Čas"]
[1,1,{"$f":"'Startovní listina'!G52","v":"A"},{"$f":"'Startovní listina'!B52","v":64},{"$f":"'Startovní listina'!C52","v":"Kohut"},{"$f":"'Startovní listina'!D52","v":"Jan"},{"$f":"'Startovní listina'!E52","v":1985},{"$f":"'Startovní listina'!F52","v":"MAX-TRAINING.CZ"},"02:02:34"]
[{"$f":"IF('Výsledková listina'!D5<>\"\",A5+1,\"\")","v":2},1,{"$f":"'Startovní listina'!G63","v":"B"},{"$f":"'Startovní listina'!B63","v":82},{"$f":"'Startovní listina'!C63","v":"Orálek"},{"$f":"'Startovní listina'!D63","v":"Daniel"},{"$f":"'Startovní listina'!E63","v":1970},{"$f":"'Startovní listina'!F63","v":"behejbrno.com"},"02:05:07"]
[{"$f":"IF('Výsledková listina'!D6<>\"\",A6+1,\"\")","v":3},2,{"$f":"'Startovní listina'!G42","v":"B"},{"$f":"'Startovní listina'!B42","v":48},{"$f":"'Startovní listina'!C42","v":"Plekanec"},{"$f":"'Startovní listina'!D42","v":"Juraj"},{"$f":"'Startovní listina'!E42","v":1974},{"$f":"'Startovní listina'!F42","v":"Brno"},"02:07:40"]
[{"$f":"IF('Výsledková listina'!D7<>\"\",A7+1,\"\")","v":4},1,{"$f":"'Startovní listina'!G10","v":"C"},{"$f":"'Startovní listina'!B10","v":8},{"$f":"'Startovní listina'!C10","v":"Chramosta"},{"$f":"'Startovní listina'!D10","v":"Jaroslav"},{"$f":"'Startovní listina'!E10","v":1966},{"$f":"'Startovní listina'!F10","v":"JABOJA Team Dobrná"},"02:14:08"]
[{"$f":"IF('Výsledková listina'!D8<>\"\",A8+1,\"\")","v":5},2,{"$f":"'Startovní listina'!G19","v":"A"},{"$f":"'Startovní listina'!B19","v":19},{"$f":"'Startovní listina'!C19","v":"Czerný"},{"$f":"'Startovní listina'!D19","v":"Pavel"},{"$f":"'Startovní listina'!E19","v":1981},{"$f":"'Startovní listina'!F19","v":"BKB"},"02:16:10"]
[{"$f":"IF('Výsledková listina'!D9<>\"\",A9+1,\"\")","v":6},1,{"$f":"'Startovní listina'!G21","v":"F"},{"$f":"'Startovní listina'!B21","v":22},{"$f":"'Startovní listina'!C21","v":"Ďurdiaková"},{"$f":"'Startovní listina'!D21","v":"Tereza"},{"$f":"'Startovní listina'!E21","v":1991},{"$f":"'Startovní listina'!F21","v":"AK OLYMP Brno"},"02:16:30"]
[{"$f":"IF('Výsledková listina'!D10<>\"\",A10+1,\"\")","v":7},3,{"$f":"'Startovní listina'!G61","v":"A"},{"$f":"'Startovní listina'!B61","v":79},{"$f":"'Startovní listina'!C61","v":"Glier"},{"$f":"'Startovní listina'!D61","v":"Michal"},{"$f":"'Startovní listina'!E61","v":1982},{"$f":"'Startovní listina'!F61","v":"SDH Doubravník"},"02:18:14"]
[{"$f":"IF('Výsledková listina'!D11<>\"\",A11+1,\"\")","v":8},2,{"$f":"'Startovní listina'!G60","v":"C"},{"$f":"'Startovní listina'!B60","v":77},{"$f":"'Startovní listina'!C60","v":"Krajča"},{"$f":"'Startovní listina'!D60","v":"Rudy"},{"$f":"'Startovní listina'!E60","v":1965},{"$f":"'Startovní listina'!F60","v":"rarecacti.com"},"02:19:24"]
[{"$f":"IF('Výsledková listina'!D12<>\"\",A12+1,\"\")","v":9},3,{"$f":"'Startovní listina'!G43","v":"B"},{"$f":"'Startovní listina'!B43","v":49},{"$f":"'Startovní listina'!C43","v":"Ondráček"},{"$f":"'Startovní listina'!D43","v":"Tomáš"},{"$f":"'Startovní listina'!E43","v":1977},{"$f":"'Startovní listina'!F43","v":"Brno"},"02:19:59"]
[{"$f":"IF('Výsledková listina'!D13<>\"\",A13+1,\"\")","v":10},4,{"$f":"'Startovní listina'!G66","v":"A"},{"$f":"'Startovní listina'!B66","v":85},{"$f":"'Startovní listina'!C66","v":"Příhoda"},{"$f":"'Startovní listina'!D66","v":"Jan"},{"$f":"'Startovní listina'!E66","v":1983},{"$f":"'Startovní listina'!F66","v":"Ždánice"},"02:23:57"]
[{"$f":"IF('Výsledková listina'!D14<>\"\",A14+1,\"\")","v":11},2,{"$f":"'Startovní listina'!G40","v":"F"},{"$f":"'Startovní listina'!B40","v":46},{"$f":"'Startovní listina'!C40","v":"Pešáková"},{"$f":"'Startovní listina'!D40","v":"Mirka"},{"$f":"'Startovní listina'!E40","v":1985},{"$f":"'Startovní listina'!F40","v":"AC Racers Tetčice"},"02:26:01"]
[{"$f":"IF('Výsledková listina'!D15<>\"\",A15+1,\"\")","v":12},4,{"$f":"'Startovní listina'!G22","v":"B"},{"$f":"'Startovní listina'!B22","v":23},{"$f":"'Startovní listina'!C22","v":"Šorf"},{"$f":"'Startovní listina'!D22","v":"Ivo"},{"$f":"'Startovní listina'!E22","v":1975},{"$f":"'Startovní listina'!F22","v":"ABND Racing Team Bystřice n. P."},"02:32:59"]
[{"$f":"IF('Výsledková listina'!D16<>\"\",A16+1,\"\")","v":13},5,{"$f":"'Startovní listina'!G20","v":"B"},{"$f":"'Startovní listina'!B20","v":21},{"$f":"'Startovní listina'!C20","v":"Stöger"},{"$f":"'Startovní listina'!D20","v":"Karel"},{"$f":"'Startovní listina'!E20","v":1976},{"$f":"'Startovní listina'!F20","v":"fKlidu Brno"},"02:34:34"]
[{"$f":"IF('Výsledková listina'!D17<>\"\",A17+1,\"\")","v":14},6,{"$f":"'Startovní listina'!G29","v":"B"},{"$f":"'Startovní listina'!B29","v":33},{"$f":"'Startovní listina'!C29","v":"Klíma"},{"$f":"'Startovní listina'!D29","v":"Miroslav"},{"$f":"'Startovní listina'!E29","v":1975},{"$f":"'Startovní listina'!F29","v":"Brno"},"02:37:58"]
[{"$f":"IF('Výsledková listina'!D18<>\"\",A18+1,\"\")","v":15},5,{"$f":"'Startovní listina'!G7","v":"A"},{"$f":"'Startovní listina'!B7","v":4},{"$f":"'Startovní listina'!C7","v":"Hübner"},{"$f":"'Startovní listina'!D7","v":"Tomáš"},{"$f":"'Startovní listina'!E7","v":1979},{"$f":"'Startovní listina'!F7","v":"SDH Bolešín"},"02:38:59"]
[{"$f":"IF('Výsledková listina'!D19<>\"\",A19+1,\"\")","v":16},6,{"$f":"'Startovní listina'!G57","v":"A"},{"$f":"'Startovní listina'!B57","v":73},{"$f":"'Startovní listina'!C57","v":"Kalich"},{"$f":"'Startovní listina'!D57","v":"Radim"},{"$f":"'Startovní listina'!E57","v":1985},{"$f":"'Startovní listina'!F57","v":"Odranec"},"02:40:14"]
[{"$f":"IF('Výsledková listina'!D20<>\"\",A20+1,\"\")","v":17},7,{"$f":"'Startovní listina'!G32","v":"B"},{"$f":"'Startovní listina'!B32","v":36},{"$f":"'Startovní listina'!C32","v":"Fanfrdla"},{"$f":"'Startovní listina'!D32","v":"Ctirad"},{"$f":"'Startovní listina'!E32","v":1974},{"$f":"'Startovní listina'!F32","v":"Silůvky"},"02:42:23"]
[{"$f":"IF('Výsledková listina'!D21<>\"\",A21+1,\"\")","v":18},3,{"$f":"'Startovní listina'!G46","v":"F"},{"$f":"'Startovní listina'!B46","v":56},{"$f":"'Startovní listina'!C46","v":"Vlachová Hutová"},{"$f":"'Startovní listina'!D46","v":"Eliška"},{"$f":"'Startovní listina'!E46","v":1988},{"$f":"'Startovní listina'!F46","v":"Brno"},"02:43:14"]
[{"$f":"IF('Výsledková listina'!D22<>\"\",A22+1,\"\")","v":19},8,{"$f":"'Startovní listina'!G58","v":"B"},{"$f":"'Startovní listina'!B58","v":75},{"$f":"'Startovní listina'!C58","v":"Kratochvíl"},{"$f":"'Startovní listina'!D58","v":"Jaroslav"},{"$f":"'Startovní listina'!E58","v":1977},{"$f":"'Startovní listina'!F58","v":"SDH Hluboké"},"02:43:22"]
[{"$f":"IF('Výsledková listina'!D23<>\"\",A23+1,\"\")","v":20},1,{"$f":"'Startovní listina'!G39","v":"G"},{"$f":"'Startovní listina'!B39","v":45},{"$f":"'Startovní listina'!C39","v":"Bojanovská"},{"$f":"'Startovní listina'!D39","v":"Alena"},{"$f":"'Startovní listina'!E39","v":1975},{"$f":"'Startovní listina'!F39","v":"Žďár nad Sázavou"},"02:45:19"]
[{"$f":"IF('Výsledková listina'!D24<>\"\",A24+1,\"\")","v":21},9,{"$f":"'Startovní listina'!G30","v":"B"},{"$f":"'Startovní listina'!B30","v":34},{"$f":"'Startovní listina'!C30","v":"Fanfrdla"},{"$f":"'Startovní listina'!D30","v":"Dalimil"},{"$f":"'Startovní listina'!E30","v":1973},{"$f":"'Startovní listina'!F30","v":"Matyteam Brno"},"02:47:46"]
[{"$f":"IF('Výsledková listina'!D25<>\"\",A25+1,\"\")","v":22},4,{"$f":"'Startovní listina'!G31","v":"F"},{"$f":"'Startovní listina'!B31","v":35},{"$f":"'Startovní listina'!C31","v":"Bartoňková"},{"$f":"'Startovní listina'!D31","v":"Nina"},{"$f":"'Startovní listina'!E31","v":1990},{"$f":"'Startovní listina'!F31","v":"Fan Brno"},"02:49:11"]
[{"$f":"IF('Výsledková listina'!D26<>\"\",A26+1,\"\")","v":23},1,{"$f":"'Startovní listina'!G15","v":"H"},{"$f":"'Startovní listina'!B15","v":13},{"$f":"'Startovní listina'!C15","v":"Martincová"},{"$f":"'Startovní listina'!D15","v":"Ivana"},{"$f":"'Startovní listina'!E15","v":1963},{"$f":"'Startovní listina'!F15","v":"AC Moravská Slavia Brno"},"02:50:24"]
[{"$f":"IF('Výsledková listina'!D27<>\"\",A27+1,\"\")","v":24},10,{"$f":"'Startovní listina'!G38","v":"B"},{"$f":"'Startovní listina'!B38","v":44},{"$f":"'Startovní listina'!C38","v":"Řezníček"},{"$f":"'Startovní listina'!D38","v":"Roman"},{"$f":"'Startovní listina'!E38","v":1977},{"$f":"'Startovní listina'!F38","v":"Žďár nad Sázavou"},"02:50:25"]
[{"$f":"IF('Výsledková listina'!D28<>\"\",A28+1,\"\")","v":25},1,{"$f":"'Startovní listina'!G37","v":"D"},{"$f":"'Startovní listina'!B37","v":42},{"$f":"'Startovní listina'!C37","v":"Mareš"},{"$f":"'Startovní listina'!D37","v":"Bohumil"},{"$f":"'Startovní listina'!E37","v":1951},{"$f":"'Startovní listina'!F37","v":"LEAR Brno"},"02:53:59"]
[{"$f":"IF('Výsledková listina'!D29<>\"\",A29+1,\"\")","v":26},3,{"$f":"'Startovní listina'!G33","v":"C"},{"$f":"'Startovní listina'!B33","v":37},{"$f":"'Startovní listina'!C33","v":"Bělehrádek"},{"$f":"'Startovní listina'!D33","v":"Pavel"},{"$f":"'Startovní listina'!E33","v":1958},{"$f":"'Startovní listina'!F33","v":"TJ Čolek"},"03:02:28"]
[{"$f":"IF('Výsledková listina'!D30<>\"\",A30+1,\"\")","v":27},2,{"$f":"'Startovní listina'!G35","v":"G"},{"$f":"'Startovní listina'!B35","v":40},{"$f":"'Startovní listina'!C35","v":"Hanslová"},{"$f":"'Startovní listina'!D35","v":"Lenka"},{"$f":"'Startovní listina'!E35","v":1973},{"$f":"'Startovní listina'!F35","v":"Žďár nad Sázavou"},"03:06:33"]
[{"$f":"IF('Výsledková listina'!D31<>\"\",A31+1,\"\")","v":28},3,{"$f":"'Startovní listina'!G8","v":"G"},{"$f":"'Startovní listina'!B8","v":5},{"$f":"'Startovní listina'!C8","v":"Komárková"},{"$f":"'Startovní listina'!D8","v":"Zdeňka"},{"$f":"'Startovní listina'!E8","v":1974},{"$f":"'Startovní listina'!F8","v":"SDH Bolešín"},"03:06:42"]
[{"$f":"IF('Výsledková listina'!D32<>\"\",A32+1,\"\")","v":29},4,{"$f":"'Startovní listina'!G16","v":"C"},{"$f":"'Startovní listina'!B16","v":14},{"$f":"'Startovní listina'!C16","v":"Zouhar"},{"$f":"'Startovní listina'!D16","v":"Libor"},{"$f":"'Startovní listina'!E16","v":1958},{"$f":"'Startovní listina'!F16","v":"Brno-Líšeň"},"03:08:14"]
[{"$f":"IF('Výsledková listina'!D33<>\"\",A33+1,\"\")","v":30},4,{"$f":"'Startovní listina'!G56","v":"G"},{"$f":"'Startovní listina'!B56","v":72},{"$f":"'Startovní listina'!C56","v":"Mlčáková"},{"$f":"'Startovní listina'!D56","v":"Hana"},{"$f":"'Startovní listina'!E56","v":1981},{"$f":"'Startovní listina'!F56","v":"Strážnice"},"03:08:52"]
[{"$f":"IF('Výsledková listina'!D34<>\"\",A34+1,\"\")","v":31},2,{"$f":"'Startovní listina'!G65","v":"D"},{"$f":"'Startovní listina'!B65","v":84},{"$f":"'Startovní listina'!C65","v":"Sedláček"},{"$f":"'Startovní listina'!D65","v":"Svatopluk"},{"$f":"'Startovní listina'!E65","v":1957},{"$f":"'Startovní listina'!F65","v":"AC Moravská Slavia Brno"},"03:10:04"]
[{"$f":"IF('Výsledková listina'!D35<>\"\",A35+1,\"\")","v":32},7,{"$f":"'Startovní listina'!G5","v":"A"},{"$f":"'Startovní listina'!B5","v":2},{"$f":"'Startovní listina'!C5","v":"Podsedník"},{"$f":"'Startovní listina'!D5","v":"Marek"},{"$f":"'Startovní listina'!E5","v":1985},{"$f":"'Startovní listina'!F5","v":"Brno"},"03:13:33"]
[{"$f":"IF('Výsledková listina'!D36<>\"\",A36+1,\"\")","v":33},5,{"$f":"'Startovní listina'!G41","v":"C"},{"$f":"'Startovní listina'!B41","v":47},{"$f":"'Startovní listina'!C41","v":"Novotný"},{"$f":"'Startovní listina'!D41","v":"Petr"},{"$f":"'Startovní listina'!E41","v":1965},{"$f":"'Startovní listina'!F41","v":"AK Kuřim"},"03:13:56"]
[{"$f":"IF('Výsledková listina'!D37<>\"\",A37+1,\"\")","v":34},8,{"$f":"'Startovní listina'!G59","v":"A"},{"$f":"'Startovní listina'!B59","v":76},{"$f":"'Startovní listina'!C59","v":"Koutský"},{"$f":"'Startovní listina'!D59","v":"Tomáš"},{"$f":"'Startovní listina'!E59","v":1987},{"$f":"'Startovní listina'!F59","v":"Ledová stěna Vír"},"03:17:28"]
[{"$f":"IF('Výsledková listina'!D38<>\"\",A38+1,\"\")","v":35},3,{"$f":"'Startovní listina'!G34","v":"D"},{"$f":"'Startovní listina'!B34","v":38},{"$f":"'Startovní listina'!C34","v":"Chromý"},{"$f":"'Startovní listina'!D34","v":"Bořivoj"},{"$f":"'Startovní listina'!E34","v":1953},{"$f":"'Startovní listina'!F34","v":"Tišnov"},"03:21:42"]
[{"$f":"IF('Výsledková listina'!D39<>\"\",A39+1,\"\")","v":36},9,{"$f":"'Startovní listina'!G55","v":"A"},{"$f":"'Startovní listina'!B55","v":70},{"$f":"'Startovní listina'!C55","v":"Kalich"},{"$f":"'Startovní listina'!D55","v":"Daniel"},{"$f":"'Startovní listina'!E55","v":1982},{"$f":"'Startovní listina'!F55","v":"Brno"},"03:21:48"]
[{"$f":"IF('Výsledková listina'!D40<>\"\",A40+1,\"\")","v":37},4,{"$f":"'Startovní listina'!G62","v":"D"},{"$f":"'Startovní listina'!B62","v":80},{"$f":"'Startovní listina'!C62","v":"Glier"},{"$f":"'Startovní listina'!D62","v":"Miroslav"},{"$f":"'Startovní listina'!E62","v":1949},{"$f":"'Startovní listina'!F62","v":"Ústí nad Labem"},"03:22:35"]
[{"$f":"IF('Výsledková listina'!D41<>\"\",A41+1,\"\")","v":38},11,{"$f":"'Startovní listina'!G44","v":"B"},{"$f":"'Startovní listina'!B44","v":51},{"$f":"'Startovní listina'!C44","v":"Dvořák"},{"$f":"'Startovní listina'!D44","v":"Vojtěch"},{"$f":"'Startovní listina'!E44","v":1974},{"$f":"'Startovní listina'!F44","v":"Brno"},"03:24:14"]
[{"$f":"IF('Výsledková listina'!D42<>\"\",A42+1,\"\")","v":39},10,{"$f":"'Startovní listina'!G23","v":"A"},{"$f":"'Startovní listina'!B23","v":24},{"$f":"'Startovní listina'!C23","v":"Vrba"},{"$f":"'Startovní listina'!D23","v":"Tomáš"},{"$f":"'Startovní listina'!E23","v":1986},{"$f":"'Startovní listina'!F23","v":"Bystré"},"03:24:30"]
[{"$f":"IF('Výsledková listina'!D43<>\"\",A43+1,\"\")","v":40},5,{"$f":"'Startovní listina'!G49","v":"D"},{"$f":"'Startovní listina'!B49","v":61},{"$f":"'Startovní listina'!C49","v":"Nekuža"},{"$f":"'Startovní listina'!D49","v":"Jiří"},{"$f":"'Startovní listina'!E49","v":1951},{"$f":"'Startovní listina'!F49","v":"RUNNERS Zbýšov"},"03:28:12"]
[{"$f":"IF('Výsledková listina'!D44<>\"\",A44+1,\"\")","v":41},11,{"$f":"'Startovní listina'!G17","v":"A"},{"$f":"'Startovní listina'!B17","v":17},{"$f":"'Startovní listina'!C17","v":"Ptáček"},{"$f":"'Startovní listina'!D17","v":"Michal"},{"$f":"'Startovní listina'!E17","v":1986},{"$f":"'Startovní listina'!F17","v":"člen nadšenců parku Lužánky"},"03:29:37"]
[{"$f":"IF('Výsledková listina'!D45<>\"\",A45+1,\"\")","v":42},12,{"$f":"'Startovní listina'!G26","v":"B"},{"$f":"'Startovní listina'!B26","v":28},{"$f":"'Startovní listina'!C26","v":"Pučálka"},{"$f":"'Startovní listina'!D26","v":"Radek"},{"$f":"'Startovní listina'!E26","v":1973},{"$f":"'Startovní listina'!F26","v":"Železárny Štěpánov s.r.o"},"03:32:19"]
[{"$f":"IF('Výsledková listina'!D46<>\"\",A46+1,\"\")","v":43},2,{"$f":"'Startovní listina'!G53","v":"H"},{"$f":"'Startovní listina'!B53","v":67},{"$f":"'Startovní listina'!C53","v":"Podmelová"},{"$f":"'Startovní listina'!D53","v":"Vilma"},{"$f":"'Startovní listina'!E53","v":1962},{"$f":"'Startovní listina'!F53","v":"AC Moravská Slavia Brno"},"03:34:29"]
[{"$f":"IF('Výsledková listina'!D47<>\"\",A47+1,\"\")","v":44},13,{"$f":"'Startovní listina'!G67","v":"B"},{"$f":"'Startovní listina'!B67","v":86},{"$f":"'Startovní listina'!C67","v":"Benc"},{"$f":"'Startovní listina'!D67","v":"Karel"},{"$f":"'Startovní listina'!E67","v":1975},{"$f":"'Startovní listina'!F67","v":"Pivonice"},"03:36:44"]
[{"$f":"IF('Výsledková listina'!D48<>\"\",A48+1,\"\")","v":45},6,{"$f":"'Startovní listina'!G64","v":"C"},{"$f":"'Startovní listina'!B64","v":83},{"$f":"'Startovní listina'!C64","v":"Zourek"},{"$f":"'Startovní listina'!D64","v":"Karel"},{"$f":"'Startovní listina'!E64","v":1959},{"$f":"'Startovní listina'!F64","v":"Bedřichovice"},"03:41:37"]
[{"$f":"IF('Výsledková listina'!D49<>\"\",A49+1,\"\")","v":46},5,{"$f":"'Startovní listina'!G6","v":"G"},{"$f":"'Startovní listina'!B6","v":3},{"$f":"'Startovní listina'!C6","v":"Ježová"},{"$f":"'Startovní listina'!D6","v":"Martina"},{"$f":"'Startovní listina'!E6","v":1975},{"$f":"'Startovní listina'!F6","v":"Brno"},"03:42:47"]
[{"$f":"IF('Výsledková listina'!D50<>\"\",A50+1,\"\")","v":47},5,{"$f":"'Startovní listina'!G27","v":"F"},{"$f":"'Startovní listina'!B27","v":30},{"$f":"'Startovní listina'!C27","v":"Křípalová"},{"$f":"'Startovní listina'!D27","v":"Renata"},{"$f":"'Startovní listina'!E27","v":1983},{"$f":"'Startovní listina'!F27","v":"Třebíč"},"03:43:37"]
[{"$f":"IF('Výsledková listina'!D51<>\"\",A51+1,\"\")","v":48},6,{"$f":"'Startovní listina'!G9","v":"F"},{"$f":"'Startovní listina'!B9","v":6},{"$f":"'Startovní listina'!C9","v":"Navrátilová"},{"$f":"'Startovní listina'!D9","v":"Vlasta"},{"$f":"'Startovní listina'!E9","v":1983},{"$f":"'Startovní listina'!F9","v":"Vír"},"03:47:53"]
[{"$f":"IF('Výsledková listina'!D52<>\"\",A52+1,\"\")","v":49},6,{"$f":"'Startovní listina'!G48","v":"G"},{"$f":"'Startovní listina'!B48","v":60},{"$f":"'Startovní listina'!C48","v":"Rokosová"},{"$f":"'Startovní listina'!D48","v":"Ivana"},{"$f":"'Startovní listina'!E48","v":1982},{"$f":"'Startovní listina'!F48","v":"Polička"},"03:50:36"]
[{"$f":"IF('Výsledková listina'!D53<>\"\",A53+1,\"\")","v":50},7,{"$f":"'Startovní listina'!G45","v":"C"},{"$f":"'Startovní listina'!B45","v":54},{"$f":"'Startovní listina'!C45","v":"Drózd"},{"$f":"'Startovní listina'!D45","v":"Januš"},{"$f":"'Startovní listina'!E45","v":1962},{"$f":"'Startovní listina'!F45","v":"Velké Přílepy"},"03:52:56"]
[{"$f":"IF('Výsledková listina'!D54<>\"\",A54+1,\"\")","v":51},7,{"$f":"'Startovní listina'!G28","v":"G"},{"$f":"'Startovní listina'!B28","v":31},{"$f":"'Startovní listina'!C28","v":"Škvařilová"},{"$f":"'Startovní listina'!D28","v":"Eva"},{"$f":"'Startovní listina'!E28","v":1973},{"$f":"'Startovní listina'!F28","v":"RSFK Říčany"},"03:54:13"]
[{"$f":"IF('Výsledková listina'!D55<>\"\",A55+1,\"\")","v":52},3,{"$f":"'Startovní listina'!G36","v":"H"},{"$f":"'Startovní listina'!B36","v":41},{"$f":"'Startovní listina'!C36","v":"Křižovičová"},{"$f":"'Startovní listina'!D36","v":"Hana"},{"$f":"'Startovní listina'!E36","v":1971},{"$f":"'Startovní listina'!F36","v":"Nové Město na Moravě"},"03:54:14"]
[{"$f":"IF('Výsledková listina'!D56<>\"\",A56+1,\"\")","v":53},14,{"$f":"'Startovní listina'!G54","v":"B"},{"$f":"'Startovní listina'!B54","v":69},{"$f":"'Startovní listina'!C54","v":"Faja"},{"$f":"'Startovní listina'!D54","v":"Ondřej"},{"$f":"'Startovní listina'!E54","v":1976},{"$f":"'Startovní listina'!F54","v":"Brno"},"03:57:29"]
[{"$f":"IF('Výsledková listina'!D57<>\"\",A57+1,\"\")","v":54},8,{"$f":"'Startovní listina'!G51","v":"C"},{"$f":"'Startovní listina'!B51","v":63},{"$f":"'Startovní listina'!C51","v":"Münster"},{"$f":"'Startovní listina'!D51","v":"Libor"},{"$f":"'Startovní listina'!E51","v":1966},{"$f":"'Startovní listina'!F51","v":"Blansko"},"04:01:51"]
[{"$f":"IF('Výsledková listina'!D58<>\"\",A58+1,\"\")","v":55},4,{"$f":"'Startovní listina'!G11","v":"H"},{"$f":"'Startovní listina'!B11","v":9},{"$f":"'Startovní listina'!C11","v":"Tesařová"},{"$f":"'Startovní listina'!D11","v":"Marie"},{"$f":"'Startovní listina'!E11","v":1954},{"$f":"'Startovní listina'!F11","v":"Křižanov"},"04:04:20"]
[{"$f":"IF('Výsledková listina'!D59<>\"\",A59+1,\"\")","v":56},5,{"$f":"'Startovní listina'!G24","v":"H"},{"$f":"'Startovní listina'!B24","v":26},{"$f":"'Startovní listina'!C24","v":"Šedová"},{"$f":"'Startovní listina'!D24","v":"Věra"},{"$f":"'Startovní listina'!E24","v":1964},{"$f":"'Startovní listina'!F24","v":"Praha"},"04:09:04"]
[{"$f":"IF('Výsledková listina'!D60<>\"\",A60+1,\"\")","v":57},8,{"$f":"'Startovní listina'!G47","v":"G"},{"$f":"'Startovní listina'!B47","v":58},{"$f":"'Startovní listina'!C47","v":"Benešová"},{"$f":"'Startovní listina'!D47","v":"Marie"},{"$f":"'Startovní listina'!E47","v":1982},{"$f":"'Startovní listina'!F47","v":"Dolní Rožínka"},"04:10:36"]
[{"$f":"IF('Výsledková listina'!D61<>\"\",A61+1,\"\")","v":58},1,{"$f":"'Startovní listina'!G12","v":"E"},{"$f":"'Startovní listina'!B12","v":10},{"$f":"'Startovní listina'!C12","v":"Holý"},{"$f":"'Startovní listina'!D12","v":"Josef"},{"$f":"'Startovní listina'!E12","v":1941},{"$f":"'Startovní listina'!F12","v":"AC Moravská Slavia Brno"},"04:11:22"]
[{"$f":"IF('Výsledková listina'!D62<>\"\",A62+1,\"\")","v":59},12,{"$f":"'Startovní listina'!G14","v":"A"},{"$f":"'Startovní listina'!B14","v":12},{"$f":"'Startovní listina'!C14","v":"Pivec"},{"$f":"'Startovní listina'!D14","v":"Jan"},{"$f":"'Startovní listina'!E14","v":1981},{"$f":"'Startovní listina'!F14","v":"Digitor.cz"},"DNF"]
[{"$f":"IF('Výsledková listina'!D63<>\"\",A63+1,\"\")","v":60},13,{"$f":"'Startovní listina'!G50","v":"A"},{"$f":"'Startovní listina'!B50","v":62},{"$f":"'Startovní listina'!C50","v":"Tomek"},{"$f":"'Startovní listina'!D50","v":"Pavel"},{"$f":"'Startovní listina'!E50","v":1980},{"$f":"'Startovní listina'!F50","v":"Brno"},"DNF"]
[{"$f":"IF('Výsledková listina'!D64<>\"\",A64+1,\"\")","v":61},15,{"$f":"'Startovní listina'!G18","v":"B"},{"$f":"'Startovní listina'!B18","v":18},{"$f":"'Startovní listina'!C18","v":"Benko"},{"$f":"'Startovní listina'!D18","v":"Jan"},{"$f":"'Startovní listina'!E18","v":1974},{"$f":"'Startovní listina'!F18","v":"GOMANGO Litomyšl"},"DNF"]
[{"$f":"IF('Výsledková listina'!D65<>\"\",A65+1,\"\")","v":62},16,{"$f":"'Startovní listina'!G25","v":"B"},{"$f":"'Startovní listina'!B25","v":27},{"$f":"'Startovní listina'!C25","v":"Žličař"},{"$f":"'Startovní listina'!D25","v":"Karel"},{"$f":"'Startovní listina'!E25","v":1977},{"$f":"'Startovní listina'!F25","v":"Železárny Štěpánov s.r.o"},"DNF"]
[{"$f":"IF('Výsledková listina'!D66<>\"\",A66+1,\"\")","v":63},9,{"$f":"'Startovní listina'!G13","v":"G"},{"$f":"'Startovní listina'!B13","v":11},{"$f":"'Startovní listina'!C13","v":"Dostálová"},{"$f":"'Startovní listina'!D13","v":"Vendula"},{"$f":"'Startovní listina'!E13","v":1981},{"$f":"'Startovní listina'!F13","v":"Digitor.cz"},"DNF"]
[{"$f":"IF('Výsledková listina'!D67<>\"\",A67+1,\"\")","v":64},null,{"$f":"'Startovní listina'!G68","v":""},{"$f":"'Startovní listina'!B68","v":""},{"$f":"'Startovní listina'!C68","v":""},{"$f":"'Startovní listina'!D68","v":""},{"$f":"'Startovní listina'!E68","v":""},{"$f":"'Startovní listina'!F68","v":""}]
[{"$f":"IF('Výsledková listina'!D68<>\"\",A68+1,\"\")","v":""},null,{"$f":"'Startovní listina'!G69","v":""},{"$f":"'Startovní listina'!B69","v":""},{"$f":"'Startovní listina'!C69","v":""},{"$f":"'Startovní listina'!D69","v":""},{"$f":"'Startovní listina'!E69","v":""},{"$f":"'Startovní listina'!F69","v":""}]
[{"$f":"IF('Výsledková listina'!D69<>\"\",A69+1,\"\")","v":""},null,{"$f":"'Startovní listina'!G70","v":""},{"$f":"'Startovní listina'!B70","v":""},{"$f":"'Startovní listina'!C70","v":""},{"$f":"'Startovní listina'!D70","v":""},{"$f":"'Startovní listina'!E70","v":""},{"$f":"'Startovní listina'!F70","v":""}]
[{"$f":"IF('Výsledková listina'!D70<>\"\",A70+1,\"\")","v":""},null,{"$f":"'Startovní listina'!G71","v":""},{"$f":"'Startovní listina'!B71","v":""},{"$f":"'Startovní listina'!C71","v":""},{"$f":"'Startovní listina'!D71","v":""},{"$f":"'Startovní listina'!E71","v":""},{"$f":"'Startovní listina'!F71","v":""}]
[{"$f":"IF('Výsledková listina'!D71<>\"\",A71+1,\"\")","v":""},null,{"$f":"'Startovní listina'!G72","v":""},{"$f":"'Startovní listina'!B72","v":""},{"$f":"'Startovní listina'!C72","v":""},{"$f":"'Startovní listina'!D72","v":""},{"$f":"'Startovní listina'!E72","v":""},{"$f":"'Startovní listina'!F72","v":""}]
[{"$f":"IF('Výsledková listina'!D72<>\"\",A72+1,\"\")","v":""},null,{"$f":"'Startovní listina'!G73","v":""},{"$f":"'Startovní listina'!B73","v":""},{"$f":"'Startovní listina'!C73","v":""},{"$f":"'Startovní listina'!D73","v":""},{"$f":"'Startovní listina'!E73","v":""},{"$f":"'Startovní listina'!F73","v":""}]
[{"$f":"IF('Výsledková listina'!D73<>\"\",A73+1,\"\")","v":""},null,{"$f":"'Startovní listina'!G74","v":""},{"$f":"'Startovní listina'!B74","v":""},{"$f":"'Startovní listina'!C74","v":""},{"$f":"'Startovní listina'!D74","v":""},{"$f":"'Startovní listina'!E74","v":""},{"$f":"'Startovní listina'!F74","v":""}]
[{"$f":"IF('Výsledková listina'!D74<>\"\",A74+1,\"\")","v":""},null,{"$f":"'Startovní listina'!G77","v":""},{"$f":"'Startovní listina'!B77","v":""},{"$f":"'Startovní listina'!C77","v":""},{"$f":"'Startovní listina'!D77","v":""},{"$f":"'Startovní listina'!E77","v":""},{"$f":"'Startovní listina'!F77","v":""}]
[{"$f":"IF('Výsledková listina'!D75<>\"\",A75+1,\"\")","v":""},null,{"$f":"'Startovní listina'!G80","v":""},{"$f":"'Startovní listina'!B80","v":""},{"$f":"'Startovní listina'!C80","v":""},{"$f":"'Startovní listina'!D80","v":""},{"$f":"'Startovní listina'!E80","v":""},{"$f":"'Startovní listina'!F80","v":""}]
[{"$f":"IF('Výsledková listina'!D76<>\"\",A76+1,\"\")","v":""},null,{"$f":"'Startovní listina'!G73","v":""},{"$f":"'Startovní listina'!B73","v":""},{"$f":"'Startovní listina'!C73","v":""},{"$f":"'Startovní listina'!D73","v":""},{"$f":"'Startovní listina'!E73","v":""},{"$f":"'Startovní listina'!F73","v":""}]
[{"$f":"IF('Výsledková listina'!D77<>\"\",A77+1,\"\")","v":""},null,{"$f":"'Startovní listina'!G81","v":""},{"$f":"'Startovní listina'!B81","v":""},{"$f":"'Startovní listina'!C81","v":""},{"$f":"'Startovní listina'!D81","v":""},{"$f":"'Startovní listina'!E81","v":""},{"$f":"'Startovní listina'!F81","v":""}]
[{"$f":"IF('Výsledková listina'!D78<>\"\",A78+1,\"\")","v":""},null,{"$f":"'Startovní listina'!G75","v":""},{"$f":"'Startovní listina'!B75","v":""},{"$f":"'Startovní listina'!C75","v":""},{"$f":"'Startovní listina'!D75","v":""},{"$f":"'Startovní listina'!E75","v":""},{"$f":"'Startovní listina'!F75","v":""}]
[{"$f":"IF('Výsledková listina'!D79<>\"\",A79+1,\"\")","v":""},null,{"$f":"'Startovní listina'!G78","v":""},{"$f":"'Startovní listina'!B78","v":""},{"$f":"'Startovní listina'!C78","v":""},{"$f":"'Startovní listina'!D78","v":""},{"$f":"'Startovní listina'!E78","v":""},{"$f":"'Startovní listina'!F78","v":""}]
[{"$f":"IF('Výsledková listina'!D80<>\"\",A80+1,\"\")","v":""},null,{"$f":"'Startovní listina'!G68","v":""},{"$f":"'Startovní listina'!B68","v":""},{"$f":"'Startovní listina'!C68","v":""},{"$f":"'Startovní listina'!D68","v":""},{"$f":"'Startovní listina'!E68","v":""},{"$f":"'Startovní listina'!F68","v":""}]
[{"$f":"IF('Výsledková listina'!D81<>\"\",A81+1,\"\")","v":""},null,{"$f":"'Startovní listina'!G79","v":""},{"$f":"'Startovní listina'!B79","v":""},{"$f":"'Startovní listina'!C79","v":""},{"$f":"'Startovní listina'!D79","v":""},{"$f":"'Startovní listina'!E79","v":""},{"$f":"'Startovní listina'!F79","v":""}]
[{"$f":"IF('Výsledková listina'!D82<>\"\",A82+1,\"\")","v":""},null,{"$f":"'Startovní listina'!G82","v":""},{"$f":"'Startovní listina'!B82","v":""},{"$f":"'Startovní listina'!C82","v":""},{"$f":"'Startovní listina'!D82","v":""},{"$f":"'Startovní listina'!E82","v":""},{"$f":"'Startovní listina'!F82","v":""}]
[{"$f":"IF('Výsledková listina'!D83<>\"\",A83+1,\"\")","v":""},null,{"$f":"'Startovní listina'!G83","v":""},{"$f":"'Startovní listina'!B83","v":""},{"$f":"'Startovní listina'!C83","v":""},{"$f":"'Startovní listina'!D83","v":""},{"$f":"'Startovní listina'!E83","v":""},{"$f":"'Startovní listina'!F83","v":""}]
[{"$f":"IF('Výsledková listina'!D84<>\"\",A84+1,\"\")","v":""},null,{"$f":"'Startovní listina'!G85","v":""},{"$f":"'Startovní listina'!B85","v":""},{"$f":"'Startovní listina'!C85","v":""},{"$f":"'Startovní listina'!D85","v":""},{"$f":"'Startovní listina'!E85","v":""},{"$f":"'Startovní listina'!F85","v":""}]
[{"$f":"IF('Výsledková listina'!D85<>\"\",A85+1,\"\")","v":""},null,{"$f":"'Startovní listina'!G86","v":""},{"$f":"'Startovní listina'!B86","v":""},{"$f":"'Startovní listina'!C86","v":""},{"$f":"'Startovní listina'!D86","v":""},{"$f":"'Startovní listina'!E86","v":""},{"$f":"'Startovní listina'!F86","v":""}]
[{"$f":"IF('Výsledková listina'!D86<>\"\",A86+1,\"\")","v":""},null,{"$f":"'Startovní listina'!G87","v":""},{"$f":"'Startovní listina'!B87","v":""},{"$f":"'Startovní listina'!C87","v":""},{"$f":"'Startovní listina'!D87","v":""},{"$f":"'Startovní listina'!E87","v":""},{"$f":"'Startovní listina'!F87","v":""}]
[{"$f":"IF('Výsledková listina'!D87<>\"\",A87+1,\"\")","v":""},null,{"$f":"'Startovní listina'!G88","v":""},{"$f":"'Startovní listina'!B88","v":""},{"$f":"'Startovní listina'!C88","v":""},{"$f":"'Startovní listina'!D88","v":""},{"$f":"'Startovní listina'!E88","v":""},{"$f":"'Startovní listina'!F88","v":""}]
[{"$f":"IF('Výsledková listina'!D88<>\"\",A88+1,\"\")","v":""},null,{"$f":"'Startovní listina'!G89","v":""},{"$f":"'Startovní listina'!B89","v":""},{"$f":"'Startovní listina'!C89","v":""},{"$f":"'Startovní listina'!D89","v":""},{"$f":"'Startovní listina'!E89","v":""},{"$f":"'Startovní listina'!F89","v":""}]
[{"$f":"IF('Výsledková listina'!D89<>\"\",A89+1,\"\")","v":""},null,{"$f":"'Startovní listina'!G90","v":""},{"$f":"'Startovní listina'!B90","v":""},{"$f":"'Startovní listina'!C90","v":""},{"$f":"'Startovní listina'!D90","v":""},{"$f":"'Startovní listina'!E90","v":""},{"$f":"'Startovní listina'!F90","v":""}]
[{"$f":"IF('Výsledková listina'!D90<>\"\",A90+1,\"\")","v":""},null,{"$f":"'Startovní listina'!G91","v":""},{"$f":"'Startovní listina'!B91","v":""},{"$f":"'Startovní listina'!C91","v":""},{"$f":"'Startovní listina'!D91","v":""},{"$f":"'Startovní listina'!E91","v":""},{"$f":"'Startovní listina'!F91","v":""}]
[{"$f":"IF('Výsledková listina'!D91<>\"\",A91+1,\"\")","v":""},null,{"$f":"'Startovní listina'!G92","v":""},{"$f":"'Startovní listina'!B92","v":""},{"$f":"'Startovní listina'!C92","v":""},{"$f":"'Startovní listina'!D92","v":""},{"$f":"'Startovní listina'!E92","v":""},{"$f":"'Startovní listina'!F92","v":""}]
[{"$f":"IF('Výsledková listina'!D92<>\"\",A92+1,\"\")","v":""},null,{"$f":"'Startovní listina'!G93","v":""},{"$f":"'Startovní listina'!B93","v":""},{"$f":"'Startovní listina'!C93","v":""},{"$f":"'Startovní listina'!D93","v":""},{"$f":"'Startovní listina'!E93","v":""},{"$f":"'Startovní listina'!F93","v":""}]
[{"$f":"IF('Výsledková listina'!D93<>\"\",A93+1,\"\")","v":""},null,{"$f":"'Startovní listina'!G94","v":""},{"$f":"'Startovní listina'!B94","v":""},{"$f":"'Startovní listina'!C94","v":""},{"$f":"'Startovní listina'!D94","v":""},{"$f":"'Startovní listina'!E94","v":""},{"$f":"'Startovní listina'!F94","v":""}]
[{"$f":"IF('Výsledková listina'!D94<>\"\",A94+1,\"\")","v":""},null,{"$f":"'Startovní listina'!G95","v":""},{"$f":"'Startovní listina'!B95","v":""},{"$f":"'Startovní listina'!C95","v":""},{"$f":"'Startovní listina'!D95","v":""},{"$f":"'Startovní listina'!E95","v":""},{"$f":"'Startovní listina'!F95","v":""}]
[{"$f":"IF('Výsledková listina'!D95<>\"\",A95+1,\"\")","v":""},null,{"$f":"'Startovní listina'!G96","v":""},{"$f":"'Startovní listina'!B96","v":""},{"$f":"'Startovní listina'!C96","v":""},{"$f":"'Startovní listina'!D96","v":""},{"$f":"'Startovní listina'!E96","v":""},{"$f":"'Startovní listina'!F96","v":""}]
[{"$f":"IF('Výsledková listina'!D96<>\"\",A96+1,\"\")","v":""},null,{"$f":"'Startovní listina'!G97","v":""},{"$f":"'Startovní listina'!B97","v":""},{"$f":"'Startovní listina'!C97","v":""},{"$f":"'Startovní listina'!D97","v":""},{"$f":"'Startovní listina'!E97","v":""},{"$f":"'Startovní listina'!F97","v":""}]
[{"$f":"IF('Výsledková listina'!D97<>\"\",A97+1,\"\")","v":""},null,{"$f":"'Startovní listina'!G98","v":""},{"$f":"'Startovní listina'!B98","v":""},{"$f":"'Startovní listina'!C98","v":""},{"$f":"'Startovní listina'!D98","v":""},{"$f":"'Startovní listina'!E98","v":""},{"$f":"'Startovní listina'!F98","v":""}]
[{"$f":"IF('Výsledková listina'!D98<>\"\",A98+1,\"\")","v":""},null,{"$f":"'Startovní listina'!G99","v":""},{"$f":"'Startovní listina'!B99","v":""},{"$f":"'Startovní listina'!C99","v":""},{"$f":"'Startovní listina'!D99","v":""},{"$f":"'Startovní listina'!E99","v":""},{"$f":"'Startovní listina'!F99","v":""}]
[{"$f":"IF('Výsledková listina'!D99<>\"\",A99+1,\"\")","v":""},null,{"$f":"'Startovní listina'!G100","v":""},{"$f":"'Startovní listina'!B100","v":""},{"$f":"'Startovní listina'!C100","v":""},{"$f":"'Startovní listina'!D100","v":""},{"$f":"'Startovní listina'!E100","v":""},{"$f":"'Startovní listina'!F100","v":""}]
[{"$f":"IF('Výsledková listina'!D100<>\"\",A100+1,\"\")","v":""},null,{"$f":"'Startovní listina'!G101","v":""},{"$f":"'Startovní listina'!B101","v":""},{"$f":"'Startovní listina'!C101","v":""},{"$f":"'Startovní listina'!D101","v":""},{"$f":"'Startovní listina'!E101","v":""},{"$f":"'Startovní listina'!F101","v":""}]
[{"$f":"IF('Výsledková listina'!D101<>\"\",A101+1,\"\")","v":""},null,{"$f":"'Startovní listina'!G102","v":""},{"$f":"'Startovní listina'!B102","v":""},{"$f":"'Startovní listina'!C102","v":""},{"$f":"'Startovní listina'!D102","v":""},{"$f":"'Startovní listina'!E102","v":""},{"$f":"'Startovní listina'!F102","v":""}]
[{"$f":"IF('Výsledková listina'!D102<>\"\",A102+1,\"\")","v":""},null,{"$f":"'Startovní listina'!G103","v":""},{"$f":"'Startovní listina'!B103","v":""},{"$f":"'Startovní listina'!C103","v":""},{"$f":"'Startovní listina'!D103","v":""},{"$f":"'Startovní listina'!E103","v":""},{"$f":"'Startovní listina'!F103","v":""}]
[{"$f":"IF('Výsledková listina'!D103<>\"\",A103+1,\"\")","v":""},null,{"$f":"'Startovní listina'!G104","v":""},{"$f":"'Startovní listina'!B104","v":""},{"$f":"'Startovní listina'!C104","v":""},{"$f":"'Startovní listina'!D104","v":""},{"$f":"'Startovní listina'!E104","v":""},{"$f":"'Startovní listina'!F104","v":""}]

{"sheet":"Družstva","index":3,"n_rows":25,"n_cols":11,"rows_kept":25,"cut":false,"hidden":true,"merged":[[21,1,22,1],[21,6,22,6],[21,8,22,8],[23,1,24,1],[23,6,24,6],[23,8,24,8],[3,8,4,8],[11,8,12,8],[0,1,0,8],[1,1,1,8],[13,8,14,8],[3,1,4,1],[11,1,12,1],[5,1,6,1],[7,1,8,1],[9,1,10,1],[5,6,6,6],[13,1,14,1],[3,6,4,6],[13,6,14,6],[7,6,8,6],[9,6,10,6],[11,6,12,6],[5,8,6,8],[7,8,8,8],[9,8,10,8],[15,1,16,1],[15,6,16,6],[15,8,16,8],[17,1,18,1],[17,6,18,6],[17,8,18,8],[19,1,20,1],[19,6,20,6],[19,8,20,8]]}
[null,{"$f":"\"Výsledková listina - Malý svratecký maratón \"&'Prezenční listina'!O2&\" - družstva\"","v":"Výsledková listina - Malý svratecký maratón 2017 - družstva"}]
[null,{"$f":"'Prezenční listina'!O2-1953&\". ročník\"","v":"64. ročník"}]
[null,"Pořadí","Startovní číslo","Příjmení","Jméno","Narození","Oddíl / Bydliště","Čas","Výsledný čas"]
[null,"1.",48,{"$f":"IF(ISERROR(VLOOKUP(C4,'Startovní listina'!$B$5:$F$141,2)),\"\",VLOOKUP(C4,'Startovní listina'!$B$5:$F$141,2))","v":"Plekanec"},{"$f":"IF(ISERROR(VLOOKUP(C4,'Startovní listina'!$B$5:$F$141,3)),\"\",VLOOKUP(C4,'Startovní listina'!$B$5:$F$141,3))","v":"Juraj"},{"$f":"IF(ISERROR(VLOOKUP(C4,'Startovní listina'!$B$5:$F$141,4)),\"\",VLOOKUP(C4,'Startovní listina'!$B$5:$F$141,4))","v":1974},{"$f":"IF(K4=K5,K4,\"RŮZNÉ ODDÍLY !!!\")","v":"Brno"},"02:07:40",{"$f":"IF((H4=0),\"\",H4+H5)","v":"04:27:39"},null,{"$f":"IF(ISERROR(VLOOKUP(C4,'Startovní listina'!$B$5:$F$141,5)),\"\",VLOOKUP(C4,'Startovní listina'!$B$5:$F$141,5))","v":"Brno"}]
[null,null,49,{"$f":"IF(ISERROR(VLOOKUP(C5,'Startovní listina'!$B$5:$F$141,2)),\"\",VLOOKUP(C5,'Startovní listina'!$B$5:$F$141,2))","v":"Ondráček"},{"$f":"IF(ISERROR(VLOOKUP(C5,'Startovní listina'!$B$5:$F$141,3)),\"\",VLOOKUP(C5,'Startovní listina'!$B$5:$F$141,3))","v":"Tomáš"},{"$f":"IF(ISERROR(VLOOKUP(C5,'Startovní listina'!$B$5:$F$141,4)),\"\",VLOOKUP(C5,'Startovní listina'!$B$5:$F$141,4))","v":1977},null,"02:19:59",null,null,{"$f":"IF(ISERROR(VLOOKUP(C5,'Startovní listina'!$B$5:$F$141,5)),\"\",VLOOKUP(C5,'Startovní listina'!$B$5:$F$141,5))","v":"Brno"}]
[null,"2.",null,{"$f":"IF(ISERROR(VLOOKUP(C6,'Startovní listina'!$B$5:$F$141,2)),\"\",VLOOKUP(C6,'Startovní listina'!$B$5:$F$141,2))","v":""},{"$f":"IF(ISERROR(VLOOKUP(C6,'Startovní listina'!$B$5:$F$141,3)),\"\",VLOOKUP(C6,'Startovní listina'!$B$5:$F$141,3))","v":""},{"$f":"IF(ISERROR(VLOOKUP(C6,'Startovní listina'!$B$5:$F$141,4)),\"\",VLOOKUP(C6,'Startovní listina'!$B$5:$F$141,4))","v":""},{"$f":"IF(K6=K7,K6,\"RŮZNÉ ODDÍLY !!!\")","v":""},"03:50:36",{"$f":"IF((H6=0),\"\",H6+H7)","v":"04:35:36"},null,{"$f":"IF(ISERROR(VLOOKUP(C6,'Startovní listina'!$B$5:$F$141,5)),\"\",VLOOKUP(C6,'Startovní listina'!$B$5:$F$141,5))","v":""}]
[null,null,null,{"$f":"IF(ISERROR(VLOOKUP(C7,'Startovní listina'!$B$5:$F$141,2)),\"\",VLOOKUP(C7,'Startovní listina'!$B$5:$F$141,2))","v":""},{"$f":"IF(ISERROR(VLOOKUP(C7,'Startovní listina'!$B$5:$F$141,3)),\"\",VLOOKUP(C7,'Startovní listina'!$B$5:$F$141,3))","v":""},{"$f":"IF(ISERROR(VLOOKUP(C7,'Startovní listina'!$B$5:$F$141,4)),\"\",VLOOKUP(C7,'Startovní listina'!$B$5:$F$141,4))","v":""},null,"00:45:00",null,null,{"$f":"IF(ISERROR(VLOOKUP(C7,'Startovní listina'!$B$5:$F$141,5)),\"\",VLOOKUP(C7,'Startovní listina'!$B$5:$F$141,5))","v":""}]
[null,"3.",null,{"$f":"IF(ISERROR(VLOOKUP(C8,'Startovní listina'!$B$5:$F$141,2)),\"\",VLOOKUP(C8,'Startovní listina'!$B$5:$F$141,2))","v":""},{"$f":"IF(ISERROR(VLOOKUP(C8,'Startovní listina'!$B$5:$F$141,3)),\"\",VLOOKUP(C8,'Startovní listina'!$B$5:$F$141,3))","v":""},{"$f":"IF(ISERROR(VLOOKUP(C8,'Startovní listina'!$B$5:$F$141,4)),\"\",VLOOKUP(C8,'Startovní listina'!$B$5:$F$141,4))","v":""},{"$f":"IF(K8=K9,K8,\"RŮZNÉ ODDÍLY !!!\")","v":""},null,{"$f":"IF((H8=0),\"\",H8+H9)","v":""},null,{"$f":"IF(ISERROR(VLOOKUP(C8,'Startovní listina'!$B$5:$F$141,5)),\"\",VLOOKUP(C8,'Startovní listina'!$B$5:$F$141,5))","v":""}]
[null,null,null,{"$f":"IF(ISERROR(VLOOKUP(C9,'Startovní listina'!$B$5:$F$141,2)),\"\",VLOOKUP(C9,'Startovní listina'!$B$5:$F$141,2))","v":""},{"$f":"IF(ISERROR(VLOOKUP(C9,'Startovní listina'!$B$5:$F$141,3)),\"\",VLOOKUP(C9,'Startovní listina'!$B$5:$F$141,3))","v":""},{"$f":"IF(ISERROR(VLOOKUP(C9,'Startovní listina'!$B$5:$F$141,4)),\"\",VLOOKUP(C9,'Startovní listina'!$B$5:$F$141,4))","v":""},null,null,null,null,{"$f":"IF(ISERROR(VLOOKUP(C9,'Startovní listina'!$B$5:$F$141,5)),\"\",VLOOKUP(C9,'Startovní listina'!$B$5:$F$141,5))","v":""}]
[null,"4.",null,{"$f":"IF(ISERROR(VLOOKUP(C10,'Startovní listina'!$B$5:$F$141,2)),\"\",VLOOKUP(C10,'Startovní listina'!$B$5:$F$141,2))","v":""},{"$f":"IF(ISERROR(VLOOKUP(C10,'Startovní listina'!$B$5:$F$141,3)),\"\",VLOOKUP(C10,'Startovní listina'!$B$5:$F$141,3))","v":""},{"$f":"IF(ISERROR(VLOOKUP(C10,'Startovní listina'!$B$5:$F$141,4)),\"\",VLOOKUP(C10,'Startovní listina'!$B$5:$F$141,4))","v":""},{"$f":"IF(K10=K11,K10,\"RŮZNÉ ODDÍLY !!!\")","v":""},null,{"$f":"IF((H10=0),\"\",H10+H11)","v":""},null,{"$f":"IF(ISERROR(VLOOKUP(C10,'Startovní listina'!$B$5:$F$141,5)),\"\",VLOOKUP(C10,'Startovní listina'!$B$5:$F$141,5))","v":""}]
[null,null,null,{"$f":"IF(ISERROR(VLOOKUP(C11,'Startovní listina'!$B$5:$F$141,2)),\"\",VLOOKUP(C11,'Startovní listina'!$B$5:$F$141,2))","v":""},{"$f":"IF(ISERROR(VLOOKUP(C11,'Startovní listina'!$B$5:$F$141,3)),\"\",VLOOKUP(C11,'Startovní listina'!$B$5:$F$141,3))","v":""},{"$f":"IF(ISERROR(VLOOKUP(C11,'Startovní listina'!$B$5:$F$141,4)),\"\",VLOOKUP(C11,'Startovní listina'!$B$5:$F$141,4))","v":""},null,null,null,null,{"$f":"IF(ISERROR(VLOOKUP(C11,'Startovní listina'!$B$5:$F$141,5)),\"\",VLOOKUP(C11,'Startovní listina'!$B$5:$F$141,5))","v":""}]
[null,"5.",null,{"$f":"IF(ISERROR(VLOOKUP(C12,'Startovní listina'!$B$5:$F$141,2)),\"\",VLOOKUP(C12,'Startovní listina'!$B$5:$F$141,2))","v":""},{"$f":"IF(ISERROR(VLOOKUP(C12,'Startovní listina'!$B$5:$F$141,3)),\"\",VLOOKUP(C12,'Startovní listina'!$B$5:$F$141,3))","v":""},{"$f":"IF(ISERROR(VLOOKUP(C12,'Startovní listina'!$B$5:$F$141,4)),\"\",VLOOKUP(C12,'Startovní listina'!$B$5:$F$141,4))","v":""},{"$f":"IF(K12=K13,K12,\"RŮZNÉ ODDÍLY !!!\")","v":""},null,{"$f":"IF((H12=0),\"\",H12+H13)","v":""},null,{"$f":"IF(ISERROR(VLOOKUP(C12,'Startovní listina'!$B$5:$F$141,5)),\"\",VLOOKUP(C12,'Startovní listina'!$B$5:$F$141,5))","v":""}]
[null,null,null,{"$f":"IF(ISERROR(VLOOKUP(C13,'Startovní listina'!$B$5:$F$141,2)),\"\",VLOOKUP(C13,'Startovní listina'!$B$5:$F$141,2))","v":""},{"$f":"IF(ISERROR(VLOOKUP(C13,'Startovní listina'!$B$5:$F$141,3)),\"\",VLOOKUP(C13,'Startovní listina'!$B$5:$F$141,3))","v":""},{"$f":"IF(ISERROR(VLOOKUP(C13,'Startovní listina'!$B$5:$F$141,4)),\"\",VLOOKUP(C13,'Startovní listina'!$B$5:$F$141,4))","v":""},null,null,null,null,{"$f":"IF(ISERROR(VLOOKUP(C13,'Startovní listina'!$B$5:$F$141,5)),\"\",VLOOKUP(C13,'Startovní listina'!$B$5:$F$141,5))","v":""}]
[null,"6.",null,{"$f":"IF(ISERROR(VLOOKUP(C14,'Startovní listina'!$B$5:$F$141,2)),\"\",VLOOKUP(C14,'Startovní listina'!$B$5:$F$141,2))","v":""},{"$f":"IF(ISERROR(VLOOKUP(C14,'Startovní listina'!$B$5:$F$141,3)),\"\",VLOOKUP(C14,'Startovní listina'!$B$5:$F$141,3))","v":""},{"$f":"IF(ISERROR(VLOOKUP(C14,'Startovní listina'!$B$5:$F$141,4)),\"\",VLOOKUP(C14,'Startovní listina'!$B$5:$F$141,4))","v":""},{"$f":"IF(K14=K15,K14,\"RŮZNÉ ODDÍLY !!!\")","v":""},null,{"$f":"IF((H14=0),\"\",H14+H15)","v":""},null,{"$f":"IF(ISERROR(VLOOKUP(C14,'Startovní listina'!$B$5:$F$141,5)),\"\",VLOOKUP(C14,'Startovní listina'!$B$5:$F$141,5))","v":""}]
[null,null,null,{"$f":"IF(ISERROR(VLOOKUP(C15,'Startovní listina'!$B$5:$F$141,2)),\"\",VLOOKUP(C15,'Startovní listina'!$B$5:$F$141,2))","v":""},{"$f":"IF(ISERROR(VLOOKUP(C15,'Startovní listina'!$B$5:$F$141,3)),\"\",VLOOKUP(C15,'Startovní listina'!$B$5:$F$141,3))","v":""},{"$f":"IF(ISERROR(VLOOKUP(C15,'Startovní listina'!$B$5:$F$141,4)),\"\",VLOOKUP(C15,'Startovní listina'!$B$5:$F$141,4))","v":""},null,null,null,null,{"$f":"IF(ISERROR(VLOOKUP(C15,'Startovní listina'!$B$5:$F$141,5)),\"\",VLOOKUP(C15,'Startovní listina'!$B$5:$F$141,5))","v":""}]
[null,"7.",null,{"$f":"IF(ISERROR(VLOOKUP(C16,'Startovní listina'!$B$5:$F$141,2)),\"\",VLOOKUP(C16,'Startovní listina'!$B$5:$F$141,2))","v":""},{"$f":"IF(ISERROR(VLOOKUP(C16,'Startovní listina'!$B$5:$F$141,3)),\"\",VLOOKUP(C16,'Startovní listina'!$B$5:$F$141,3))","v":""},{"$f":"IF(ISERROR(VLOOKUP(C16,'Startovní listina'!$B$5:$F$141,4)),\"\",VLOOKUP(C16,'Startovní listina'!$B$5:$F$141,4))","v":""},{"$f":"IF(K16=K17,K16,\"RŮZNÉ ODDÍLY !!!\")","v":""},null,{"$f":"IF((H16=0),\"\",H16+H17)","v":""},null,{"$f":"IF(ISERROR(VLOOKUP(C16,'Startovní listina'!$B$5:$F$141,5)),\"\",VLOOKUP(C16,'Startovní listina'!$B$5:$F$141,5))","v":""}]
[null,null,null,{"$f":"IF(ISERROR(VLOOKUP(C17,'Startovní listina'!$B$5:$F$141,2)),\"\",VLOOKUP(C17,'Startovní listina'!$B$5:$F$141,2))","v":""},{"$f":"IF(ISERROR(VLOOKUP(C17,'Startovní listina'!$B$5:$F$141,3)),\"\",VLOOKUP(C17,'Startovní listina'!$B$5:$F$141,3))","v":""},{"$f":"IF(ISERROR(VLOOKUP(C17,'Startovní listina'!$B$5:$F$141,4)),\"\",VLOOKUP(C17,'Startovní listina'!$B$5:$F$141,4))","v":""},null,null,null,null,{"$f":"IF(ISERROR(VLOOKUP(C17,'Startovní listina'!$B$5:$F$141,5)),\"\",VLOOKUP(C17,'Startovní listina'!$B$5:$F$141,5))","v":""}]
[null,"8.",null,{"$f":"IF(ISERROR(VLOOKUP(C18,'Startovní listina'!$B$5:$F$141,2)),\"\",VLOOKUP(C18,'Startovní listina'!$B$5:$F$141,2))","v":""},{"$f":"IF(ISERROR(VLOOKUP(C18,'Startovní listina'!$B$5:$F$141,3)),\"\",VLOOKUP(C18,'Startovní listina'!$B$5:$F$141,3))","v":""},{"$f":"IF(ISERROR(VLOOKUP(C18,'Startovní listina'!$B$5:$F$141,4)),\"\",VLOOKUP(C18,'Startovní listina'!$B$5:$F$141,4))","v":""},null,null,{"$f":"IF((H18=0),\"\",H18+H19)","v":""},null,{"$f":"IF(ISERROR(VLOOKUP(C18,'Startovní listina'!$B$5:$F$141,5)),\"\",VLOOKUP(C18,'Startovní listina'!$B$5:$F$141,5))","v":""}]
[null,null,null,{"$f":"IF(ISERROR(VLOOKUP(C19,'Startovní listina'!$B$5:$F$141,2)),\"\",VLOOKUP(C19,'Startovní listina'!$B$5:$F$141,2))","v":""},{"$f":"IF(ISERROR(VLOOKUP(C19,'Startovní listina'!$B$5:$F$141,3)),\"\",VLOOKUP(C19,'Startovní listina'!$B$5:$F$141,3))","v":""},{"$f":"IF(ISERROR(VLOOKUP(C19,'Startovní listina'!$B$5:$F$141,4)),\"\",VLOOKUP(C19,'Startovní listina'!$B$5:$F$141,4))","v":""},null,null,null,null,{"$f":"IF(ISERROR(VLOOKUP(C19,'Startovní listina'!$B$5:$F$141,5)),\"\",VLOOKUP(C19,'Startovní listina'!$B$5:$F$141,5))","v":""}]
[null,"9.",null,{"$f":"IF(ISERROR(VLOOKUP(C20,'Startovní listina'!$B$5:$F$141,2)),\"\",VLOOKUP(C20,'Startovní listina'!$B$5:$F$141,2))","v":""},{"$f":"IF(ISERROR(VLOOKUP(C20,'Startovní listina'!$B$5:$F$141,3)),\"\",VLOOKUP(C20,'Startovní listina'!$B$5:$F$141,3))","v":""},{"$f":"IF(ISERROR(VLOOKUP(C20,'Startovní listina'!$B$5:$F$141,4)),\"\",VLOOKUP(C20,'Startovní listina'!$B$5:$F$141,4))","v":""},null,null,{"$f":"IF((H20=0),\"\",H20+H21)","v":""},null,{"$f":"IF(ISERROR(VLOOKUP(C20,'Startovní listina'!$B$5:$F$141,5)),\"\",VLOOKUP(C20,'Startovní listina'!$B$5:$F$141,5))","v":""}]
[null,null,null,{"$f":"IF(ISERROR(VLOOKUP(C21,'Startovní listina'!$B$5:$F$141,2)),\"\",VLOOKUP(C21,'Startovní listina'!$B$5:$F$141,2))","v":""},{"$f":"IF(ISERROR(VLOOKUP(C21,'Startovní listina'!$B$5:$F$141,3)),\"\",VLOOKUP(C21,'Startovní listina'!$B$5:$F$141,3))","v":""},{"$f":"IF(ISERROR(VLOOKUP(C21,'Startovní listina'!$B$5:$F$141,4)),\"\",VLOOKUP(C21,'Startovní listina'!$B$5:$F$141,4))","v":""},null,null,null,null,{"$f":"IF(ISERROR(VLOOKUP(C21,'Startovní listina'!$B$5:$F$141,5)),\"\",VLOOKUP(C21,'Startovní listina'!$B$5:$F$141,5))","v":""}]
[null,"10.",null,{"$f":"IF(ISERROR(VLOOKUP(C22,'Startovní listina'!$B$5:$F$141,2)),\"\",VLOOKUP(C22,'Startovní listina'!$B$5:$F$141,2))","v":""},{"$f":"IF(ISERROR(VLOOKUP(C22,'Startovní listina'!$B$5:$F$141,3)),\"\",VLOOKUP(C22,'Startovní listina'!$B$5:$F$141,3))","v":""},{"$f":"IF(ISERROR(VLOOKUP(C22,'Startovní listina'!$B$5:$F$141,4)),\"\",VLOOKUP(C22,'Startovní listina'!$B$5:$F$141,4))","v":""},null,null,{"$f":"IF((H22=0),\"\",H22+H23)","v":""},null,{"$f":"IF(ISERROR(VLOOKUP(C22,'Startovní listina'!$B$5:$F$141,5)),\"\",VLOOKUP(C22,'Startovní listina'!$B$5:$F$141,5))","v":""}]
[null,null,null,{"$f":"IF(ISERROR(VLOOKUP(C23,'Startovní listina'!$B$5:$F$141,2)),\"\",VLOOKUP(C23,'Startovní listina'!$B$5:$F$141,2))","v":""},{"$f":"IF(ISERROR(VLOOKUP(C23,'Startovní listina'!$B$5:$F$141,3)),\"\",VLOOKUP(C23,'Startovní listina'!$B$5:$F$141,3))","v":""},{"$f":"IF(ISERROR(VLOOKUP(C23,'Startovní listina'!$B$5:$F$141,4)),\"\",VLOOKUP(C23,'Startovní listina'!$B$5:$F$141,4))","v":""},null,null,null,null,{"$f":"IF(ISERROR(VLOOKUP(C23,'Startovní listina'!$B$5:$F$141,5)),\"\",VLOOKUP(C23,'Startovní listina'!$B$5:$F$141,5))","v":""}]
[null,"11.",null,{"$f":"IF(ISERROR(VLOOKUP(C24,'Startovní listina'!$B$5:$F$141,2)),\"\",VLOOKUP(C24,'Startovní listina'!$B$5:$F$141,2))","v":""},{"$f":"IF(ISERROR(VLOOKUP(C24,'Startovní listina'!$B$5:$F$141,3)),\"\",VLOOKUP(C24,'Startovní listina'!$B$5:$F$141,3))","v":""},{"$f":"IF(ISERROR(VLOOKUP(C24,'Startovní listina'!$B$5:$F$141,4)),\"\",VLOOKUP(C24,'Startovní listina'!$B$5:$F$141,4))","v":""},null,null,{"$f":"IF((H24=0),\"\",H24+H25)","v":""},null,{"$f":"IF(ISERROR(VLOOKUP(C24,'Startovní listina'!$B$5:$F$141,5)),\"\",VLOOKUP(C24,'Startovní listina'!$B$5:$F$141,5))","v":""}]
[null,null,null,{"$f":"IF(ISERROR(VLOOKUP(C25,'Startovní listina'!$B$5:$F$141,2)),\"\",VLOOKUP(C25,'Startovní listina'!$B$5:$F$141,2))","v":""},{"$f":"IF(ISERROR(VLOOKUP(C25,'Startovní listina'!$B$5:$F$141,3)),\"\",VLOOKUP(C25,'Startovní listina'!$B$5:$F$141,3))","v":""},{"$f":"IF(ISERROR(VLOOKUP(C25,'Startovní listina'!$B$5:$F$141,4)),\"\",VLOOKUP(C25,'Startovní listina'!$B$5:$F$141,4))","v":""},null,null,null,null,{"$f":"IF(ISERROR(VLOOKUP(C25,'Startovní listina'!$B$5:$F$141,5)),\"\",VLOOKUP(C25,'Startovní listina'!$B$5:$F$141,5))","v":""}]

{"sheet":"Běh Vírem","index":4,"n_rows":27,"n_cols":12,"rows_kept":27,"cut":false,"hidden":false,"merged":[[0,0,0,7],[2,3,2,4],[1,3,1,4]]}
[{"$f":"\"Běh Vírem \"&'Prezenční listina'!O2","v":"Běh Vírem 2017"}]
[null,null,null,{"$f":"'Startovní listina'!$A$2","v":"2017-08-26"},{"$f":"'Startovní listina'!$A$2","v":"2017-08-26"}]
[null,null,null,{"$f":"'Prezenční listina'!$O$2-1966&\" . ročník\"","v":"51 . ročník"}]
[null,"Příjmení","Jméno","Narození","Oddíl / Bydliště","Startovní číslo","Čas","Pohlaví"]
[null,"Křenková","Kateřina",2001,"Přeštice",85,"00:12:23",{"$f":"IF(LEN(B5)=0,\" \",IF(MID(B5,LEN(B5),1)=\"á\",\"Ž\",\"M\"))","v":"Ž"}]
[null,"Stalmachová","Nika",2002,"Vír",88,"00:15:14","Ž"]
[null,"Slavíková","Lenka",2001,"Žďár nad Sázavou",83,"00:16:49","Ž"]
[null,"Chaloupka","Milan",2002,"Brno",82,"00:11:28","M"]
[null,"Coural","Jaroslav",2002,"Vír",80,"00:12:12","M"]
[null,"Jílek","František",2004,"Velké Tresné",70,"00:14:10","M"]
[null,null,null,null,null,null,null," "]
[null,null,null,null,null,null,null," ",null,null,null,";"]
[null,null,null,null,null,null,null," "]
[null,null,null,null,null,null,null," "]
[null,null,null,null,null,null,null," "]
[null,null,null,null,null,null,null," "]
[null,null,null,null,null,null,null," "]
[null,null,null,null,null,null,null," "]
[null,null,null,null,null,null,null," "]
[null,null,null,null,null,null,null," "]
[null,null,null,null,null,null,null," "]
[null,null,null,null,null,null,null," "]
[null,null,null,null,null,null,null," "]
[null,null,null,null,null,null,null," "]
[null,null,null,null,null,null,null," ",null,null,","]
[null,null,null,null,null,null,null," "]
[null,null,null,null,null,null,null," "]

{"sheet":"mezičasy 2016","index":5,"n_rows":30,"n_cols":8,"rows_kept":30,"cut":false,"hidden":true,"merged":[[0,0,0,1],[0,2,0,3],[0,4,0,5],[0,6,0,7]]}
["5. km",null,"10. km",null,"16. km",null,"25. km"]
["číslo","čas","číslo","čas","číslo","čas","číslo","čas"]
[83,"00:17:02",31,"00:34:16",31,"00:55:10",31,"01:28:37"]
[31,":      :",83,":      :",83,"00:55:24",83,"01:29:24"]
[37,"00:19:08",8,"00:38:36",37,"01:02:56",37,"01:41:23"]
[8,":      :",37,"00:38:38",8,"01:04:06",8,"01:43:04"]
[74,"00:19:14",77,"00:39:12",64,":      :",77,"01:43:22"]
[12,":      :",64,":      :",77,":      :",null,":      :"]
[61,":      :",12,":      :",12,":      :",null,":      :"]
[69,":      :",61,":      :",61,"01:04:32",null,":      :"]
[54,"00:19:45",54,"00:40:29",54,"01:06:44",null,":      :"]
[93,"00:19:58",null,":      :",1,"01:07:50",null,":      :"]
[1,":      :",null,":      :",null,":      :",null,":      :"]
[35,"00:20:15",null,":      :",null,":      :",null,":      :"]
[48,":      :",null,":      :",34,"09:30:00",null,":      :"]
[38,"00:21:14",null,":      :",38,":      :",null,":      :"]
[34,"00:21:26",null,":      :",null,":      :",null,":      :"]
[30,"00:21:41",null,":      :",null,":      :",null,":      :"]
[18,":      :",null,":      :",null,":      :",null,":      :"]
[null,":      :",null,":      :",null,":      :",null,":      :"]
[null,":      :",null,":      :",null,":      :",null,":      :"]
[null,":      :",null,":      :",null,":      :",null,":      :"]
[null,":      :",null,":      :",null,":      :",null,":      :"]
[null,":      :",null,":      :",null,":      :",null,":      :"]
[null,":      :",null,":      :",null,":      :",null,":      :"]
[null,":      :",null,":      :",null,":      :",null,":      :"]
[null,":      :",null,":      :",null,":      :",null,":      :"]
[null,":      :",null,":      :",null,":      :",null,":      :"]
[null,":      :",null,":      :",null,":      :",null,":      :"]
[null,":      :",null,":      :",null,":      :",null,":      :"]

{"sheet":"mezičasy 2017","index":6,"n_rows":30,"n_cols":8,"rows_kept":30,"cut":false,"hidden":true,"merged":[[0,0,0,1],[0,2,0,3],[0,4,0,5],[0,6,0,7]]}
["5. km",null,"10. km",null,"16. km",null,"25. km"]
["číslo","čas","číslo","čas","číslo","čas","číslo","čas"]
[82,"00:17:36",82,"00:35:34",82,"00:57:57",64,"01:34:10"]
[64,"00:17:53",64,"00:35:50",64,"00:57:57",82,"01:34:40"]
[48,"00:18:54",48,"00:37:43",48,"01:00:45",48,"01:37:47"]
[19,"00:18:59",19,"00:39:11",49,"01:03:42",19,"01:44:00"]
[49,"00:19:14",49,"00:39:28",19,"01:03:56",49,"01:44:00"]
[18,"00:19:52",18,"00:39:57",8,"01:05:23",8,"01:44:10"]
["77/8","00:20:11",null,":      :",77,"01:05:50",79,"01:46:00"]
[null,":      :",null,":      :",79,"01:06:02",null,":      :"]
[22,"00:20:46",22,"00:41:55",22,"01:07:23",22,"01:46:00"]
[46,"00:21:27",null,":      :",null,":      :",null,":      :"]
[null,":      :",null,":      :",null,":      :",null,":      :"]
[null,":      :",null,":      :",null,":      :",null,":      :"]
[null,":      :",null,":      :",null,":      :",null,":      :"]
[null,":      :",null,":      :",null,":      :",null,":      :"]
[null,":      :",null,":      :",null,":      :",null,":      :"]
[null,":      :",null,":      :",null,":      :",null,":      :"]
[null,":      :",null,":      :",null,":      :",null,":      :"]
[null,":      :",null,":      :",null,":      :",null,":      :"]
[null,":      :",null,":      :",null,":      :",null,":      :"]
[null,":      :",null,":      :",null,":      :",null,":      :"]
[null,":      :",null,":      :",null,":      :",null,":      :"]
[null,":      :",null,":      :",null,":      :",null,":      :"]
[null,":      :",null,":      :",null,":      :",null,":      :"]
[null,":      :",null,":      :",null,":      :",null,":      :"]
[null,":      :",null,":      :",null,":      :",null,":      :"]
[null,":      :",null,":      :",null,":      :",null,":      :"]
[null,":      :",null,":      :",null,":      :",null,":      :"]
[null,":      :",null,":      :",null,":      :",null,":      :"]

{"sheet":"Diplom MSM A5","index":7,"n_rows":36,"n_cols":13,"rows_kept":36,"cut":false,"hidden":true,"merged":[[26,3,28,10],[29,6,31,6],[31,3,34,3],[32,12,33,13],[35,6,36,9]]}
[]
[]
[]
[]
[]
[]
[]
[]
[]
[]
[]
[]
[]
[]
[]
[]
[]
[]
[]
[]
[]
[]
[]
[]
[]
[]
[null,null,null,{"$f":"'Výsledková listina'!E5&\" \"&'Výsledková listina'!F5","v":"Kohut Jan"}]
[]
[]
[null,null,null,null,null,null,{"$f":"'Výsledková listina'!B5&\".\"","v":"1."}]
[]
[null,null,null,{"$f":"'Výsledková listina'!C5","v":"A"}]
[null,null,null,null,null,null,null,null,null,null,null,null,{"$f":"'Výsledková listina'!I5","v":"02:02:34"}]
[]
[]
[null,null,null,null,null,null,"20. srpna 2016"]

{"sheet":"Diplom MSM A5 (2)","index":8,"n_rows":36,"n_cols":13,"rows_kept":36,"cut":false,"hidden":true,"merged":[[26,3,28,10],[29,6,31,6],[31,3,34,3],[32,12,33,13],[35,6,36,9]]}
[]
[]
[]
[]
[]
[]
[]
[]
[]
[]
[]
[]
[]
[]
[]
[]
[]
[]
[]
[]
[]
[]
[]
[]
[]
[]
[null,null,null,{"$f":"'Výsledková listina'!E6&\" \"&'Výsledková listina'!F6","v":"Orálek Daniel"}]
[]
[]
[null,null,null,null,null,null,{"$f":"'Výsledková listina'!B6&\".\"","v":"1."}]
[]
[null,null,null,{"$f":"'Výsledková listina'!C6","v":"B"}]
[null,null,null,null,null,null,null,null,null,null,null,null,{"$f":"'Výsledková listina'!I6","v":"02:05:07"}]
[]
[]
[null,null,null,null,null,null,"20. srpna 2016"]

{"sheet":"Družstva (prac.)","index":9,"n_rows":21,"n_cols":11,"rows_kept":21,"cut":false,"hidden":true,"merged":[[19,1,20,1],[19,6,20,6],[19,8,20,8],[15,1,16,1],[15,6,16,6],[15,8,16,8],[17,1,18,1],[17,6,18,6],[17,8,18,8],[11,1,12,1],[11,6,12,6],[11,8,12,8],[13,1,14,1],[13,6,14,6],[13,8,14,8],[7,1,8,1],[7,6,8,6],[7,8,8,8],[9,1,10,1],[9,6,10,6],[9,8,10,8],[5,1,6,1],[5,6,6,6],[5,8,6,8],[0,1,0,8],[1,1,1,8],[3,1,4,1],[3,6,4,6],[3,8,4,8]]}
[null,{"$f":"\"Výsledková listina - Malý svratecký maratón \"&'Prezenční listina'!O2&\" - družstva\"","v":"Výsledková listina - Malý svratecký maratón 2017 - družstva"}]
[null,{"$f":"'Prezenční listina'!O2-1953&\". ročník\"","v":"64. ročník"}]
[null,"Pořadí","Startovní číslo","Příjmení","Jméno","Narození","Oddíl / Bydliště","Čas","Výsledný čas"]
[null,"1.",3,{"$f":"IF(ISERROR(VLOOKUP(C4,'Startovní listina'!$B$5:$F$141,2)),\"\",VLOOKUP(C4,'Startovní listina'!$B$5:$F$141,2))","v":"Ježová"},{"$f":"IF(ISERROR(VLOOKUP(C4,'Startovní listina'!$B$5:$F$141,3)),\"\",VLOOKUP(C4,'Startovní listina'!$B$5:$F$141,3))","v":"Martina"},{"$f":"IF(ISERROR(VLOOKUP(C4,'Startovní listina'!$B$5:$F$141,4)),\"\",VLOOKUP(C4,'Startovní listina'!$B$5:$F$141,4))","v":1975},{"$f":"IF(K4=K5,K4,\"RŮZNÉ ODDÍLY !!!\")","v":"Brno"},"03:07:50",{"$f":"IF((H4=0),\"\",H4+H5)","v":"05:48:15"},null,{"$f":"IF(ISERROR(VLOOKUP(C4,'Startovní listina'!$B$5:$F$141,5)),\"\",VLOOKUP(C4,'Startovní listina'!$B$5:$F$141,5))","v":"Brno"}]
[null,null,2,{"$f":"IF(ISERROR(VLOOKUP(C5,'Startovní listina'!$B$5:$F$141,2)),\"\",VLOOKUP(C5,'Startovní listina'!$B$5:$F$141,2))","v":"Podsedník"},{"$f":"IF(ISERROR(VLOOKUP(C5,'Startovní listina'!$B$5:$F$141,3)),\"\",VLOOKUP(C5,'Startovní listina'!$B$5:$F$141,3))","v":"Marek"},{"$f":"IF(ISERROR(VLOOKUP(C5,'Startovní listina'!$B$5:$F$141,4)),\"\",VLOOKUP(C5,'Startovní listina'!$B$5:$F$141,4))","v":1985},null,"02:40:25",null,null,{"$f":"IF(ISERROR(VLOOKUP(C5,'Startovní listina'!$B$5:$F$141,5)),\"\",VLOOKUP(C5,'Startovní listina'!$B$5:$F$141,5))","v":"Brno"}]
[null,"2.",11,{"$f":"IF(ISERROR(VLOOKUP(C6,'Startovní listina'!$B$5:$F$141,2)),\"\",VLOOKUP(C6,'Startovní listina'!$B$5:$F$141,2))","v":"Dostálová"},{"$f":"IF(ISERROR(VLOOKUP(C6,'Startovní listina'!$B$5:$F$141,3)),\"\",VLOOKUP(C6,'Startovní listina'!$B$5:$F$141,3))","v":"Vendula"},{"$f":"IF(ISERROR(VLOOKUP(C6,'Startovní listina'!$B$5:$F$141,4)),\"\",VLOOKUP(C6,'Startovní listina'!$B$5:$F$141,4))","v":1981},{"$f":"IF(K6=K7,K6,\"RŮZNÉ ODDÍLY !!!\")","v":"RŮZNÉ ODDÍLY !!!"},"02:01:16",{"$f":"IF((H6=0),\"\",H6+H7)","v":"04:06:56"},null,{"$f":"IF(ISERROR(VLOOKUP(C6,'Startovní listina'!$B$5:$F$141,5)),\"\",VLOOKUP(C6,'Startovní listina'!$B$5:$F$141,5))","v":"Digitor.cz"}]
[null,null,8,{"$f":"IF(ISERROR(VLOOKUP(C7,'Startovní listina'!$B$5:$F$141,2)),\"\",VLOOKUP(C7,'Startovní listina'!$B$5:$F$141,2))","v":"Chramosta"},{"$f":"IF(ISERROR(VLOOKUP(C7,'Startovní listina'!$B$5:$F$141,3)),\"\",VLOOKUP(C7,'Startovní listina'!$B$5:$F$141,3))","v":"Jaroslav"},{"$f":"IF(ISERROR(VLOOKUP(C7,'Startovní listina'!$B$5:$F$141,4)),\"\",VLOOKUP(C7,'Startovní listina'!$B$5:$F$141,4))","v":1966},null,"02:05:40",null,null,{"$f":"IF(ISERROR(VLOOKUP(C7,'Startovní listina'!$B$5:$F$141,5)),\"\",VLOOKUP(C7,'Startovní listina'!$B$5:$F$141,5))","v":"JABOJA Team Dobrná"}]
[null,"3.",9,{"$f":"IF(ISERROR(VLOOKUP(C8,'Startovní listina'!$B$5:$F$141,2)),\"\",VLOOKUP(C8,'Startovní listina'!$B$5:$F$141,2))","v":"Tesařová"},{"$f":"IF(ISERROR(VLOOKUP(C8,'Startovní listina'!$B$5:$F$141,3)),\"\",VLOOKUP(C8,'Startovní listina'!$B$5:$F$141,3))","v":"Marie"},{"$f":"IF(ISERROR(VLOOKUP(C8,'Startovní listina'!$B$5:$F$141,4)),\"\",VLOOKUP(C8,'Startovní listina'!$B$5:$F$141,4))","v":1954},{"$f":"IF(K8=K9,K8,\"RŮZNÉ ODDÍLY !!!\")","v":"RŮZNÉ ODDÍLY !!!"},"02:40:16",{"$f":"IF((H8=0),\"\",H8+H9)","v":"05:12:53"},null,{"$f":"IF(ISERROR(VLOOKUP(C8,'Startovní listina'!$B$5:$F$141,5)),\"\",VLOOKUP(C8,'Startovní listina'!$B$5:$F$141,5))","v":"Křižanov"}]
[null,null,10,{"$f":"IF(ISERROR(VLOOKUP(C9,'Startovní listina'!$B$5:$F$141,2)),\"\",VLOOKUP(C9,'Startovní listina'!$B$5:$F$141,2))","v":"Holý"},{"$f":"IF(ISERROR(VLOOKUP(C9,'Startovní listina'!$B$5:$F$141,3)),\"\",VLOOKUP(C9,'Startovní listina'!$B$5:$F$141,3))","v":"Josef"},{"$f":"IF(ISERROR(VLOOKUP(C9,'Startovní listina'!$B$5:$F$141,4)),\"\",VLOOKUP(C9,'Startovní listina'!$B$5:$F$141,4))","v":1941},null,"02:32:37",null,null,{"$f":"IF(ISERROR(VLOOKUP(C9,'Startovní listina'!$B$5:$F$141,5)),\"\",VLOOKUP(C9,'Startovní listina'!$B$5:$F$141,5))","v":"AC Moravská Slavia Brno"}]
[null,"4.",23,{"$f":"IF(ISERROR(VLOOKUP(C10,'Startovní listina'!$B$5:$F$141,2)),\"\",VLOOKUP(C10,'Startovní listina'!$B$5:$F$141,2))","v":"Šorf"},{"$f":"IF(ISERROR(VLOOKUP(C10,'Startovní listina'!$B$5:$F$141,3)),\"\",VLOOKUP(C10,'Startovní listina'!$B$5:$F$141,3))","v":"Ivo"},{"$f":"IF(ISERROR(VLOOKUP(C10,'Startovní listina'!$B$5:$F$141,4)),\"\",VLOOKUP(C10,'Startovní listina'!$B$5:$F$141,4))","v":1975},{"$f":"IF(K10=K11,K10,\"RŮZNÉ ODDÍLY !!!\")","v":"RŮZNÉ ODDÍLY !!!"},"03:04:10",{"$f":"IF((H10=0),\"\",H10+H11)","v":"06:10:48"},null,{"$f":"IF(ISERROR(VLOOKUP(C10,'Startovní listina'!$B$5:$F$141,5)),\"\",VLOOKUP(C10,'Startovní listina'!$B$5:$F$141,5))","v":"ABND Racing Team Bystřice n. P."}]
[null,null,24,{"$f":"IF(ISERROR(VLOOKUP(C11,'Startovní listina'!$B$5:$F$141,2)),\"\",VLOOKUP(C11,'Startovní listina'!$B$5:$F$141,2))","v":"Vrba"},{"$f":"IF(ISERROR(VLOOKUP(C11,'Startovní listina'!$B$5:$F$141,3)),\"\",VLOOKUP(C11,'Startovní listina'!$B$5:$F$141,3))","v":"Tomáš"},{"$f":"IF(ISERROR(VLOOKUP(C11,'Startovní listina'!$B$5:$F$141,4)),\"\",VLOOKUP(C11,'Startovní listina'!$B$5:$F$141,4))","v":1986},null,"03:06:38",null,null,{"$f":"IF(ISERROR(VLOOKUP(C11,'Startovní listina'!$B$5:$F$141,5)),\"\",VLOOKUP(C11,'Startovní listina'!$B$5:$F$141,5))","v":"Bystré"}]
[null,"5.",35,{"$f":"IF(ISERROR(VLOOKUP(C12,'Startovní listina'!$B$5:$F$141,2)),\"\",VLOOKUP(C12,'Startovní listina'!$B$5:$F$141,2))","v":"Bartoňková"},{"$f":"IF(ISERROR(VLOOKUP(C12,'Startovní listina'!$B$5:$F$141,3)),\"\",VLOOKUP(C12,'Startovní listina'!$B$5:$F$141,3))","v":"Nina"},{"$f":"IF(ISERROR(VLOOKUP(C12,'Startovní listina'!$B$5:$F$141,4)),\"\",VLOOKUP(C12,'Startovní listina'!$B$5:$F$141,4))","v":1990},{"$f":"IF(K12=K13,K12,\"RŮZNÉ ODDÍLY !!!\")","v":"RŮZNÉ ODDÍLY !!!"},"02:31:40",{"$f":"IF((H12=0),\"\",H12+H13)","v":"06:21:15"},null,{"$f":"IF(ISERROR(VLOOKUP(C12,'Startovní listina'!$B$5:$F$141,5)),\"\",VLOOKUP(C12,'Startovní listina'!$B$5:$F$141,5))","v":"Fan Brno"}]
[null,null,36,{"$f":"IF(ISERROR(VLOOKUP(C13,'Startovní listina'!$B$5:$F$141,2)),\"\",VLOOKUP(C13,'Startovní listina'!$B$5:$F$141,2))","v":"Fanfrdla"},{"$f":"IF(ISERROR(VLOOKUP(C13,'Startovní listina'!$B$5:$F$141,3)),\"\",VLOOKUP(C13,'Startovní listina'!$B$5:$F$141,3))","v":"Ctirad"},{"$f":"IF(ISERROR(VLOOKUP(C13,'Startovní listina'!$B$5:$F$141,4)),\"\",VLOOKUP(C13,'Startovní listina'!$B$5:$F$141,4))","v":1974},null,"03:49:35",null,null,{"$f":"IF(ISERROR(VLOOKUP(C13,'Startovní listina'!$B$5:$F$141,5)),\"\",VLOOKUP(C13,'Startovní listina'!$B$5:$F$141,5))","v":"Silůvky"}]
[null,"6.",82,{"$f":"IF(ISERROR(VLOOKUP(C14,'Startovní listina'!$B$5:$F$141,2)),\"\",VLOOKUP(C14,'Startovní listina'!$B$5:$F$141,2))","v":"Orálek"},{"$f":"IF(ISERROR(VLOOKUP(C14,'Startovní listina'!$B$5:$F$141,3)),\"\",VLOOKUP(C14,'Startovní listina'!$B$5:$F$141,3))","v":"Daniel"},{"$f":"IF(ISERROR(VLOOKUP(C14,'Startovní listina'!$B$5:$F$141,4)),\"\",VLOOKUP(C14,'Startovní listina'!$B$5:$F$141,4))","v":1970},{"$f":"IF(K14=K15,K14,\"RŮZNÉ ODDÍLY !!!\")","v":"RŮZNÉ ODDÍLY !!!"},"02:11:00",{"$f":"IF((H14=0),\"\",H14+H15)","v":"04:05:34"},null,{"$f":"IF(ISERROR(VLOOKUP(C14,'Startovní listina'!$B$5:$F$141,5)),\"\",VLOOKUP(C14,'Startovní listina'!$B$5:$F$141,5))","v":"behejbrno.com"}]
[null,null,107,{"$f":"IF(ISERROR(VLOOKUP(C15,'Startovní listina'!$B$5:$F$141,2)),\"\",VLOOKUP(C15,'Startovní listina'!$B$5:$F$141,2))","v":"Benc"},{"$f":"IF(ISERROR(VLOOKUP(C15,'Startovní listina'!$B$5:$F$141,3)),\"\",VLOOKUP(C15,'Startovní listina'!$B$5:$F$141,3))","v":"Karel"},{"$f":"IF(ISERROR(VLOOKUP(C15,'Startovní listina'!$B$5:$F$141,4)),\"\",VLOOKUP(C15,'Startovní listina'!$B$5:$F$141,4))","v":1975},null,"01:54:34",null,null,{"$f":"IF(ISERROR(VLOOKUP(C15,'Startovní listina'!$B$5:$F$141,5)),\"\",VLOOKUP(C15,'Startovní listina'!$B$5:$F$141,5))","v":"Pivonice"}]
[null,"7.",28,{"$f":"IF(ISERROR(VLOOKUP(C16,'Startovní listina'!$B$5:$F$141,2)),\"\",VLOOKUP(C16,'Startovní listina'!$B$5:$F$141,2))","v":"Pučálka"},{"$f":"IF(ISERROR(VLOOKUP(C16,'Startovní listina'!$B$5:$F$141,3)),\"\",VLOOKUP(C16,'Startovní listina'!$B$5:$F$141,3))","v":"Radek"},{"$f":"IF(ISERROR(VLOOKUP(C16,'Startovní listina'!$B$5:$F$141,4)),\"\",VLOOKUP(C16,'Startovní listina'!$B$5:$F$141,4))","v":1973},{"$f":"IF(K16=K17,K16,\"RŮZNÉ ODDÍLY !!!\")","v":"RŮZNÉ ODDÍLY !!!"},"02:19:07",{"$f":"IF((H16=0),\"\",H16+H17)","v":"04:24:14"},null,{"$f":"IF(ISERROR(VLOOKUP(C16,'Startovní listina'!$B$5:$F$141,5)),\"\",VLOOKUP(C16,'Startovní listina'!$B$5:$F$141,5))","v":"Železárny Štěpánov s.r.o"}]
[null,null,26,{"$f":"IF(ISERROR(VLOOKUP(C17,'Startovní listina'!$B$5:$F$141,2)),\"\",VLOOKUP(C17,'Startovní listina'!$B$5:$F$141,2))","v":"Šedová"},{"$f":"IF(ISERROR(VLOOKUP(C17,'Startovní listina'!$B$5:$F$141,3)),\"\",VLOOKUP(C17,'Startovní listina'!$B$5:$F$141,3))","v":"Věra"},{"$f":"IF(ISERROR(VLOOKUP(C17,'Startovní listina'!$B$5:$F$141,4)),\"\",VLOOKUP(C17,'Startovní listina'!$B$5:$F$141,4))","v":1964},null,"02:05:07",null,null,{"$f":"IF(ISERROR(VLOOKUP(C17,'Startovní listina'!$B$5:$F$141,5)),\"\",VLOOKUP(C17,'Startovní listina'!$B$5:$F$141,5))","v":"Praha"}]
[null,"8.",null,{"$f":"IF(ISERROR(VLOOKUP(C18,'Startovní listina'!$B$5:$F$141,2)),\"\",VLOOKUP(C18,'Startovní listina'!$B$5:$F$141,2))","v":""},{"$f":"IF(ISERROR(VLOOKUP(C18,'Startovní listina'!$B$5:$F$141,3)),\"\",VLOOKUP(C18,'Startovní listina'!$B$5:$F$141,3))","v":""},{"$f":"IF(ISERROR(VLOOKUP(C18,'Startovní listina'!$B$5:$F$141,4)),\"\",VLOOKUP(C18,'Startovní listina'!$B$5:$F$141,4))","v":""},{"$f":"IF(K18=K19,K18,\"RŮZNÉ ODDÍLY !!!\")","v":""},null,{"$f":"IF((H18=0),\"\",H18+H19)","v":""},null,{"$f":"IF(ISERROR(VLOOKUP(C18,'Startovní listina'!$B$5:$F$141,5)),\"\",VLOOKUP(C18,'Startovní listina'!$B$5:$F$141,5))","v":""}]
[null,null,null,{"$f":"IF(ISERROR(VLOOKUP(C19,'Startovní listina'!$B$5:$F$141,2)),\"\",VLOOKUP(C19,'Startovní listina'!$B$5:$F$141,2))","v":""},{"$f":"IF(ISERROR(VLOOKUP(C19,'Startovní listina'!$B$5:$F$141,3)),\"\",VLOOKUP(C19,'Startovní listina'!$B$5:$F$141,3))","v":""},{"$f":"IF(ISERROR(VLOOKUP(C19,'Startovní listina'!$B$5:$F$141,4)),\"\",VLOOKUP(C19,'Startovní listina'!$B$5:$F$141,4))","v":""},null,null,null,null,{"$f":"IF(ISERROR(VLOOKUP(C19,'Startovní listina'!$B$5:$F$141,5)),\"\",VLOOKUP(C19,'Startovní listina'!$B$5:$F$141,5))","v":""}]
[null,"9.",null,{"$f":"IF(ISERROR(VLOOKUP(C20,'Startovní listina'!$B$5:$F$141,2)),\"\",VLOOKUP(C20,'Startovní listina'!$B$5:$F$141,2))","v":""},{"$f":"IF(ISERROR(VLOOKUP(C20,'Startovní listina'!$B$5:$F$141,3)),\"\",VLOOKUP(C20,'Startovní listina'!$B$5:$F$141,3))","v":""},{"$f":"IF(ISERROR(VLOOKUP(C20,'Startovní listina'!$B$5:$F$141,4)),\"\",VLOOKUP(C20,'Startovní listina'!$B$5:$F$141,4))","v":""},{"$f":"IF(K20=K21,K20,\"RŮZNÉ ODDÍLY !!!\")","v":""},null,{"$f":"IF((H20=0),\"\",H20+H21)","v":""},null,{"$f":"IF(ISERROR(VLOOKUP(C20,'Startovní listina'!$B$5:$F$141,5)),\"\",VLOOKUP(C20,'Startovní listina'!$B$5:$F$141,5))","v":""}]
[null,null,null,{"$f":"IF(ISERROR(VLOOKUP(C21,'Startovní listina'!$B$5:$F$141,2)),\"\",VLOOKUP(C21,'Startovní listina'!$B$5:$F$141,2))","v":""},{"$f":"IF(ISERROR(VLOOKUP(C21,'Startovní listina'!$B$5:$F$141,3)),\"\",VLOOKUP(C21,'Startovní listina'!$B$5:$F$141,3))","v":""},{"$f":"IF(ISERROR(VLOOKUP(C21,'Startovní listina'!$B$5:$F$141,4)),\"\",VLOOKUP(C21,'Startovní listina'!$B$5:$F$141,4))","v":""},null,null,null,null,{"$f":"IF(ISERROR(VLOOKUP(C21,'Startovní listina'!$B$5:$F$141,5)),\"\",VLOOKUP(C21,'Startovní listina'!$B$5:$F$141,5))","v":""}]

{"sheet":"Výsledková listina (2)","index":10,"n_rows":103,"n_cols":11,"rows_kept":103,"cut":false,"hidden":true,"merged":[[0,0,0,8],[1,0,1,8],[1,10,12,14],[2,0,2,8]]}
[{"$f":"\"Výsledková listina - Malý svratecký maraton \"&'Prezenční listina'!O2","v":"Výsledková listina - Malý svratecký maraton 2017"}]
["2015-08-22",null,null,null,null,null,null,null,null,null,"\nPoté, co jsou dopsány časy VŠECH běžců, stisknout tlačítko 1.řazení \n\n\nVe sloupci B (Pořadí v kategorii) vytvořit posloupnou číselnou řadu pro každou kategorii a poté stisknout tlačítko 2.řazení\n\n\n                      !!! POZOR!!!\n\n               Použití tlačítek je nevratný krok!"]
[{"$f":"'Prezenční listina'!O2-1953&\". ročník\"","v":"64. ročník"}]
["Celkové pořadí","Pořadí v kategorii","Kategorie","Startovní číslo","Příjmení","Jméno","Narození","Oddíl / Bydliště","Čas"]
[1,1,{"$f":"'Startovní listina'!G47","v":"G"},{"$f":"'Startovní listina'!B47","v":58},{"$f":"'Startovní listina'!C47","v":"Benešová"},{"$f":"'Startovní listina'!D47","v":"Marie"},{"$f":"'Startovní listina'!E47","v":1982},{"$f":"'Startovní listina'!F47","v":"Dolní Rožínka"},"02:19:48"]
[{"$f":"IF('Výsledková listina (2)'!D5<>\"\",A5+1,\"\")","v":2},null,{"$f":"'Startovní listina'!G71","v":""},{"$f":"'Startovní listina'!B71","v":""},{"$f":"'Startovní listina'!C71","v":""},{"$f":"'Startovní listina'!D71","v":""},{"$f":"'Startovní listina'!E71","v":""},{"$f":"'Startovní listina'!F71","v":""},"02:47:00"]
[{"$f":"IF('Výsledková listina (2)'!D6<>\"\",A6+1,\"\")","v":""},null,{"$f":"'Startovní listina'!G5","v":"A"},{"$f":"'Startovní listina'!B5","v":2},{"$f":"'Startovní listina'!C5","v":"Podsedník"},{"$f":"'Startovní listina'!D5","v":"Marek"},{"$f":"'Startovní listina'!E5","v":1985},{"$f":"'Startovní listina'!F5","v":"Brno"},"03:02:17"]
[{"$f":"IF('Výsledková listina (2)'!D7<>\"\",A7+1,\"\")","v":{"$error":"#VALUE!"}},null,{"$f":"'Startovní listina'!G85","v":""},{"$f":"'Startovní listina'!B85","v":""},{"$f":"'Startovní listina'!C85","v":""},{"$f":"'Startovní listina'!D85","v":""},{"$f":"'Startovní listina'!E85","v":""},{"$f":"'Startovní listina'!F85","v":""},"03:28:11"]
[{"$f":"IF('Výsledková listina (2)'!D8<>\"\",A8+1,\"\")","v":""},null,{"$f":"'Startovní listina'!G59","v":"A"},{"$f":"'Startovní listina'!B59","v":76},{"$f":"'Startovní listina'!C59","v":"Koutský"},{"$f":"'Startovní listina'!D59","v":"Tomáš"},{"$f":"'Startovní listina'!E59","v":1987},{"$f":"'Startovní listina'!F59","v":"Ledová stěna Vír"},"02:23:11"]
[{"$f":"IF('Výsledková listina (2)'!D9<>\"\",A9+1,\"\")","v":{"$error":"#VALUE!"}},null,{"$f":"'Startovní listina'!G46","v":"F"},{"$f":"'Startovní listina'!B46","v":56},{"$f":"'Startovní listina'!C46","v":"Vlachová Hutová"},{"$f":"'Startovní listina'!D46","v":"Eliška"},{"$f":"'Startovní listina'!E46","v":1988},{"$f":"'Startovní listina'!F46","v":"Brno"},"02:50:33"]
[{"$f":"IF('Výsledková listina (2)'!D10<>\"\",A10+1,\"\")","v":{"$error":"#VALUE!"}},null,{"$f":"'Startovní listina'!G28","v":"G"},{"$f":"'Startovní listina'!B28","v":31},{"$f":"'Startovní listina'!C28","v":"Škvařilová"},{"$f":"'Startovní listina'!D28","v":"Eva"},{"$f":"'Startovní listina'!E28","v":1973},{"$f":"'Startovní listina'!F28","v":"RSFK Říčany"},"02:26:07"]
[{"$f":"IF('Výsledková listina (2)'!D11<>\"\",A11+1,\"\")","v":{"$error":"#VALUE!"}},null,{"$f":"'Startovní listina'!G67","v":"B"},{"$f":"'Startovní listina'!B67","v":86},{"$f":"'Startovní listina'!C67","v":"Benc"},{"$f":"'Startovní listina'!D67","v":"Karel"},{"$f":"'Startovní listina'!E67","v":1975},{"$f":"'Startovní listina'!F67","v":"Pivonice"},"02:34:42"]
[{"$f":"IF('Výsledková listina (2)'!D12<>\"\",A12+1,\"\")","v":{"$error":"#VALUE!"}},null,{"$f":"'Startovní listina'!G68","v":""},{"$f":"'Startovní listina'!B68","v":""},{"$f":"'Startovní listina'!C68","v":""},{"$f":"'Startovní listina'!D68","v":""},{"$f":"'Startovní listina'!E68","v":""},{"$f":"'Startovní listina'!F68","v":""},"02:42:43"]
[{"$f":"IF('Výsledková listina (2)'!D13<>\"\",A13+1,\"\")","v":""},null,{"$f":"'Startovní listina'!G62","v":"D"},{"$f":"'Startovní listina'!B62","v":80},{"$f":"'Startovní listina'!C62","v":"Glier"},{"$f":"'Startovní listina'!D62","v":"Miroslav"},{"$f":"'Startovní listina'!E62","v":1949},{"$f":"'Startovní listina'!F62","v":"Ústí nad Labem"},"02:42:35"]
[{"$f":"IF('Výsledková listina (2)'!D14<>\"\",A14+1,\"\")","v":{"$error":"#VALUE!"}},null,{"$f":"'Startovní listina'!G55","v":"A"},{"$f":"'Startovní listina'!B55","v":70},{"$f":"'Startovní listina'!C55","v":"Kalich"},{"$f":"'Startovní listina'!D55","v":"Daniel"},{"$f":"'Startovní listina'!E55","v":1982},{"$f":"'Startovní listina'!F55","v":"Brno"},"02:40:36"]
[{"$f":"IF('Výsledková listina (2)'!D15<>\"\",A15+1,\"\")","v":{"$error":"#VALUE!"}},null,{"$f":"'Startovní listina'!G60","v":"C"},{"$f":"'Startovní listina'!B60","v":77},{"$f":"'Startovní listina'!C60","v":"Krajča"},{"$f":"'Startovní listina'!D60","v":"Rudy"},{"$f":"'Startovní listina'!E60","v":1965},{"$f":"'Startovní listina'!F60","v":"rarecacti.com"},"02:38:54"]
[{"$f":"IF('Výsledková listina (2)'!D16<>\"\",A16+1,\"\")","v":{"$error":"#VALUE!"}},null,{"$f":"'Startovní listina'!G7","v":"A"},{"$f":"'Startovní listina'!B7","v":4},{"$f":"'Startovní listina'!C7","v":"Hübner"},{"$f":"'Startovní listina'!D7","v":"Tomáš"},{"$f":"'Startovní listina'!E7","v":1979},{"$f":"'Startovní listina'!F7","v":"SDH Bolešín"},"03:07:50"]
[{"$f":"IF('Výsledková listina (2)'!D17<>\"\",A17+1,\"\")","v":{"$error":"#VALUE!"}},null,{"$f":"'Startovní listina'!G63","v":"B"},{"$f":"'Startovní listina'!B63","v":82},{"$f":"'Startovní listina'!C63","v":"Orálek"},{"$f":"'Startovní listina'!D63","v":"Daniel"},{"$f":"'Startovní listina'!E63","v":1970},{"$f":"'Startovní listina'!F63","v":"behejbrno.com"},"02:39:15"]
[{"$f":"IF('Výsledková listina (2)'!D18<>\"\",A18+1,\"\")","v":{"$error":"#VALUE!"}},null,{"$f":"'Startovní listina'!G49","v":"D"},{"$f":"'Startovní listina'!B49","v":61},{"$f":"'Startovní listina'!C49","v":"Nekuža"},{"$f":"'Startovní listina'!D49","v":"Jiří"},{"$f":"'Startovní listina'!E49","v":1951},{"$f":"'Startovní listina'!F49","v":"RUNNERS Zbýšov"},"02:13:13"]
[{"$f":"IF('Výsledková listina (2)'!D19<>\"\",A19+1,\"\")","v":{"$error":"#VALUE!"}},null,{"$f":"'Startovní listina'!G14","v":"A"},{"$f":"'Startovní listina'!B14","v":12},{"$f":"'Startovní listina'!C14","v":"Pivec"},{"$f":"'Startovní listina'!D14","v":"Jan"},{"$f":"'Startovní listina'!E14","v":1981},{"$f":"'Startovní listina'!F14","v":"Digitor.cz"},"02:32:37"]
[{"$f":"IF('Výsledková listina (2)'!D20<>\"\",A20+1,\"\")","v":{"$error":"#VALUE!"}},null,{"$f":"'Startovní listina'!G42","v":"B"},{"$f":"'Startovní listina'!B42","v":48},{"$f":"'Startovní listina'!C42","v":"Plekanec"},{"$f":"'Startovní listina'!D42","v":"Juraj"},{"$f":"'Startovní listina'!E42","v":1974},{"$f":"'Startovní listina'!F42","v":"Brno"},"02:49:46"]
[{"$f":"IF('Výsledková listina (2)'!D22<>\"\",A21+1,\"\")","v":""},null,{"$f":"'Startovní listina'!G79","v":""},{"$f":"'Startovní listina'!B79","v":""},{"$f":"'Startovní listina'!C79","v":""},{"$f":"'Startovní listina'!D79","v":""},{"$f":"'Startovní listina'!E79","v":""},{"$f":"'Startovní listina'!F79","v":""},"02:13:29"]
[{"$f":"IF('Výsledková listina (2)'!D21<>\"\",A22+1,\"\")","v":{"$error":"#VALUE!"}},null,{"$f":"'Startovní listina'!G15","v":"H"},{"$f":"'Startovní listina'!B15","v":13},{"$f":"'Startovní listina'!C15","v":"Martincová"},{"$f":"'Startovní listina'!D15","v":"Ivana"},{"$f":"'Startovní listina'!E15","v":1963},{"$f":"'Startovní listina'!F15","v":"AC Moravská Slavia Brno"},"02:01:16"]
[{"$f":"IF('Výsledková listina (2)'!D23<>\"\",A23+1,\"\")","v":{"$error":"#VALUE!"}},null,{"$f":"'Startovní listina'!G91","v":""},{"$f":"'Startovní listina'!B91","v":""},{"$f":"'Startovní listina'!C91","v":""},{"$f":"'Startovní listina'!D91","v":""},{"$f":"'Startovní listina'!E91","v":""},{"$f":"'Startovní listina'!F91","v":""},"02:30:31"]
[{"$f":"IF('Výsledková listina (2)'!D24<>\"\",A24+1,\"\")","v":""},null,{"$f":"'Startovní listina'!G74","v":""},{"$f":"'Startovní listina'!B74","v":""},{"$f":"'Startovní listina'!C74","v":""},{"$f":"'Startovní listina'!D74","v":""},{"$f":"'Startovní listina'!E74","v":""},{"$f":"'Startovní listina'!F74","v":""},"02:11:00"]
[{"$f":"IF('Výsledková listina (2)'!D25<>\"\",A25+1,\"\")","v":""},null,{"$f":"'Startovní listina'!G44","v":"B"},{"$f":"'Startovní listina'!B44","v":51},{"$f":"'Startovní listina'!C44","v":"Dvořák"},{"$f":"'Startovní listina'!D44","v":"Vojtěch"},{"$f":"'Startovní listina'!E44","v":1974},{"$f":"'Startovní listina'!F44","v":"Brno"},"03:10:37"]
[{"$f":"IF('Výsledková listina (2)'!D26<>\"\",A26+1,\"\")","v":{"$error":"#VALUE!"}},null,{"$f":"'Startovní listina'!G84","v":""},{"$f":"'Startovní listina'!B84","v":""},{"$f":"'Startovní listina'!C84","v":""},{"$f":"'Startovní listina'!D84","v":""},{"$f":"'Startovní listina'!E84","v":""},{"$f":"'Startovní listina'!F84","v":""},"02:28:22"]
[{"$f":"IF('Výsledková listina (2)'!D27<>\"\",A27+1,\"\")","v":""},null,{"$f":"'Startovní listina'!G87","v":""},{"$f":"'Startovní listina'!B87","v":""},{"$f":"'Startovní listina'!C87","v":""},{"$f":"'Startovní listina'!D87","v":""},{"$f":"'Startovní listina'!E87","v":""},{"$f":"'Startovní listina'!F87","v":""},"02:29:21"]
[{"$f":"IF('Výsledková listina (2)'!D28<>\"\",A28+1,\"\")","v":""},null,{"$f":"'Startovní listina'!G75","v":""},{"$f":"'Startovní listina'!B75","v":""},{"$f":"'Startovní listina'!C75","v":""},{"$f":"'Startovní listina'!D75","v":""},{"$f":"'Startovní listina'!E75","v":""},{"$f":"'Startovní listina'!F75","v":""},"03:01:37"]
[{"$f":"IF('Výsledková listina (2)'!D29<>\"\",A29+1,\"\")","v":""},null,{"$f":"'Startovní listina'!G18","v":"B"},{"$f":"'Startovní listina'!B18","v":18},{"$f":"'Startovní listina'!C18","v":"Benko"},{"$f":"'Startovní listina'!D18","v":"Jan"},{"$f":"'Startovní listina'!E18","v":1974},{"$f":"'Startovní listina'!F18","v":"GOMANGO Litomyšl"}]
[{"$f":"IF('Výsledková listina (2)'!D30<>\"\",A30+1,\"\")","v":{"$error":"#VALUE!"}},null,{"$f":"'Startovní listina'!G41","v":"C"},{"$f":"'Startovní listina'!B41","v":47},{"$f":"'Startovní listina'!C41","v":"Novotný"},{"$f":"'Startovní listina'!D41","v":"Petr"},{"$f":"'Startovní listina'!E41","v":1965},{"$f":"'Startovní listina'!F41","v":"AK Kuřim"},"02:16:46"]
[{"$f":"IF('Výsledková listina (2)'!D31<>\"\",A31+1,\"\")","v":{"$error":"#VALUE!"}},null,{"$f":"'Startovní listina'!G23","v":"A"},{"$f":"'Startovní listina'!B23","v":24},{"$f":"'Startovní listina'!C23","v":"Vrba"},{"$f":"'Startovní listina'!D23","v":"Tomáš"},{"$f":"'Startovní listina'!E23","v":1986},{"$f":"'Startovní listina'!F23","v":"Bystré"}]
[{"$f":"IF('Výsledková listina (2)'!D32<>\"\",A32+1,\"\")","v":{"$error":"#VALUE!"}},null,{"$f":"'Startovní listina'!G57","v":"A"},{"$f":"'Startovní listina'!B57","v":73},{"$f":"'Startovní listina'!C57","v":"Kalich"},{"$f":"'Startovní listina'!D57","v":"Radim"},{"$f":"'Startovní listina'!E57","v":1985},{"$f":"'Startovní listina'!F57","v":"Odranec"},"02:42:39"]
[{"$f":"IF('Výsledková listina (2)'!D33<>\"\",A33+1,\"\")","v":{"$error":"#VALUE!"}},null,{"$f":"'Startovní listina'!G40","v":"F"},{"$f":"'Startovní listina'!B40","v":46},{"$f":"'Startovní listina'!C40","v":"Pešáková"},{"$f":"'Startovní listina'!D40","v":"Mirka"},{"$f":"'Startovní listina'!E40","v":1985},{"$f":"'Startovní listina'!F40","v":"AC Racers Tetčice"},"02:10:10"]
[{"$f":"IF('Výsledková listina (2)'!D34<>\"\",A34+1,\"\")","v":{"$error":"#VALUE!"}},null,{"$f":"'Startovní listina'!G9","v":"F"},{"$f":"'Startovní listina'!B9","v":6},{"$f":"'Startovní listina'!C9","v":"Navrátilová"},{"$f":"'Startovní listina'!D9","v":"Vlasta"},{"$f":"'Startovní listina'!E9","v":1983},{"$f":"'Startovní listina'!F9","v":"Vír"},"02:05:55"]
[{"$f":"IF('Výsledková listina (2)'!D35<>\"\",A35+1,\"\")","v":{"$error":"#VALUE!"}},null,{"$f":"'Startovní listina'!G77","v":""},{"$f":"'Startovní listina'!B77","v":""},{"$f":"'Startovní listina'!C77","v":""},{"$f":"'Startovní listina'!D77","v":""},{"$f":"'Startovní listina'!E77","v":""},{"$f":"'Startovní listina'!F77","v":""}]
[{"$f":"IF('Výsledková listina (2)'!D36<>\"\",A36+1,\"\")","v":""},null,{"$f":"'Startovní listina'!G81","v":""},{"$f":"'Startovní listina'!B81","v":""},{"$f":"'Startovní listina'!C81","v":""},{"$f":"'Startovní listina'!D81","v":""},{"$f":"'Startovní listina'!E81","v":""},{"$f":"'Startovní listina'!F81","v":""},"03:24:59"]
[{"$f":"IF('Výsledková listina (2)'!D37<>\"\",A37+1,\"\")","v":""},null,{"$f":"'Startovní listina'!G54","v":"B"},{"$f":"'Startovní listina'!B54","v":69},{"$f":"'Startovní listina'!C54","v":"Faja"},{"$f":"'Startovní listina'!D54","v":"Ondřej"},{"$f":"'Startovní listina'!E54","v":1976},{"$f":"'Startovní listina'!F54","v":"Brno"},"02:37:38"]
[{"$f":"IF('Výsledková listina (2)'!D38<>\"\",A38+1,\"\")","v":{"$error":"#VALUE!"}},null,{"$f":"'Startovní listina'!G94","v":""},{"$f":"'Startovní listina'!B94","v":""},{"$f":"'Startovní listina'!C94","v":""},{"$f":"'Startovní listina'!D94","v":""},{"$f":"'Startovní listina'!E94","v":""},{"$f":"'Startovní listina'!F94","v":""},"03:13:50"]
[{"$f":"IF('Výsledková listina (2)'!D39<>\"\",A39+1,\"\")","v":""},null,{"$f":"'Startovní listina'!G20","v":"B"},{"$f":"'Startovní listina'!B20","v":21},{"$f":"'Startovní listina'!C20","v":"Stöger"},{"$f":"'Startovní listina'!D20","v":"Karel"},{"$f":"'Startovní listina'!E20","v":1976},{"$f":"'Startovní listina'!F20","v":"fKlidu Brno"},"02:43:21"]
[{"$f":"IF('Výsledková listina (2)'!D40<>\"\",A40+1,\"\")","v":{"$error":"#VALUE!"}},null,{"$f":"'Startovní listina'!G19","v":"A"},{"$f":"'Startovní listina'!B19","v":19},{"$f":"'Startovní listina'!C19","v":"Czerný"},{"$f":"'Startovní listina'!D19","v":"Pavel"},{"$f":"'Startovní listina'!E19","v":1981},{"$f":"'Startovní listina'!F19","v":"BKB"},"03:01:04"]
[{"$f":"IF('Výsledková listina (2)'!D41<>\"\",A41+1,\"\")","v":{"$error":"#VALUE!"}},null,{"$f":"'Startovní listina'!G69","v":""},{"$f":"'Startovní listina'!B69","v":""},{"$f":"'Startovní listina'!C69","v":""},{"$f":"'Startovní listina'!D69","v":""},{"$f":"'Startovní listina'!E69","v":""},{"$f":"'Startovní listina'!F69","v":""},"DNF"]
[{"$f":"IF('Výsledková listina (2)'!D42<>\"\",A42+1,\"\")","v":""},null,{"$f":"'Startovní listina'!G38","v":"B"},{"$f":"'Startovní listina'!B38","v":44},{"$f":"'Startovní listina'!C38","v":"Řezníček"},{"$f":"'Startovní listina'!D38","v":"Roman"},{"$f":"'Startovní listina'!E38","v":1977},{"$f":"'Startovní listina'!F38","v":"Žďár nad Sázavou"},"02:26:38"]
[{"$f":"IF('Výsledková listina (2)'!D43<>\"\",A43+1,\"\")","v":{"$error":"#VALUE!"}},null,{"$f":"'Startovní listina'!G80","v":""},{"$f":"'Startovní listina'!B80","v":""},{"$f":"'Startovní listina'!C80","v":""},{"$f":"'Startovní listina'!D80","v":""},{"$f":"'Startovní listina'!E80","v":""},{"$f":"'Startovní listina'!F80","v":""},"02:45:32"]
[{"$f":"IF('Výsledková listina (2)'!D44<>\"\",A44+1,\"\")","v":""},null,{"$f":"'Startovní listina'!G53","v":"H"},{"$f":"'Startovní listina'!B53","v":67},{"$f":"'Startovní listina'!C53","v":"Podmelová"},{"$f":"'Startovní listina'!D53","v":"Vilma"},{"$f":"'Startovní listina'!E53","v":1962},{"$f":"'Startovní listina'!F53","v":"AC Moravská Slavia Brno"},"02:46:25"]
[{"$f":"IF('Výsledková listina (2)'!D45<>\"\",A45+1,\"\")","v":{"$error":"#VALUE!"}},null,{"$f":"'Startovní listina'!G11","v":"H"},{"$f":"'Startovní listina'!B11","v":9},{"$f":"'Startovní listina'!C11","v":"Tesařová"},{"$f":"'Startovní listina'!D11","v":"Marie"},{"$f":"'Startovní listina'!E11","v":1954},{"$f":"'Startovní listina'!F11","v":"Křižanov"},"02:45:37"]
[{"$f":"IF('Výsledková listina (2)'!D46<>\"\",A46+1,\"\")","v":{"$error":"#VALUE!"}},null,{"$f":"'Startovní listina'!G89","v":""},{"$f":"'Startovní listina'!B89","v":""},{"$f":"'Startovní listina'!C89","v":""},{"$f":"'Startovní listina'!D89","v":""},{"$f":"'Startovní listina'!E89","v":""},{"$f":"'Startovní listina'!F89","v":""},"02:23:07"]
[{"$f":"IF('Výsledková listina (2)'!D47<>\"\",A47+1,\"\")","v":""},null,{"$f":"'Startovní listina'!G93","v":""},{"$f":"'Startovní listina'!B93","v":""},{"$f":"'Startovní listina'!C93","v":""},{"$f":"'Startovní listina'!D93","v":""},{"$f":"'Startovní listina'!E93","v":""},{"$f":"'Startovní listina'!F93","v":""}]
[{"$f":"IF('Výsledková listina (2)'!D48<>\"\",A48+1,\"\")","v":""},null,{"$f":"'Startovní listina'!G78","v":""},{"$f":"'Startovní listina'!B78","v":""},{"$f":"'Startovní listina'!C78","v":""},{"$f":"'Startovní listina'!D78","v":""},{"$f":"'Startovní listina'!E78","v":""},{"$f":"'Startovní listina'!F78","v":""},"02:49:04"]
[{"$f":"IF('Výsledková listina (2)'!D49<>\"\",A49+1,\"\")","v":""},null,{"$f":"'Startovní listina'!G35","v":"G"},{"$f":"'Startovní listina'!B35","v":40},{"$f":"'Startovní listina'!C35","v":"Hanslová"},{"$f":"'Startovní listina'!D35","v":"Lenka"},{"$f":"'Startovní listina'!E35","v":1973},{"$f":"'Startovní listina'!F35","v":"Žďár nad Sázavou"},"02:31:40"]
[{"$f":"IF('Výsledková listina (2)'!D50<>\"\",A50+1,\"\")","v":{"$error":"#VALUE!"}},null,{"$f":"'Startovní listina'!G36","v":"H"},{"$f":"'Startovní listina'!B36","v":41},{"$f":"'Startovní listina'!C36","v":"Křižovičová"},{"$f":"'Startovní listina'!D36","v":"Hana"},{"$f":"'Startovní listina'!E36","v":1971},{"$f":"'Startovní listina'!F36","v":"Nové Město na Moravě"}]
[{"$f":"IF('Výsledková listina (2)'!D51<>\"\",A51+1,\"\")","v":{"$error":"#VALUE!"}},null,{"$f":"'Startovní listina'!G29","v":"B"},{"$f":"'Startovní listina'!B29","v":33},{"$f":"'Startovní listina'!C29","v":"Klíma"},{"$f":"'Startovní listina'!D29","v":"Miroslav"},{"$f":"'Startovní listina'!E29","v":1975},{"$f":"'Startovní listina'!F29","v":"Brno"},"02:19:07"]
[{"$f":"IF('Výsledková listina (2)'!D52<>\"\",A52+1,\"\")","v":{"$error":"#VALUE!"}},null,{"$f":"'Startovní listina'!G86","v":""},{"$f":"'Startovní listina'!B86","v":""},{"$f":"'Startovní listina'!C86","v":""},{"$f":"'Startovní listina'!D86","v":""},{"$f":"'Startovní listina'!E86","v":""},{"$f":"'Startovní listina'!F86","v":""},"02:21:00"]
[{"$f":"IF('Výsledková listina (2)'!D53<>\"\",A53+1,\"\")","v":""},null,{"$f":"'Startovní listina'!G17","v":"A"},{"$f":"'Startovní listina'!B17","v":17},{"$f":"'Startovní listina'!C17","v":"Ptáček"},{"$f":"'Startovní listina'!D17","v":"Michal"},{"$f":"'Startovní listina'!E17","v":1986},{"$f":"'Startovní listina'!F17","v":"člen nadšenců parku Lužánky"},"03:06:22"]
[{"$f":"IF('Výsledková listina (2)'!D54<>\"\",A54+1,\"\")","v":{"$error":"#VALUE!"}},null,{"$f":"'Startovní listina'!G37","v":"D"},{"$f":"'Startovní listina'!B37","v":42},{"$f":"'Startovní listina'!C37","v":"Mareš"},{"$f":"'Startovní listina'!D37","v":"Bohumil"},{"$f":"'Startovní listina'!E37","v":1951},{"$f":"'Startovní listina'!F37","v":"LEAR Brno"},"02:32:28"]
[{"$f":"IF('Výsledková listina (2)'!D55<>\"\",A55+1,\"\")","v":{"$error":"#VALUE!"}},null,{"$f":"'Startovní listina'!G32","v":"B"},{"$f":"'Startovní listina'!B32","v":36},{"$f":"'Startovní listina'!C32","v":"Fanfrdla"},{"$f":"'Startovní listina'!D32","v":"Ctirad"},{"$f":"'Startovní listina'!E32","v":1974},{"$f":"'Startovní listina'!F32","v":"Silůvky"},"02:59:30"]
[{"$f":"IF('Výsledková listina (2)'!D56<>\"\",A56+1,\"\")","v":{"$error":"#VALUE!"}},null,{"$f":"'Startovní listina'!G58","v":"B"},{"$f":"'Startovní listina'!B58","v":75},{"$f":"'Startovní listina'!C58","v":"Kratochvíl"},{"$f":"'Startovní listina'!D58","v":"Jaroslav"},{"$f":"'Startovní listina'!E58","v":1977},{"$f":"'Startovní listina'!F58","v":"SDH Hluboké"},"02:07:54"]
[{"$f":"IF('Výsledková listina (2)'!D57<>\"\",A57+1,\"\")","v":{"$error":"#VALUE!"}},null,{"$f":"'Startovní listina'!G26","v":"B"},{"$f":"'Startovní listina'!B26","v":28},{"$f":"'Startovní listina'!C26","v":"Pučálka"},{"$f":"'Startovní listina'!D26","v":"Radek"},{"$f":"'Startovní listina'!E26","v":1973},{"$f":"'Startovní listina'!F26","v":"Železárny Štěpánov s.r.o"},"03:06:38"]
[{"$f":"IF('Výsledková listina (2)'!D58<>\"\",A58+1,\"\")","v":{"$error":"#VALUE!"}},null,{"$f":"'Startovní listina'!G52","v":"A"},{"$f":"'Startovní listina'!B52","v":64},{"$f":"'Startovní listina'!C52","v":"Kohut"},{"$f":"'Startovní listina'!D52","v":"Jan"},{"$f":"'Startovní listina'!E52","v":1985},{"$f":"'Startovní listina'!F52","v":"MAX-TRAINING.CZ"},"03:14:48"]
[{"$f":"IF('Výsledková listina (2)'!D59<>\"\",A59+1,\"\")","v":{"$error":"#VALUE!"}},null,{"$f":"'Startovní listina'!G66","v":"A"},{"$f":"'Startovní listina'!B66","v":85},{"$f":"'Startovní listina'!C66","v":"Příhoda"},{"$f":"'Startovní listina'!D66","v":"Jan"},{"$f":"'Startovní listina'!E66","v":1983},{"$f":"'Startovní listina'!F66","v":"Ždánice"},"02:46:48"]
[{"$f":"IF('Výsledková listina (2)'!D60<>\"\",A60+1,\"\")","v":{"$error":"#VALUE!"}},null,{"$f":"'Startovní listina'!G31","v":"F"},{"$f":"'Startovní listina'!B31","v":35},{"$f":"'Startovní listina'!C31","v":"Bartoňková"},{"$f":"'Startovní listina'!D31","v":"Nina"},{"$f":"'Startovní listina'!E31","v":1990},{"$f":"'Startovní listina'!F31","v":"Fan Brno"},"02:38:44"]
[{"$f":"IF('Výsledková listina (2)'!D61<>\"\",A61+1,\"\")","v":{"$error":"#VALUE!"}},null,{"$f":"'Startovní listina'!G92","v":""},{"$f":"'Startovní listina'!B92","v":""},{"$f":"'Startovní listina'!C92","v":""},{"$f":"'Startovní listina'!D92","v":""},{"$f":"'Startovní listina'!E92","v":""},{"$f":"'Startovní listina'!F92","v":""},"03:04:27"]
[{"$f":"IF('Výsledková listina (2)'!D62<>\"\",A62+1,\"\")","v":""},null,{"$f":"'Startovní listina'!G45","v":"C"},{"$f":"'Startovní listina'!B45","v":54},{"$f":"'Startovní listina'!C45","v":"Drózd"},{"$f":"'Startovní listina'!D45","v":"Januš"},{"$f":"'Startovní listina'!E45","v":1962},{"$f":"'Startovní listina'!F45","v":"Velké Přílepy"},"03:21:11"]
[{"$f":"IF('Výsledková listina (2)'!D63<>\"\",A63+1,\"\")","v":{"$error":"#VALUE!"}},null,{"$f":"'Startovní listina'!G34","v":"D"},{"$f":"'Startovní listina'!B34","v":38},{"$f":"'Startovní listina'!C34","v":"Chromý"},{"$f":"'Startovní listina'!D34","v":"Bořivoj"},{"$f":"'Startovní listina'!E34","v":1953},{"$f":"'Startovní listina'!F34","v":"Tišnov"},"03:00:59"]
[{"$f":"IF('Výsledková listina (2)'!D64<>\"\",A64+1,\"\")","v":{"$error":"#VALUE!"}},null,{"$f":"'Startovní listina'!G8","v":"G"},{"$f":"'Startovní listina'!B8","v":5},{"$f":"'Startovní listina'!C8","v":"Komárková"},{"$f":"'Startovní listina'!D8","v":"Zdeňka"},{"$f":"'Startovní listina'!E8","v":1974},{"$f":"'Startovní listina'!F8","v":"SDH Bolešín"},"03:30:08"]
[{"$f":"IF('Výsledková listina (2)'!D65<>\"\",A65+1,\"\")","v":{"$error":"#VALUE!"}},null,{"$f":"'Startovní listina'!G73","v":""},{"$f":"'Startovní listina'!B73","v":""},{"$f":"'Startovní listina'!C73","v":""},{"$f":"'Startovní listina'!D73","v":""},{"$f":"'Startovní listina'!E73","v":""},{"$f":"'Startovní listina'!F73","v":""},"03:01:32"]
[{"$f":"IF('Výsledková listina (2)'!D66<>\"\",A66+1,\"\")","v":""},null,{"$f":"'Startovní listina'!G27","v":"F"},{"$f":"'Startovní listina'!B27","v":30},{"$f":"'Startovní listina'!C27","v":"Křípalová"},{"$f":"'Startovní listina'!D27","v":"Renata"},{"$f":"'Startovní listina'!E27","v":1983},{"$f":"'Startovní listina'!F27","v":"Třebíč"},"02:05:07"]
[{"$f":"IF('Výsledková listina (2)'!D67<>\"\",A67+1,\"\")","v":{"$error":"#VALUE!"}},null,{"$f":"'Startovní listina'!G70","v":""},{"$f":"'Startovní listina'!B70","v":""},{"$f":"'Startovní listina'!C70","v":""},{"$f":"'Startovní listina'!D70","v":""},{"$f":"'Startovní listina'!E70","v":""},{"$f":"'Startovní listina'!F70","v":""},"02:57:35"]
[{"$f":"IF('Výsledková listina (2)'!D68<>\"\",A68+1,\"\")","v":""},null,{"$f":"'Startovní listina'!G51","v":"C"},{"$f":"'Startovní listina'!B51","v":63},{"$f":"'Startovní listina'!C51","v":"Münster"},{"$f":"'Startovní listina'!D51","v":"Libor"},{"$f":"'Startovní listina'!E51","v":1966},{"$f":"'Startovní listina'!F51","v":"Blansko"},"02:19:36"]
[{"$f":"IF('Výsledková listina (2)'!D69<>\"\",A69+1,\"\")","v":{"$error":"#VALUE!"}},null,{"$f":"'Startovní listina'!G98","v":""},{"$f":"'Startovní listina'!B98","v":""},{"$f":"'Startovní listina'!C98","v":""},{"$f":"'Startovní listina'!D98","v":""},{"$f":"'Startovní listina'!E98","v":""},{"$f":"'Startovní listina'!F98","v":""},"01:54:34"]
[{"$f":"IF('Výsledková listina (2)'!D70<>\"\",A70+1,\"\")","v":""},null,{"$f":"'Startovní listina'!G50","v":"A"},{"$f":"'Startovní listina'!B50","v":62},{"$f":"'Startovní listina'!C50","v":"Tomek"},{"$f":"'Startovní listina'!D50","v":"Pavel"},{"$f":"'Startovní listina'!E50","v":1980},{"$f":"'Startovní listina'!F50","v":"Brno"},"02:21:57"]
[{"$f":"IF('Výsledková listina (2)'!D71<>\"\",A71+1,\"\")","v":{"$error":"#VALUE!"}},null,{"$f":"'Startovní listina'!G21","v":"F"},{"$f":"'Startovní listina'!B21","v":22},{"$f":"'Startovní listina'!C21","v":"Ďurdiaková"},{"$f":"'Startovní listina'!D21","v":"Tereza"},{"$f":"'Startovní listina'!E21","v":1991},{"$f":"'Startovní listina'!F21","v":"AK OLYMP Brno"}]
[{"$f":"IF('Výsledková listina (2)'!D72<>\"\",A72+1,\"\")","v":{"$error":"#VALUE!"}},null,{"$f":"'Startovní listina'!G6","v":"G"},{"$f":"'Startovní listina'!B6","v":3},{"$f":"'Startovní listina'!C6","v":"Ježová"},{"$f":"'Startovní listina'!D6","v":"Martina"},{"$f":"'Startovní listina'!E6","v":1975},{"$f":"'Startovní listina'!F6","v":"Brno"},"02:40:25"]
[{"$f":"IF('Výsledková listina (2)'!D73<>\"\",A73+1,\"\")","v":{"$error":"#VALUE!"}},null,{"$f":"'Startovní listina'!G48","v":"G"},{"$f":"'Startovní listina'!B48","v":60},{"$f":"'Startovní listina'!C48","v":"Rokosová"},{"$f":"'Startovní listina'!D48","v":"Ivana"},{"$f":"'Startovní listina'!E48","v":1982},{"$f":"'Startovní listina'!F48","v":"Polička"},"02:21:35"]
[{"$f":"IF('Výsledková listina (2)'!D74<>\"\",A74+1,\"\")","v":{"$error":"#VALUE!"}},null,{"$f":"'Startovní listina'!G97","v":""},{"$f":"'Startovní listina'!B97","v":""},{"$f":"'Startovní listina'!C97","v":""},{"$f":"'Startovní listina'!D97","v":""},{"$f":"'Startovní listina'!E97","v":""},{"$f":"'Startovní listina'!F97","v":""},"03:14:54"]
[{"$f":"IF('Výsledková listina (2)'!D75<>\"\",A75+1,\"\")","v":""},null,{"$f":"'Startovní listina'!G22","v":"B"},{"$f":"'Startovní listina'!B22","v":23},{"$f":"'Startovní listina'!C22","v":"Šorf"},{"$f":"'Startovní listina'!D22","v":"Ivo"},{"$f":"'Startovní listina'!E22","v":1975},{"$f":"'Startovní listina'!F22","v":"ABND Racing Team Bystřice n. P."},"02:25:09"]
[{"$f":"IF('Výsledková listina (2)'!D76<>\"\",A76+1,\"\")","v":{"$error":"#VALUE!"}},null,{"$f":"'Startovní listina'!G82","v":""},{"$f":"'Startovní listina'!B82","v":""},{"$f":"'Startovní listina'!C82","v":""},{"$f":"'Startovní listina'!D82","v":""},{"$f":"'Startovní listina'!E82","v":""},{"$f":"'Startovní listina'!F82","v":""},"02:50:59"]
[{"$f":"IF('Výsledková listina (2)'!D77<>\"\",A77+1,\"\")","v":""},null,{"$f":"'Startovní listina'!G96","v":""},{"$f":"'Startovní listina'!B96","v":""},{"$f":"'Startovní listina'!C96","v":""},{"$f":"'Startovní listina'!D96","v":""},{"$f":"'Startovní listina'!E96","v":""},{"$f":"'Startovní listina'!F96","v":""},"03:12:26"]
[{"$f":"IF('Výsledková listina (2)'!D78<>\"\",A78+1,\"\")","v":""},null,{"$f":"'Startovní listina'!G30","v":"B"},{"$f":"'Startovní listina'!B30","v":34},{"$f":"'Startovní listina'!C30","v":"Fanfrdla"},{"$f":"'Startovní listina'!D30","v":"Dalimil"},{"$f":"'Startovní listina'!E30","v":1973},{"$f":"'Startovní listina'!F30","v":"Matyteam Brno"},"02:37:53"]
[{"$f":"IF('Výsledková listina (2)'!D79<>\"\",A79+1,\"\")","v":{"$error":"#VALUE!"}},null,{"$f":"'Startovní listina'!G64","v":"C"},{"$f":"'Startovní listina'!B64","v":83},{"$f":"'Startovní listina'!C64","v":"Zourek"},{"$f":"'Startovní listina'!D64","v":"Karel"},{"$f":"'Startovní listina'!E64","v":1959},{"$f":"'Startovní listina'!F64","v":"Bedřichovice"},"03:18:47"]
[{"$f":"IF('Výsledková listina (2)'!D80<>\"\",A80+1,\"\")","v":{"$error":"#VALUE!"}},null,{"$f":"'Startovní listina'!G39","v":"G"},{"$f":"'Startovní listina'!B39","v":45},{"$f":"'Startovní listina'!C39","v":"Bojanovská"},{"$f":"'Startovní listina'!D39","v":"Alena"},{"$f":"'Startovní listina'!E39","v":1975},{"$f":"'Startovní listina'!F39","v":"Žďár nad Sázavou"},"02:07:35"]
[{"$f":"IF('Výsledková listina (2)'!D81<>\"\",A81+1,\"\")","v":{"$error":"#VALUE!"}},null,{"$f":"'Startovní listina'!G56","v":"G"},{"$f":"'Startovní listina'!B56","v":72},{"$f":"'Startovní listina'!C56","v":"Mlčáková"},{"$f":"'Startovní listina'!D56","v":"Hana"},{"$f":"'Startovní listina'!E56","v":1981},{"$f":"'Startovní listina'!F56","v":"Strážnice"},"02:24:19"]
[{"$f":"IF('Výsledková listina (2)'!D82<>\"\",A82+1,\"\")","v":{"$error":"#VALUE!"}},null,{"$f":"'Startovní listina'!G83","v":""},{"$f":"'Startovní listina'!B83","v":""},{"$f":"'Startovní listina'!C83","v":""},{"$f":"'Startovní listina'!D83","v":""},{"$f":"'Startovní listina'!E83","v":""},{"$f":"'Startovní listina'!F83","v":""},"02:31:15"]
[{"$f":"IF('Výsledková listina (2)'!D83<>\"\",A83+1,\"\")","v":""},null,{"$f":"'Startovní listina'!G61","v":"A"},{"$f":"'Startovní listina'!B61","v":79},{"$f":"'Startovní listina'!C61","v":"Glier"},{"$f":"'Startovní listina'!D61","v":"Michal"},{"$f":"'Startovní listina'!E61","v":1982},{"$f":"'Startovní listina'!F61","v":"SDH Doubravník"},"02:27:55"]
[{"$f":"IF('Výsledková listina (2)'!D84<>\"\",A84+1,\"\")","v":{"$error":"#VALUE!"}},null,{"$f":"'Startovní listina'!G95","v":""},{"$f":"'Startovní listina'!B95","v":""},{"$f":"'Startovní listina'!C95","v":""},{"$f":"'Startovní listina'!D95","v":""},{"$f":"'Startovní listina'!E95","v":""},{"$f":"'Startovní listina'!F95","v":""},"02:34:44"]
[{"$f":"IF('Výsledková listina (2)'!D85<>\"\",A85+1,\"\")","v":""},null,{"$f":"'Startovní listina'!G65","v":"D"},{"$f":"'Startovní listina'!B65","v":84},{"$f":"'Startovní listina'!C65","v":"Sedláček"},{"$f":"'Startovní listina'!D65","v":"Svatopluk"},{"$f":"'Startovní listina'!E65","v":1957},{"$f":"'Startovní listina'!F65","v":"AC Moravská Slavia Brno"},"02:58:55"]
[{"$f":"IF('Výsledková listina (2)'!D86<>\"\",A86+1,\"\")","v":{"$error":"#VALUE!"}},null,{"$f":"'Startovní listina'!G43","v":"B"},{"$f":"'Startovní listina'!B43","v":49},{"$f":"'Startovní listina'!C43","v":"Ondráček"},{"$f":"'Startovní listina'!D43","v":"Tomáš"},{"$f":"'Startovní listina'!E43","v":1977},{"$f":"'Startovní listina'!F43","v":"Brno"},"02:32:49"]
[{"$f":"IF('Výsledková listina (2)'!D87<>\"\",A87+1,\"\")","v":{"$error":"#VALUE!"}},null,{"$f":"'Startovní listina'!G33","v":"C"},{"$f":"'Startovní listina'!B33","v":37},{"$f":"'Startovní listina'!C33","v":"Bělehrádek"},{"$f":"'Startovní listina'!D33","v":"Pavel"},{"$f":"'Startovní listina'!E33","v":1958},{"$f":"'Startovní listina'!F33","v":"TJ Čolek"}]
[{"$f":"IF('Výsledková listina (2)'!D88<>\"\",A88+1,\"\")","v":{"$error":"#VALUE!"}},null,{"$f":"'Startovní listina'!G76","v":""},{"$f":"'Startovní listina'!B76","v":""},{"$f":"'Startovní listina'!C76","v":""},{"$f":"'Startovní listina'!D76","v":""},{"$f":"'Startovní listina'!E76","v":""},{"$f":"'Startovní listina'!F76","v":""},"03:18:56"]
[{"$f":"IF('Výsledková listina (2)'!D89<>\"\",A89+1,\"\")","v":""},null,{"$f":"'Startovní listina'!G12","v":"E"},{"$f":"'Startovní listina'!B12","v":10},{"$f":"'Startovní listina'!C12","v":"Holý"},{"$f":"'Startovní listina'!D12","v":"Josef"},{"$f":"'Startovní listina'!E12","v":1941},{"$f":"'Startovní listina'!F12","v":"AC Moravská Slavia Brno"},"02:05:40"]
[{"$f":"IF('Výsledková listina (2)'!D90<>\"\",A90+1,\"\")","v":{"$error":"#VALUE!"}},null,{"$f":"'Startovní listina'!G24","v":"H"},{"$f":"'Startovní listina'!B24","v":26},{"$f":"'Startovní listina'!C24","v":"Šedová"},{"$f":"'Startovní listina'!D24","v":"Věra"},{"$f":"'Startovní listina'!E24","v":1964},{"$f":"'Startovní listina'!F24","v":"Praha"},"02:08:44"]
[{"$f":"IF('Výsledková listina (2)'!D91<>\"\",A91+1,\"\")","v":{"$error":"#VALUE!"}},null,{"$f":"'Startovní listina'!G16","v":"C"},{"$f":"'Startovní listina'!B16","v":14},{"$f":"'Startovní listina'!C16","v":"Zouhar"},{"$f":"'Startovní listina'!D16","v":"Libor"},{"$f":"'Startovní listina'!E16","v":1958},{"$f":"'Startovní listina'!F16","v":"Brno-Líšeň"}]
[{"$f":"IF('Výsledková listina (2)'!D92<>\"\",A92+1,\"\")","v":{"$error":"#VALUE!"}},null,{"$f":"'Startovní listina'!G88","v":""},{"$f":"'Startovní listina'!B88","v":""},{"$f":"'Startovní listina'!C88","v":""},{"$f":"'Startovní listina'!D88","v":""},{"$f":"'Startovní listina'!E88","v":""},{"$f":"'Startovní listina'!F88","v":""},"02:53:55"]
[{"$f":"IF('Výsledková listina (2)'!D93<>\"\",A93+1,\"\")","v":""},null,{"$f":"'Startovní listina'!G90","v":""},{"$f":"'Startovní listina'!B90","v":""},{"$f":"'Startovní listina'!C90","v":""},{"$f":"'Startovní listina'!D90","v":""},{"$f":"'Startovní listina'!E90","v":""},{"$f":"'Startovní listina'!F90","v":""},"02:55:52"]
[{"$f":"IF('Výsledková listina (2)'!D94<>\"\",A94+1,\"\")","v":""},null,{"$f":"'Startovní listina'!G25","v":"B"},{"$f":"'Startovní listina'!B25","v":27},{"$f":"'Startovní listina'!C25","v":"Žličař"},{"$f":"'Startovní listina'!D25","v":"Karel"},{"$f":"'Startovní listina'!E25","v":1977},{"$f":"'Startovní listina'!F25","v":"Železárny Štěpánov s.r.o"},"03:04:10"]
[{"$f":"IF('Výsledková listina (2)'!D95<>\"\",A95+1,\"\")","v":{"$error":"#VALUE!"}},null,{"$f":"'Startovní listina'!G72","v":""},{"$f":"'Startovní listina'!B72","v":""},{"$f":"'Startovní listina'!C72","v":""},{"$f":"'Startovní listina'!D72","v":""},{"$f":"'Startovní listina'!E72","v":""},{"$f":"'Startovní listina'!F72","v":""}]
[{"$f":"IF('Výsledková listina (2)'!D96<>\"\",A96+1,\"\")","v":""},null,{"$f":"'Startovní listina'!G13","v":"G"},{"$f":"'Startovní listina'!B13","v":11},{"$f":"'Startovní listina'!C13","v":"Dostálová"},{"$f":"'Startovní listina'!D13","v":"Vendula"},{"$f":"'Startovní listina'!E13","v":1981},{"$f":"'Startovní listina'!F13","v":"Digitor.cz"},"02:40:16"]
[{"$f":"IF('Výsledková listina (2)'!D97<>\"\",A97+1,\"\")","v":{"$error":"#VALUE!"}},null,{"$f":"'Startovní listina'!G10","v":"C"},{"$f":"'Startovní listina'!B10","v":8},{"$f":"'Startovní listina'!C10","v":"Chramosta"},{"$f":"'Startovní listina'!D10","v":"Jaroslav"},{"$f":"'Startovní listina'!E10","v":1966},{"$f":"'Startovní listina'!F10","v":"JABOJA Team Dobrná"},"03:00:21"]
[{"$f":"IF('Výsledková listina (2)'!D98<>\"\",A98+1,\"\")","v":{"$error":"#VALUE!"}},null,{"$f":"'Startovní listina'!G99","v":""},{"$f":"'Startovní listina'!B99","v":""},{"$f":"'Startovní listina'!C99","v":""},{"$f":"'Startovní listina'!D99","v":""},{"$f":"'Startovní listina'!E99","v":""},{"$f":"'Startovní listina'!F99","v":""}]
[{"$f":"IF('Výsledková listina (2)'!D99<>\"\",A99+1,\"\")","v":""},null,{"$f":"'Startovní listina'!G100","v":""},{"$f":"'Startovní listina'!B100","v":""},{"$f":"'Startovní listina'!C100","v":""},{"$f":"'Startovní listina'!D100","v":""},{"$f":"'Startovní listina'!E100","v":""},{"$f":"'Startovní listina'!F100","v":""}]
[{"$f":"IF('Výsledková listina (2)'!D100<>\"\",A100+1,\"\")","v":""},null,{"$f":"'Startovní listina'!G101","v":""},{"$f":"'Startovní listina'!B101","v":""},{"$f":"'Startovní listina'!C101","v":""},{"$f":"'Startovní listina'!D101","v":""},{"$f":"'Startovní listina'!E101","v":""},{"$f":"'Startovní listina'!F101","v":""}]
[{"$f":"IF('Výsledková listina (2)'!D101<>\"\",A101+1,\"\")","v":""},null,{"$f":"'Startovní listina'!G102","v":""},{"$f":"'Startovní listina'!B102","v":""},{"$f":"'Startovní listina'!C102","v":""},{"$f":"'Startovní listina'!D102","v":""},{"$f":"'Startovní listina'!E102","v":""},{"$f":"'Startovní listina'!F102","v":""}]
[{"$f":"IF('Výsledková listina (2)'!D102<>\"\",A102+1,\"\")","v":""},null,{"$f":"'Startovní listina'!G103","v":""},{"$f":"'Startovní listina'!B103","v":""},{"$f":"'Startovní listina'!C103","v":""},{"$f":"'Startovní listina'!D103","v":""},{"$f":"'Startovní listina'!E103","v":""},{"$f":"'Startovní listina'!F103","v":""}]